{"text_format":"3","workbook":"xlsx","n_sheets":33,"sheets":["Sheet4","Sheet4 (2)","Sheet6","Sheet1","Sheet1 (2)","Sheet1 (3)","Sheet1 (4)","Sheet1 (5)","Sheet1 (6)","Sheet1 (7)","Sheet2","Sheet5","Sheet3","Sheet7","Sheet7 (2)","Sheet7 (3)","Sheet7 (4)","Sheet7 (5)","Sheet7 (6)","Sheet7 (7)","ReportFA","ReportPA","Table1","Table2","Table3","Table4","Table5","Table6","Table7","Table8","Sheet2 (2)","Sheet8","Sheet9"],"not_rendered":{"images":2,"macros":1,"defined_names":48},"read":"whole","date_system":"1900"}

{"sheet":"Sheet4","index":0,"n_rows":72,"n_cols":30,"rows_kept":72,"merged":[[5,8,5,16],[7,8,7,9],[9,8,9,16],[35,6,36,23],[38,6,44,23],[68,6,69,23],[71,6,77,23]]}
[{"$nulls":29},"√"]
[{"$nulls":11},"Evaluation Instrument of COPPA 2nd Edition (2017)"]
[]
[{"$nulls":11},"**Notification to HEPs: The Grade and Result shown here are for self-review purposes only."]
[]
[{"$nulls":5},"Name of Programme",null,null,{"$f":"'Sheet4 (2)'!H7","v":0}]
[]
[{"$nulls":5},"MQF Level",null,null,{"$f":"'Sheet4 (2)'!H24","v":0}]
[]
[{"$nulls":5},"Name of Institution",null,null,{"$f":"'Sheet4 (2)'!H17","v":0}]
[]
[{"$nulls":5},"Accreditation level",null,{"$f":"IFERROR(IF(J12=AD1,21,IF(N12=AD1,22,\"ERROR\")),\"ERROR\")","v":"ERROR"},"Full",{"$f":"IF('Sheet4 (2)'!H13=\"Full Accreditation (FA)\",\"√\",\"\")","v":""},null,"Provisional",null,{"$f":"IF('Sheet4 (2)'!H13=\"Provisional Accreditation (PA)\",\"√\",\"\")","v":""},{"$nulls":4},{"$f":"'Sheet4 (2)'!Q13","v":{"$error":"#N/A"}}]
[]
[{"$nulls":5},"SUMMARY OF HEP EVALUATION"]
[{"$nulls":10},"No.of     AL1/AL2",null,"No.of AL3",null,"No.of AL4/AL5",null,"No.of Standards",null,"Weightage","Max.Score","Score",null,{"$f":"IF(G34=\"F\",\"\",\"Weighted Score\")","v":"Weighted Score"}]
[{"$nulls":5},"Area 1","PROGRAMME DEVELOPMENT AND DELIVERY",{"$nulls":3},{"$f":"Sheet2!K5","v":0},null,{"$f":"Sheet2!G5","v":0},null,{"$f":"Sheet2!L5","v":0},null,{"$f":"Sheet2!D5","v":0},null,{"$f":"IF(J12=AD1,Sheet2!P5,IF(N12=AD1,Sheet2!O5,\"\"))","v":""},{"$f":"Sheet2!Y5","v":0},{"$f":"Sheet2!Z5","v":0},null,{"$f":"IF(G34=\"F\",\"\",(IF(J12=AD1,Sheet2!AC5,IF(N12=AD1,Sheet2!AB5,\"\"))))","v":""}]
[]
[{"$nulls":5},"Area 2","ASSESSMENT OF STUDENT LEARNING",{"$nulls":3},{"$f":"Sheet2!K6","v":0},null,{"$f":"Sheet2!G6","v":0},null,{"$f":"Sheet2!L6","v":0},null,{"$f":"Sheet2!D6","v":0},null,{"$f":"IF(J12=AD1,Sheet2!P6,IF(N12=AD1,Sheet2!O6,\"\"))","v":""},{"$f":"Sheet2!Y6","v":0},{"$f":"Sheet2!Z6","v":0},null,{"$f":"IF(G34=\"F\",\"\",(IF(J12=AD1,Sheet2!AC6,IF(N12=AD1,Sheet2!AB6,\"\"))))","v":""}]
[]
[{"$nulls":5},"Area 3","STUDENT SELECTION AND SUPPORT SERVICES",{"$nulls":3},{"$f":"Sheet2!K7","v":0},null,{"$f":"Sheet2!G7","v":0},null,{"$f":"Sheet2!L7","v":0},null,{"$f":"Sheet2!D7","v":0},null,{"$f":"IF(J12=AD1,Sheet2!P7,IF(N12=AD1,Sheet2!O7,\"\"))","v":""},{"$f":"Sheet2!Y7","v":0},{"$f":"Sheet2!Z7","v":0},null,{"$f":"IF(G34=\"F\",\"\",(IF(J12=AD1,Sheet2!AC7,IF(N12=AD1,Sheet2!AB7,\"\"))))","v":""}]
[]
[{"$nulls":5},"Area 4","ACADEMIC STAFF",{"$nulls":3},{"$f":"Sheet2!K8","v":0},null,{"$f":"Sheet2!G8","v":0},null,{"$f":"Sheet2!L8","v":0},null,{"$f":"Sheet2!D8","v":0},null,{"$f":"IF(J12=AD1,Sheet2!P8,IF(N12=AD1,Sheet2!O8,\"\"))","v":""},{"$f":"Sheet2!Y8","v":0},{"$f":"Sheet2!Z8","v":0},null,{"$f":"IF(G34=\"F\",\"\",(IF(J12=AD1,Sheet2!AC8,IF(N12=AD1,Sheet2!AB8,\"\"))))","v":""}]
[]
[{"$nulls":5},"Area 5","EDUCATIONAL RESOURCES",{"$nulls":3},{"$f":"Sheet2!K9","v":0},null,{"$f":"Sheet2!G9","v":0},null,{"$f":"Sheet2!L9","v":0},null,{"$f":"Sheet2!D9","v":0},null,{"$f":"IF(J12=AD1,Sheet2!P9,IF(N12=AD1,Sheet2!O9,\"\"))","v":""},{"$f":"Sheet2!Y9","v":0},{"$f":"Sheet2!Z9","v":0},null,{"$f":"IF(G34=\"F\",\"\",(IF(J12=AD1,Sheet2!AC9,IF(N12=AD1,Sheet2!AB9,\"\"))))","v":""}]
[]
[{"$nulls":5},"Area 6","PROGRAMME MANAGEMENT",{"$nulls":3},{"$f":"Sheet2!K10","v":0},null,{"$f":"Sheet2!G10","v":0},null,{"$f":"Sheet2!L10","v":0},null,{"$f":"Sheet2!D10","v":0},null,{"$f":"IF(J12=AD1,Sheet2!P10,IF(N12=AD1,Sheet2!O10,\"\"))","v":""},{"$f":"Sheet2!Y10","v":0},{"$f":"Sheet2!Z10","v":0},null,{"$f":"IF(G34=\"F\",\"\",(IF(J12=AD1,Sheet2!AC10,IF(N12=AD1,Sheet2!AB10,\"\"))))","v":""}]
[]
[{"$nulls":5},"Area 7","PROGRAMME MONITORING, REVIEW AND",{"$nulls":3},{"$f":"Sheet2!K11","v":0},null,{"$f":"Sheet2!G11","v":0},null,{"$f":"Sheet2!L11","v":0},null,{"$f":"Sheet2!D11","v":0},null,{"$f":"IF(J12=AD1,Sheet2!P11,IF(N12=AD1,Sheet2!O11,\"\"))","v":""},{"$f":"Sheet2!Y11","v":0},{"$f":"Sheet2!Z11","v":0},null,{"$f":"IF(G34=\"F\",\"\",(IF(J12=AD1,Sheet2!AC11,IF(N12=AD1,Sheet2!AB11,\"\"))))","v":""}]
[{"$nulls":6},"CONTINUAL QUALITY IMPROVEMENT"]
[{"$nulls":8},"TOTAL",null,{"$f":"SUM(K16:K28)","v":0},null,{"$f":"SUM(M16:M28)","v":0},null,{"$f":"SUM(O16:O28)","v":0},null,{"$f":"SUM(Q16:Q28)","v":0},null,{"$f":"SUM(S16:S28)","v":0},{"$nulls":3},{"$f":"IF(G34=\"F\",\"\",SUM(W16:W28))","v":{"v":0,"d":"0.00"}}]
[]
[]
[]
[{"$nulls":5},"GRADE",{"$f":"IF(Sheet2!D13=\"ERROR\",\"ERROR\",(IF(J12=AD1,Sheet2!AC15,IF(N12=AD1,Sheet2!O15,\"ERROR\"))))","v":"ERROR"},{"$f":"IF(G34=\"F\",\"\",(IF(J12=AD1,Sheet2!AC13,IF(N12=AD1,Sheet2!AB13,\"\"))))","v":""},{"$f":"IF(G34=\"F\",\"\",\"%\")","v":"%"},null,{"$f":"IF(Sheet2!D13=\"ERROR\",\"ERROR\",IF(J12=AD1,Sheet2!AD15,VLOOKUP(G34,Sheet2!C29:F31,2)))","v":"ERROR"}]
[]
[{"$nulls":5},"RESULTS",{"$f":"IF(Sheet2!D13=\"ERROR\",\"ERROR\",IF(J12=AD1,Sheet2!AE15,VLOOKUP(G34,Sheet2!C29:F31,3)))","v":"ERROR"}]
[]
[]
[{"$nulls":6},{"$f":"IF(Sheet2!D13=\"ERROR\",\"ERROR\",IF(J12=AD1,Sheet2!AF15,VLOOKUP(G34,Sheet2!C29:F31,4)))","v":"ERROR"}]
{"$rows_empty":8}
[{"$nulls":5},"SUMMARY OF POA EVALUATION"]
[{"$nulls":10},"No.of     AL1/AL2",null,"No.of AL3",null,"No.of AL4/AL5",null,"No.of Standards",null,"Weightage","Max.Score","Score",null,{"$f":"IF(G67=\"F\",\"\",\"Weighted Score\")","v":"Weighted Score"}]
[{"$nulls":5},"Area 1","PROGRAMME DEVELOPMENT AND DELIVERY",{"$nulls":3},{"$f":"'Sheet2 (2)'!K5","v":0},null,{"$f":"'Sheet2 (2)'!G5","v":0},null,{"$f":"'Sheet2 (2)'!L5","v":0},null,{"$f":"'Sheet2 (2)'!D5","v":0},null,{"$f":"IF(J12=AD1,'Sheet2 (2)'!P5,IF(N12=AD1,'Sheet2 (2)'!O5,\"\"))","v":""},{"$f":"Sheet2!Y5","v":0},{"$f":"'Sheet2 (2)'!Z5","v":0},null,{"$f":"IF(G67=\"F\",\"\",(IF(J12=AD1,'Sheet2 (2)'!AC5,IF(N12=AD1,'Sheet2 (2)'!AB5,\"\"))))","v":""}]
[]
[{"$nulls":5},"Area 2","ASSESSMENT OF STUDENT LEARNING",{"$nulls":3},{"$f":"'Sheet2 (2)'!K6","v":0},null,{"$f":"'Sheet2 (2)'!G6","v":0},null,{"$f":"'Sheet2 (2)'!L6","v":0},null,{"$f":"'Sheet2 (2)'!D6","v":0},null,{"$f":"IF(J12=AD1,'Sheet2 (2)'!P6,IF(N12=AD1,'Sheet2 (2)'!O6,\"\"))","v":""},{"$f":"Sheet2!Y6","v":0},{"$f":"'Sheet2 (2)'!Z6","v":0},null,{"$f":"IF(G67=\"F\",\"\",(IF(J12=AD1,'Sheet2 (2)'!AC6,IF(N12=AD1,'Sheet2 (2)'!AB6,\"\"))))","v":""}]
[]
[{"$nulls":5},"Area 3","STUDENT SELECTION AND SUPPORT SERVICES",{"$nulls":3},{"$f":"'Sheet2 (2)'!K7","v":0},null,{"$f":"'Sheet2 (2)'!G7","v":0},null,{"$f":"'Sheet2 (2)'!L7","v":0},null,{"$f":"'Sheet2 (2)'!D7","v":0},null,{"$f":"IF(J12=AD1,'Sheet2 (2)'!P7,IF(N12=AD1,'Sheet2 (2)'!O7,\"\"))","v":""},{"$f":"Sheet2!Y7","v":0},{"$f":"'Sheet2 (2)'!Z7","v":0},null,{"$f":"IF(G67=\"F\",\"\",(IF(J12=AD1,'Sheet2 (2)'!AC7,IF(N12=AD1,'Sheet2 (2)'!AB7,\"\"))))","v":""}]
[]
[{"$nulls":5},"Area 4","ACADEMIC STAFF",{"$nulls":3},{"$f":"'Sheet2 (2)'!K8","v":0},null,{"$f":"'Sheet2 (2)'!G8","v":0},null,{"$f":"'Sheet2 (2)'!L8","v":0},null,{"$f":"'Sheet2 (2)'!D8","v":0},null,{"$f":"IF(J12=AD1,'Sheet2 (2)'!P8,IF(N12=AD1,'Sheet2 (2)'!O8,\"\"))","v":""},{"$f":"Sheet2!Y8","v":0},{"$f":"'Sheet2 (2)'!Z8","v":0},null,{"$f":"IF(G67=\"F\",\"\",(IF(J12=AD1,'Sheet2 (2)'!AC8,IF(N12=AD1,'Sheet2 (2)'!AB8,\"\"))))","v":""}]
[]
[{"$nulls":5},"Area 5","EDUCATIONAL RESOURCES",{"$nulls":3},{"$f":"'Sheet2 (2)'!K9","v":0},null,{"$f":"'Sheet2 (2)'!G9","v":0},null,{"$f":"'Sheet2 (2)'!L9","v":0},null,{"$f":"'Sheet2 (2)'!D9","v":0},null,{"$f":"IF(J12=AD1,'Sheet2 (2)'!P9,IF(N12=AD1,'Sheet2 (2)'!O9,\"\"))","v":""},{"$f":"Sheet2!Y9","v":0},{"$f":"'Sheet2 (2)'!Z9","v":0},null,{"$f":"IF(G67=\"F\",\"\",(IF(J12=AD1,'Sheet2 (2)'!AC9,IF(N12=AD1,'Sheet2 (2)'!AB9,\"\"))))","v":""}]
[]
[{"$nulls":5},"Area 6","PROGRAMME MANAGEMENT",{"$nulls":3},{"$f":"'Sheet2 (2)'!K10","v":0},null,{"$f":"'Sheet2 (2)'!G10","v":0},null,{"$f":"'Sheet2 (2)'!L10","v":0},null,{"$f":"'Sheet2 (2)'!D10","v":0},null,{"$f":"IF(J12=AD1,'Sheet2 (2)'!P10,IF(N12=AD1,'Sheet2 (2)'!O10,\"\"))","v":""},{"$f":"Sheet2!Y10","v":0},{"$f":"'Sheet2 (2)'!Z10","v":0},null,{"$f":"IF(G67=\"F\",\"\",(IF(J12=AD1,'Sheet2 (2)'!AC10,IF(N12=AD1,'Sheet2 (2)'!AB10,\"\"))))","v":""}]
[]
[{"$nulls":5},"Area 7","PROGRAMME MONITORING, REVIEW AND",{"$nulls":3},{"$f":"'Sheet2 (2)'!K11","v":0},null,{"$f":"'Sheet2 (2)'!G11","v":0},null,{"$f":"'Sheet2 (2)'!L11","v":0},null,{"$f":"'Sheet2 (2)'!D11","v":0},null,{"$f":"IF(J12=AD1,'Sheet2 (2)'!P11,IF(N12=AD1,'Sheet2 (2)'!O11,\"\"))","v":""},{"$f":"Sheet2!Y11","v":0},{"$f":"'Sheet2 (2)'!Z11","v":0},null,{"$f":"IF(G67=\"F\",\"\",(IF(J12=AD1,'Sheet2 (2)'!AC11,IF(N12=AD1,'Sheet2 (2)'!AB11,\"\"))))","v":""}]
[{"$nulls":6},"CONTINUAL QUALITY IMPROVEMENT"]
[{"$nulls":8},"TOTAL",null,{"$f":"SUM(K50:K62)","v":0},null,{"$f":"SUM(M50:M62)","v":0},null,{"$f":"SUM(O50:O62)","v":0},null,{"$f":"SUM(Q50:Q62)","v":0},null,{"$f":"SUM(S50:S62)","v":0},{"$nulls":3},{"$f":"IF(G67=\"F\",\"\",SUM(W50:W62))","v":{"v":0,"d":"0.00"}}]
[]
[]
[{"$nulls":5},"GRADE",{"$f":"IF(J12=AD1,'Sheet2 (2)'!AC15,IF(N12=AD1,'Sheet2 (2)'!O15,\"ERROR\"))","v":"ERROR"},{"$f":"IF(G67=\"F\",\"\",(IF(J12=AD1,'Sheet2 (2)'!AC13,IF(N12=AD1,'Sheet2 (2)'!AB13,\"\"))))","v":""},{"$f":"IF(G34=\"F\",\"\",\"%\")","v":"%"},null,{"$f":"IF(J12=AD1,'Sheet2 (2)'!AD15,IF(N12=AD1,'Sheet2 (2)'!AB13,VLOOKUP(G67,'Sheet2 (2)'!C29:F31,2)))","v":{"$error":"#N/A"}}]
[]
[{"$nulls":5},"RESULTS",{"$f":"IF('Sheet2 (2)'!D13=\"ERROR\",\"ERROR\",IF(J12=AD1,'Sheet2 (2)'!AE15,VLOOKUP(G67,'Sheet2 (2)'!C29:F31,3)))","v":"ERROR"}]
[]
[]
[{"$nulls":6},{"$f":"IF('Sheet2 (2)'!D13=\"ERROR\",\"ERROR\",IF(J12=AD1,'Sheet2 (2)'!AF15,VLOOKUP(G34,'Sheet2 (2)'!C29:F31,4)))","v":"ERROR"}]

{"sheet":"Sheet4 (2)","index":1,"n_rows":84,"n_cols":54,"rows_kept":84,"merged":[[6,7,6,15],[8,7,8,15],[10,7,10,8],[12,7,12,8],[12,12,12,15],[16,7,16,15],[21,7,21,15],[23,7,23,8],[23,12,24,15],[27,7,27,8],[27,12,27,15],[29,7,29,8],[29,12,29,15],[34,14,36,15],[38,7,38,8],[40,7,40,12],[42,7,43,7],[42,8,42,11],[42,12,42,15],[43,8,43,9],[43,10,43,11],[43,12,43,13],[43,14,43,15],[46,8,46,11],[46,12,46,15],[49,7,49,15],[51,4,51,6],[51,7,51,15],[56,7,56,15],[58,7,58,15],[60,7,60,15],[62,7,62,15],[64,7,64,15],[66,7,66,15],[68,7,68,15],[70,7,70,15],[72,7,72,15],[74,7,74,15],[76,7,76,15],[78,7,78,15]]}
[]
[{"$nulls":52},"Non-MQF"]
[{"$nulls":7},"Evaluation Instrument of COPPA 2nd Edition (2017)",{"$nulls":44},"Level 1"]
[{"$nulls":52},"Level 2"]
[{"$nulls":52},"Level 3"]
[{"$nulls":52},"Level 4"]
[{"$nulls":4},"Name of Programme",{"$nulls":47},"Level 5"]
[{"$nulls":52},"Level 6"]
[{"$nulls":4},"(in Bahasa Malaysia)",{"$nulls":47},"Level 7"]
[{"$nulls":13},"(1)","(2)","(3)",{"$nulls":36},"Level 8"]
[{"$nulls":4},"Reference Number",{"$nulls":5},"Proposed dates of site visit (dd/mm/yyyy)"]
[{"$nulls":52},"√"]
[{"$nulls":4},"Accreditation level",{"$nulls":5},"Type of Assessment",{"$nulls":5},{"$f":"VLOOKUP(M13,BA21:BB26,2)","v":{"$error":"#N/A"}}]
[{"$nulls":52},"Full Accreditation (FA)"]
[{"$nulls":10},"Date of site visit (dd/mm/yyyy)",{"$nulls":41},"Provisional Accreditation (PA)"]
[]
[{"$nulls":4},"Name of Higher "]
[{"$nulls":4},"Education Provider (HEP)"]
[]
[]
[{"$nulls":52},"HEP Input (PA)",1]
[{"$nulls":4},"Address of HEP",{"$nulls":47},"HEP Self Review Report (FA)",2]
[{"$nulls":52},"MQA POA PA Evaluation Report",3]
[{"$nulls":4},"MQF Level",{"$nulls":5},"Field of Study",{"$nulls":41},"MQA POA Post FA(Consideration)",6]
[{"$nulls":10},"and NEC",{"$nulls":41},"MQA POA Post Visit FA Evaluation Report",4]
[{"$nulls":12},"(For NEC 481 and 482 please click           )",{"$nulls":39},"MQA POA Preliminary FA Evaluation Report",5]
[]
[{"$nulls":4},"Mode of Study",{"$nulls":5},"Mode of Delivery",{"$nulls":41},"Full Time"]
[{"$nulls":52},"Part Time"]
[{"$nulls":4},"Mode of Offer",{"$nulls":5},"Language of Instruction",{"$nulls":41},"Full Time and Part Time"]
[{"$nulls":52},"Conventional (traditional, online and blended learning)"]
[{"$nulls":4},"Method of Learning and Teaching (select methods used)",{"$nulls":47},"Open and Distance learning (ODL)"]
[]
[{"$nulls":4},"Lecture",{"$nulls":5},"Industrial Training",{"$nulls":3},"Others",{"$nulls":37},"Coursework - Undergraduate"]
[{"$nulls":4},"Tutorial",{"$nulls":5},"Work-Based Learning",{"$nulls":41},"Industry Mode (2u2i) - Undergraduate"]
[{"$nulls":4},"Practical/Lab/Workshop",{"$nulls":5},"Research",{"$nulls":41},"Coursework - Postgraduate"]
[{"$nulls":4},"Project",{"$nulls":5},"Seminar/Colloquium",{"$nulls":41},"Mixed Mode - Postgraduate"]
[{"$nulls":52},"Research - Postgraduate"]
[{"$nulls":4},"Type of Programme",{"$nulls":5},"Graduating Credit"]
[]
[{"$nulls":4},"Awarding Body"]
[]
[{"$nulls":4},"Duration of Study",{"$nulls":3},"Full Time",{"$nulls":3},"Part Time"]
[{"$nulls":8},"Long Semester",null,"Short Semester",null,"Long Semester",null,"Short Semester"]
[{"$nulls":7},"No. of Weeks *",{"$nulls":44},"Own"]
[{"$nulls":7},"No. of Semesters",{"$nulls":44},"Collaboration"]
[{"$nulls":7},"No. of Years",{"$nulls":44},"External"]
[{"$nulls":7},"* Number of weeks should include study and exam weeks.",{"$nulls":44},"Joint Award/ Joint Degree"]
[{"$nulls":52},"Others"]
[{"$nulls":4},"Entry Requirements",null,null,"(please click            )"]
[]
[{"$nulls":4},"Address of Programme's Location (if applicable)"]
[]
[]
[{"$nulls":10},"(For Panel of Assessors only)"]
[]
[{"$nulls":4},"Name of Assessor1 (Chair)"]
[]
[{"$nulls":4},"Field of Expertise"]
[]
[{"$nulls":4},"Faculty and Institution"]
[]
[{"$nulls":4},"Name of Assessor2"]
[]
[{"$nulls":4},"Field of Expertise"]
[]
[{"$nulls":4},"Faculty and Institution"]
[]
[{"$nulls":4},"Name of Assessor3"]
[]
[{"$nulls":4},"Field of Expertise"]
[]
[{"$nulls":4},"Faculty and Institution"]
[]
[{"$nulls":4},"Name of Assessor4"]
[]
[{"$nulls":4},"Field of Expertise"]
[]
[{"$nulls":4},"Faculty and Institution"]
[]
[]
[{"$nulls":4},"Note:"]
[{"$nulls":4},"a.       Provisional Accreditation: HEPs are required to fill in / attach information for all the tables provided in this Instrument. No self-rating is required."]
[{"$nulls":4},"b.       Full Accreditation: HEPs are required to do self-review report using this Instrument."]

{"sheet":"Sheet6","index":2,"n_rows":31,"n_cols":13,"rows_kept":31,"merged":[[8,12,8,13],[9,12,9,13],[10,12,10,13],[24,12,24,13],[25,12,25,13],[26,12,26,13],[28,12,28,13],[29,12,29,13],[30,12,30,13]]}
[]
[]
[]
[]
[]
[]
[{"$nulls":6},"PLEASE READ THIS FIRST"]
[]
[null,"Please follow the instructions below in sequence. Once finished, a summary report will be",{"$nulls":10},"Evaluation Instrument of"]
[null,"automatically generated.",{"$nulls":10},"COPPA"]
[{"$nulls":12},"2nd Edition (2017)"]
[null,1,"Click button 'CLICK HERE TO START'"]
[null,null,"Please complete the required information in the spaces provided."]
[]
[null,2,"In the menu column, click button \"AREA 1\""]
[null,null,"i.","For each standard, evaluate using the scale given (i.e AL1  - AL5)"]
[null,null,"ii.","Select Achievement Level (AL) for each standard from the drop-down list."]
[null,null,"iii.","Please provide remarks in the corresponding columns for each standard."]
[null,null,"iv.","Click            to view descriptions of each standards."]
[null,null,"v.","Once completed for AREA 1, please proceed to the other areas of evaluation."]
[]
[]
[null,3,"After you have evaluated every area, click button \"SUMMARY\" to view result summary."]
[]
[{"$nulls":12},"Evaluation Instrument of COPPA"]
[null,4,"Click button \"Sources of Evidence\" to view examples of evidences that HEP could provide",{"$nulls":9},"2nd Edition 2017"]
[null,null,"as prove that the standards in each area have been met.",{"$nulls":9},"v3.40"]
[]
[{"$nulls":12},"Best viewed 1920 X 1280"]
[null,5,"Click button \"Report\" to view generated report (for Panel of Assesors only).",{"$nulls":9},"Developed by: "]
[{"$nulls":12},"mnmy"]

{"sheet":"Sheet1","index":3,"n_rows":65,"n_cols":70,"rows_kept":65,"merged":[[5,4,6,4],[7,4,7,11],[8,4,9,4],[10,4,10,11],[11,4,12,4],[13,4,13,11],[14,4,15,4],[16,4,16,11],[17,4,18,4],[19,4,19,11],[22,4,23,4],[24,4,24,11],[25,4,26,4],[27,4,27,11],[28,4,29,4],[30,4,30,11],[31,4,32,4],[33,4,33,11],[34,4,35,4],[36,4,36,11],[37,4,38,4],[39,4,39,11],[42,4,43,4],[44,4,44,11],[45,4,46,4],[47,4,47,11],[48,4,49,4],[50,4,50,11],[51,4,52,4],[53,4,53,11],[54,4,55,4],[56,4,56,11],[57,4,58,4],[59,4,59,11]]}
[{"$nulls":6},"Evaluation Instrument of COPPA 2nd Edition (2017)"]
[]
[{"$nulls":6},"AREA 1: PROGRAMME DEVELOPMENT AND DELIVERY"]
[]
[{"$nulls":3},1.1,"Statement of Educational Objectives of Academic Programme and Learning Outcomes",null,"Achievement Level          (AL)","AL Descriptor","Strength/ Commendation","Steps taken to maintain and enhance the strengths/\nCurrent Practices","Areas of concern/ Weakness/ Condition ","Steps taken to address the problem areas ",{"$nulls":17},"√",{"$nulls":22},"AL1","Not consistent and supportive at all","Not indicated at all","Not stated and not aligned","Not linked at all","Not indicated at all","Does not have autonomy at all","No process at all","Not consulted at all","Not fulfilled at all","Not related at all","No activity at all","Did not have a line of responsibility and authority at all","No provision and briefing on current information at all","Not adequate at all","Not conducive at all","Not encouraged at all","Do not obtain feedbacks at all"]
[{"$nulls":3},"1.1.1","The programme must be consistent with and supportive of, the vision, mission and goals of the HEP.",null,null,{"$f":"VLOOKUP(G6,$BA$5:$BR$9,2)","v":{"$error":"#N/A"}},{"$nulls":44},"AL2","Poorly consistent and supportive ","Poory indicated","Poorly stated, not aligned","Poorly linked","Poory indicated","Insufficient autonomy","Poorly design and structured","Poorly consulted","Poorly fulfilled","Poorly related","Not much activities","Poor line of responsibility and authority","Poor provision and briefing on current information","Inadequate number","Poorly conducive learning environment","Poorly encouraged","Obtained limited feedbacks and use the information rarely"]
[{"$nulls":7},{"$f":"VLOOKUP(G7,$BA$5:$BR$9,2)","v":{"$error":"#N/A"}},{"$nulls":44},"AL3","Consistent and supportive ","Adequately indicated","Adequately stated and aligned","Adequately linked","Adequately indicated","Sufficient autonomy","Appropriately designed and structured","Adequately consulted","Adequately fulfilled","Adequately related","Adequate activities","Adequate line of responsibility and authority","Adequate provision and briefing on current information","Adequate number","Conducive learning environment","Adequately encouraged","Obtained feedbacks and use the information"]
[{"$nulls":4},{"$f":"IF(AND(I6=\"\",J6=\"\",K6=\"\",L6=\"\"),\"INPUT ERROR! Please provide remarks\",\" \")","v":"INPUT ERROR! Please provide remarks"},{"$nulls":24},{"$f":"IF(G6=\"\",FALSE,TRUE)","v":false},{"$f":"IF(G6=\"AL5\",5,0)","v":0},{"$f":"IF(G6=\"AL4\",4,0)","v":0},{"$f":"IF(G6=\"AL3\",3,0)","v":0},{"$f":"IF(G6=\"AL2\",2,0)","v":0},{"$f":"IF(G6=\"AL1\",1,0)","v":0},{"$f":"IF(AND(K6=\"\",L6=\"\"),TRUE,FALSE)","v":true},{"$f":"IF(AND(K7=\"\",L7=\"\"),TRUE,FALSE)","v":true},null,{"$f":"COUNTIF(AE8:AI8,0)","v":5},{"$f":"IF((E8=\" \"),TRUE,FALSE)","v":false},{"$f":"COUNTIF(AE8:AI8,5)","v":0},{"$f":"COUNTIF(AE8:AI8,4)","v":0},{"$f":"COUNTIF(AE8:AI8,2)","v":0},{"$f":"COUNTIF(AE8:AI8,1)","v":0},null,{"$f":"IF(G7=\"AL5\",5,0)","v":0},{"$f":"IF(G7=\"AL4\",4,0)","v":0},{"$f":"IF(G7=\"AL3\",3,0)","v":0},{"$f":"IF(G7=\"AL2\",2,0)","v":0},{"$f":"IF(G7=\"AL1\",1,0)","v":0},null,null,"AL4","Very consistent and supportive ","Stongly indicated","Well stated and aligned","Highly linked","Stongly indicated","High degree of autonomy","Well designed and structured","Highly consulted","Well fulfilled","Highly related","Plenty of activities","Clear line of responsibility and authority","High provision and briefing on current information","Highly adequate number","Very conducive learning environment","Well encouraged","Obtained large feedbacks and use the information regularly"]
[{"$nulls":3},"1.1.2","The programme must be considered only after a need assessment has indicated that there is a need for the programme to be offered.\n(This standard must be read together with standards 1.2.2 in Area 1 and standards 6.1.6 \nin Area 6)",null,null,{"$f":"VLOOKUP(G9,$BA$5:$BR$9,3)","v":{"$error":"#N/A"}},{"$nulls":44},"AL5","Very highly consistent and supportive ","Very strongly indicated","Very well stated and aligned","Very highly linked","Very strongly indicated","Very high degree of autonomy","Very well designed and structured","Very highly consulted","Very well fulfilled","Very highly related","A lot of activities","Very clear line of responsibility and authority","Very high provision and briefing on current information","Very highly adequate number","Highly conducive learning environment","Very well encouraged","Obtained extensive feedbacks and use the information extensively"]
[{"$nulls":7},{"$f":"VLOOKUP(G10,$BA$5:$BR$9,3)","v":{"$error":"#N/A"}}]
[{"$nulls":4},{"$f":"IF(AND(I9=\"\",J9=\"\",K9=\"\",L9=\"\"),\"INPUT ERROR! Please provide remarks\",\" \")","v":"INPUT ERROR! Please provide remarks"},{"$nulls":24},{"$f":"IF(G9=\"\",FALSE,TRUE)","v":false},{"$f":"IF($G$9=\"AL5\",5,0)","v":0},{"$f":"IF($G$9=\"AL4\",4,0)","v":0},{"$f":"IF($G$9=\"AL3\",3,0)","v":0},{"$f":"IF($G$9=\"AL2\",2,0)","v":0},{"$f":"IF($G$9=\"AL1\",1,0)","v":0},{"$f":"IF(AND(K9=\"\",L9=\"\"),TRUE,FALSE)","v":true},{"$f":"IF(AND(K10=\"\",L10=\"\"),TRUE,FALSE)","v":true},null,{"$f":"COUNTIF(AE11:AI11,0)","v":5},{"$f":"IF((E11=\" \"),TRUE,FALSE)","v":false},{"$f":"COUNTIF(AE11:AI11,5)","v":0},{"$f":"COUNTIF(AE11:AI11,4)","v":0},{"$f":"COUNTIF(AE11:AI11,2)","v":0},{"$f":"COUNTIF(AE11:AI11,1)","v":0},null,{"$f":"IF(G10=\"AL5\",5,0)","v":0},{"$f":"IF(G10=\"AL4\",4,0)","v":0},{"$f":"IF(G10=\"AL3\",3,0)","v":0},{"$f":"IF(G10=\"AL2\",2,0)","v":0},{"$f":"IF(G10=\"AL1\",1,0)","v":0}]
[{"$nulls":3},"1.1.3","The programme must state its programme educational objectives, learning outcomes, teaching and learning strategies, and assessment, and to ensure constructive alignment between them. \n(This standard must be read together with standards 1.2.4 \nin Area 1)",null,null,{"$f":"VLOOKUP(G12,$BA$5:$BR$9,4)","v":{"$error":"#N/A"}}]
[{"$nulls":7},{"$f":"VLOOKUP(G13,$BA$5:$BR$9,4)","v":{"$error":"#N/A"}}]
[{"$nulls":4},{"$f":"IF(AND(I12=\"\",J12=\"\",K12=\"\",L12=\"\"),\"INPUT ERROR! Please provide remarks\",\" \")","v":"INPUT ERROR! Please provide remarks"},{"$nulls":24},{"$f":"IF(G12=\"\",FALSE,TRUE)","v":false},{"$f":"IF(G12=\"AL5\",5,0)","v":0},{"$f":"IF(G12=\"AL4\",4,0)","v":0},{"$f":"IF(G12=\"AL3\",3,0)","v":0},{"$f":"IF(G12=\"AL2\",2,0)","v":0},{"$f":"IF(G12=\"AL1\",1,0)","v":0},{"$f":"IF(AND(K12=\"\",L12=\"\"),TRUE,FALSE)","v":true},{"$f":"IF(AND(K13=\"\",L13=\"\"),TRUE,FALSE)","v":true},null,{"$f":"COUNTIF(AE14:AI14,0)","v":5},{"$f":"IF((E14=\" \"),TRUE,FALSE)","v":false},{"$f":"COUNTIF(AE14:AI14,5)","v":0},{"$f":"COUNTIF(AE14:AI14,4)","v":0},{"$f":"COUNTIF(AE14:AI14,2)","v":0},{"$f":"COUNTIF(AE14:AI14,1)","v":0},null,{"$f":"IF(G13=\"AL5\",5,0)","v":0},{"$f":"IF(G13=\"AL4\",4,0)","v":0},{"$f":"IF(G13=\"AL3\",3,0)","v":0},{"$f":"IF(G13=\"AL2\",2,0)","v":0},{"$f":"IF(G13=\"AL1\",1,0)","v":0}]
[{"$nulls":3},"1.1.4","The programme learning outcomes must correspond to an MQF level descriptors and the eight MQF learning outcomes domains:\ni. Knowledge, ii. Practical skills. iii. Social skills and responsibilities, iv. Ethics, professionalism and   humanities, v. Communication, leadership and team skills; vi. Scientific methods, critical thinking and problem solving skills, vii.  Lifelong learning and information  management skills, viii. Entrepreneurship and managerial skills",null,null,{"$f":"VLOOKUP(G15,$BA$5:$BR$9,5)","v":{"$error":"#N/A"}}]
[{"$nulls":7},{"$f":"VLOOKUP(G16,$BA$5:$BR$9,5)","v":{"$error":"#N/A"}}]
[{"$nulls":4},{"$f":"IF(AND(I15=\"\",J15=\"\",K15=\"\",L15=\"\"),\"INPUT ERROR! Please provide remarks\",\" \")","v":"INPUT ERROR! Please provide remarks"},{"$nulls":24},{"$f":"IF(G15=\"\",FALSE,TRUE)","v":false},{"$f":"IF(G15=\"AL5\",5,0)","v":0},{"$f":"IF(G15=\"AL4\",4,0)","v":0},{"$f":"IF(G15=\"AL3\",3,0)","v":0},{"$f":"IF(G15=\"AL2\",2,0)","v":0},{"$f":"IF(G15=\"AL1\",1,0)","v":0},{"$f":"IF(AND(K15=\"\",L15=\"\"),TRUE,FALSE)","v":true},{"$f":"IF(AND(K16=\"\",L16=\"\"),TRUE,FALSE)","v":true},null,{"$f":"COUNTIF(AE17:AI17,0)","v":5},{"$f":"IF((E17=\" \"),TRUE,FALSE)","v":false},{"$f":"COUNTIF(AE17:AI17,5)","v":0},{"$f":"COUNTIF(AE17:AI17,4)","v":0},{"$f":"COUNTIF(AE17:AI17,2)","v":0},{"$f":"COUNTIF(AE17:AI17,1)","v":0},null,{"$f":"IF(G16=\"AL5\",5,0)","v":0},{"$f":"IF(G16=\"AL4\",4,0)","v":0},{"$f":"IF(G16=\"AL3\",3,0)","v":0},{"$f":"IF(G16=\"AL2\",2,0)","v":0},{"$f":"IF(G16=\"AL1\",1,0)","v":0}]
[{"$nulls":3},"1.1.5","Considering the stated learning outcomes, the programme must indicate the career and further studies options available to the students on completion of the programme.  ",null,null,{"$f":"VLOOKUP(G18,$BA$5:$BR$9,6)","v":{"$error":"#N/A"}}]
[{"$nulls":7},{"$f":"VLOOKUP(G19,$BA$5:$BR$9,6)","v":{"$error":"#N/A"}}]
[{"$nulls":4},{"$f":"IF(AND(I18=\"\",J18=\"\",K18=\"\",L18=\"\"),\"INPUT ERROR! Please provide remarks\",\" \")","v":"INPUT ERROR! Please provide remarks"},{"$nulls":24},{"$f":"IF(G18=\"\",FALSE,TRUE)","v":false},{"$f":"IF(G18=\"AL5\",5,0)","v":0},{"$f":"IF(G18=\"AL4\",4,0)","v":0},{"$f":"IF(G18=\"AL3\",3,0)","v":0},{"$f":"IF(G18=\"AL2\",2,0)","v":0},{"$f":"IF(G18=\"AL1\",1,0)","v":0},{"$f":"IF(AND(K18=\"\",L18=\"\"),TRUE,FALSE)","v":true},{"$f":"IF(AND(K19=\"\",L19=\"\"),TRUE,FALSE)","v":true},null,{"$f":"COUNTIF(AE20:AI20,0)","v":5},{"$f":"IF((E20=\" \"),TRUE,FALSE)","v":false},{"$f":"COUNTIF(AE20:AI20,5)","v":0},{"$f":"COUNTIF(AE20:AI20,4)","v":0},{"$f":"COUNTIF(AE20:AI20,2)","v":0},{"$f":"COUNTIF(AE20:AI20,1)","v":0},null,{"$f":"IF(G19=\"AL5\",5,0)","v":0},{"$f":"IF(G19=\"AL4\",4,0)","v":0},{"$f":"IF(G19=\"AL3\",3,0)","v":0},{"$f":"IF(G19=\"AL2\",2,0)","v":0},{"$f":"IF(G19=\"AL1\",1,0)","v":0}]
[]
[{"$nulls":3},1.2,"Programme Development: Process, Content, Structure and Teaching-Learning Methods",null,"Achievement Level          (AL)","AL Descriptor","Strength/ Commendation","Steps taken to maintain and enhance the strengths/\nCurrent Practices","Areas of concern/ Weakness/ Condition ","Steps taken to address the problem areas "]
[{"$nulls":3},"1.2.1"," The department must have sufficient autonomy to design the curriculum and to utilise the allocated resources necessary for its implementation. \n(Where applicable, the above provision must also cover collaborative programmes and programmes franchised to, or from, other HEPs in accordance with national policies.) ",null,null,{"$f":"VLOOKUP(G23,$BA$5:$BR$9,7)","v":{"$error":"#N/A"}}]
[{"$nulls":7},{"$f":"VLOOKUP(G24,$BA$5:$BR$9,7)","v":{"$error":"#N/A"}}]
[{"$nulls":4},{"$f":"IF(AND(I23=\"\",J23=\"\",K23=\"\",L23=\"\"),\"INPUT ERROR! Please provide remarks\",\" \")","v":"INPUT ERROR! Please provide remarks"},{"$nulls":23},{"$f":"IF(G23=\"\",FALSE,TRUE)","v":false},{"$f":"AC25","v":false},{"$f":"IF(G23=\"AL5\",5,0)","v":0},{"$f":"IF(G23=\"AL4\",4,0)","v":0},{"$f":"IF(G23=\"AL3\",3,0)","v":0},{"$f":"IF(G23=\"AL2\",2,0)","v":0},{"$f":"IF(G23=\"AL1\",1,0)","v":0},{"$f":"IF(AND(K23=\"\",L23=\"\"),TRUE,FALSE)","v":true},{"$f":"IF(AND(K24=\"\",L24=\"\"),TRUE,FALSE)","v":true},null,{"$f":"COUNTIF(AE25:AI25,0)","v":5},{"$f":"IF((E25=\" \"),TRUE,FALSE)","v":false},{"$f":"COUNTIF(AE25:AI25,5)","v":0},{"$f":"COUNTIF(AE25:AI25,4)","v":0},{"$f":"COUNTIF(AE25:AI25,2)","v":0},{"$f":"COUNTIF(AE25:AI25,1)","v":0},null,{"$f":"IF(G24=\"AL5\",5,0)","v":0},{"$f":"IF(G24=\"AL4\",4,0)","v":0},{"$f":"IF(G24=\"AL3\",3,0)","v":0},{"$f":"IF(G24=\"AL2\",2,0)","v":0},{"$f":"IF(G24=\"AL1\",1,0)","v":0}]
[{"$nulls":3},"1.2.2","The department must have an appropriate process to develop the curriculum leading to the approval by the highest academic authority in the HEP.\n(This standards must be read together with standards 1.1.2 in Area 1 and standards 6.1.6 \nin Area 6) ",null,null,{"$f":"VLOOKUP(G26,$BA$5:$BR$9,8)","v":{"$error":"#N/A"}}]
[{"$nulls":7},{"$f":"VLOOKUP(G27,$BA$5:$BR$9,8)","v":{"$error":"#N/A"}}]
[{"$nulls":4},{"$f":"IF(AND(I26=\"\",J26=\"\",K26=\"\",L26=\"\"),\"INPUT ERROR! Please provide remarks\",\" \")","v":"INPUT ERROR! Please provide remarks"},{"$nulls":24},{"$f":"IF(G26=\"\",FALSE,TRUE)","v":false},{"$f":"IF(G26=\"AL5\",5,0)","v":0},{"$f":"IF(G26=\"AL4\",4,0)","v":0},{"$f":"IF(G26=\"AL3\",3,0)","v":0},{"$f":"IF(G26=\"AL2\",2,0)","v":0},{"$f":"IF(G26=\"AL1\",1,0)","v":0},{"$f":"IF(AND(K26=\"\",L26=\"\"),TRUE,FALSE)","v":true},{"$f":"IF(AND(K27=\"\",L27=\"\"),TRUE,FALSE)","v":true},null,{"$f":"COUNTIF(AE28:AI28,0)","v":5},{"$f":"IF((E28=\" \"),TRUE,FALSE)","v":false},{"$f":"COUNTIF(AE28:AI28,5)","v":0},{"$f":"COUNTIF(AE28:AI28,4)","v":0},{"$f":"COUNTIF(AE28:AI28,2)","v":0},{"$f":"COUNTIF(AE28:AI28,1)","v":0},null,{"$f":"IF(G27=\"AL5\",5,0)","v":0},{"$f":"IF(G27=\"AL4\",4,0)","v":0},{"$f":"IF(G27=\"AL3\",3,0)","v":0},{"$f":"IF(G27=\"AL2\",2,0)","v":0},{"$f":"IF(G27=\"AL1\",1,0)","v":0}]
[{"$nulls":3},"1.2.3","The department must consult the stakeholders in the development of the curriculum including educational experts as appropriate.\n(This standard must be read together with standard 7.1.4 \nin Area 7) ",null,null,{"$f":"VLOOKUP(G29,$BA$5:$BR$9,9)","v":{"$error":"#N/A"}}]
[{"$nulls":7},{"$f":"VLOOKUP(G30,$BA$5:$BR$9,9)","v":{"$error":"#N/A"}}]
[{"$nulls":4},{"$f":"IF(AND(I29=\"\",J29=\"\",K29=\"\",L29=\"\"),\"INPUT ERROR! Please provide remarks\",\" \")","v":"INPUT ERROR! Please provide remarks"},{"$nulls":24},{"$f":"IF(G29=\"\",FALSE,TRUE)","v":false},{"$f":"IF(G29=\"AL5\",5,0)","v":0},{"$f":"IF(G29=\"AL4\",4,0)","v":0},{"$f":"IF(G29=\"AL3\",3,0)","v":0},{"$f":"IF(G29=\"AL2\",2,0)","v":0},{"$f":"IF(G29=\"AL1\",1,0)","v":0},{"$f":"IF(AND(K29=\"\",L29=\"\"),TRUE,FALSE)","v":true},{"$f":"IF(AND(K30=\"\",L30=\"\"),TRUE,FALSE)","v":true},null,{"$f":"COUNTIF(AE31:AI31,0)","v":5},{"$f":"IF((E31=\" \"),TRUE,FALSE)","v":false},{"$f":"COUNTIF(AE31:AI31,5)","v":0},{"$f":"COUNTIF(AE31:AI31,4)","v":0},{"$f":"COUNTIF(AE31:AI31,2)","v":0},{"$f":"COUNTIF(AE31:AI31,1)","v":0},null,{"$f":"IF(G30=\"AL5\",5,0)","v":0},{"$f":"IF(G30=\"AL4\",4,0)","v":0},{"$f":"IF(G30=\"AL3\",3,0)","v":0},{"$f":"IF(G30=\"AL2\",2,0)","v":0},{"$f":"IF(G30=\"AL1\",1,0)","v":0}]
[{"$nulls":3},"1.2.4","The curriculum must fulfil the requirements of the discipline of study, taking into account the appropriate programme standards, professional and industry requirements as well as good practices in the field.",null,null,{"$f":"VLOOKUP(G32,$BA$5:$BR$9,10)","v":{"$error":"#N/A"}}]
[{"$nulls":7},{"$f":"VLOOKUP(G33,$BA$5:$BR$9,10)","v":{"$error":"#N/A"}}]
[{"$nulls":4},{"$f":"IF(AND(I32=\"\",J32=\"\",K32=\"\",L32=\"\"),\"INPUT ERROR! Please provide remarks\",\" \")","v":"INPUT ERROR! Please provide remarks"},{"$nulls":24},{"$f":"IF(G32=\"\",FALSE,TRUE)","v":false},{"$f":"IF(G32=\"AL5\",5,0)","v":0},{"$f":"IF(G32=\"AL4\",4,0)","v":0},{"$f":"IF(G32=\"AL3\",3,0)","v":0},{"$f":"IF(G32=\"AL2\",2,0)","v":0},{"$f":"IF(G32=\"AL1\",1,0)","v":0},{"$f":"IF(AND(K32=\"\",L32=\"\"),TRUE,FALSE)","v":true},{"$f":"IF(AND(K33=\"\",L33=\"\"),TRUE,FALSE)","v":true},null,{"$f":"COUNTIF(AE34:AI34,0)","v":5},{"$f":"IF((E34=\" \"),TRUE,FALSE)","v":false},{"$f":"COUNTIF(AE34:AI34,5)","v":0},{"$f":"COUNTIF(AE34:AI34,4)","v":0},{"$f":"COUNTIF(AE34:AI34,2)","v":0},{"$f":"COUNTIF(AE34:AI34,1)","v":0},null,{"$f":"IF(G33=\"AL5\",5,0)","v":0},{"$f":"IF(G33=\"AL4\",4,0)","v":0},{"$f":"IF(G33=\"AL3\",3,0)","v":0},{"$f":"IF(G33=\"AL2\",2,0)","v":0},{"$f":"IF(G33=\"AL1\",1,0)","v":0}]
[{"$nulls":3},"1.2.5","There must be an appropriate teaching and learning methods relevant to the programme educational objectives and learning outcomes. ",null,null,{"$f":"VLOOKUP(G35,$BA$5:$BR$9,11)","v":{"$error":"#N/A"}}]
[{"$nulls":7},{"$f":"VLOOKUP(G36,$BA$5:$BR$9,11)","v":{"$error":"#N/A"}}]
[{"$nulls":4},{"$f":"IF(AND(I35=\"\",J35=\"\",K35=\"\",L35=\"\"),\"INPUT ERROR! Please provide remarks\",\" \")","v":"INPUT ERROR! Please provide remarks"},{"$nulls":24},{"$f":"IF(G35=\"\",FALSE,TRUE)","v":false},{"$f":"IF(G35=\"AL5\",5,0)","v":0},{"$f":"IF(G35=\"AL4\",4,0)","v":0},{"$f":"IF(G35=\"AL3\",3,0)","v":0},{"$f":"IF(G35=\"AL2\",2,0)","v":0},{"$f":"IF(G35=\"AL1\",1,0)","v":0},{"$f":"IF(AND(K35=\"\",L35=\"\"),TRUE,FALSE)","v":true},{"$f":"IF(AND(K36=\"\",L36=\"\"),TRUE,FALSE)","v":true},null,{"$f":"COUNTIF(AE37:AI37,0)","v":5},{"$f":"IF((E37=\" \"),TRUE,FALSE)","v":false},{"$f":"COUNTIF(AE37:AI37,5)","v":0},{"$f":"COUNTIF(AE37:AI37,4)","v":0},{"$f":"COUNTIF(AE37:AI37,2)","v":0},{"$f":"COUNTIF(AE37:AI37,1)","v":0},null,{"$f":"IF(G36=\"AL5\",5,0)","v":0},{"$f":"IF(G36=\"AL4\",4,0)","v":0},{"$f":"IF(G36=\"AL3\",3,0)","v":0},{"$f":"IF(G36=\"AL2\",2,0)","v":0},{"$f":"IF(G36=\"AL1\",1,0)","v":0}]
[{"$nulls":3},"1.2.6","There must be co-curricular activities to enrich student experience, and to foster personal development and responsibility.                                                                      \n(This standards may not be applicable to ODL programmes and programmes designed for working-adult learners)",null,null,{"$f":"VLOOKUP(G38,$BA$5:$BR$9,12)","v":{"$error":"#N/A"}}]
[{"$nulls":7},{"$f":"VLOOKUP(G39,$BA$5:$BR$9,12)","v":{"$error":"#N/A"}}]
[{"$nulls":4},{"$f":"IF(AND(I38=\"\",J38=\"\",K38=\"\",L38=\"\"),\"INPUT ERROR! Please provide remarks\",\" \")","v":"INPUT ERROR! Please provide remarks"},{"$nulls":24},{"$f":"IF(G38=\"\",FALSE,TRUE)","v":false},{"$f":"IF(G38=\"AL5\",5,0)","v":0},{"$f":"IF(G38=\"AL4\",4,0)","v":0},{"$f":"IF(G38=\"AL3\",3,0)","v":0},{"$f":"IF(G38=\"AL2\",2,0)","v":0},{"$f":"IF(G38=\"AL1\",1,0)","v":0},{"$f":"IF(AND(K38=\"\",L38=\"\"),TRUE,FALSE)","v":true},{"$f":"IF(AND(K39=\"\",L39=\"\"),TRUE,FALSE)","v":true},null,{"$f":"COUNTIF(AE40:AI40,0)","v":5},{"$f":"IF((E40=\" \"),TRUE,FALSE)","v":false},{"$f":"COUNTIF(AE40:AI40,5)","v":0},{"$f":"COUNTIF(AE40:AI40,4)","v":0},{"$f":"COUNTIF(AE40:AI40,2)","v":0},{"$f":"COUNTIF(AE40:AI40,1)","v":0},null,{"$f":"IF(G39=\"AL5\",5,0)","v":0},{"$f":"IF(G39=\"AL4\",4,0)","v":0},{"$f":"IF(G39=\"AL3\",3,0)","v":0},{"$f":"IF(G39=\"AL2\",2,0)","v":0},{"$f":"IF(G39=\"AL1\",1,0)","v":0}]
[]
[{"$nulls":3},1.3,"Programme Delivery",null,"Achievement Level          (AL)","AL Descriptor","Strength/ Commendation","Steps taken to maintain and enhance the strengths/\nCurrent Practices","Areas of concern/ Weakness/ Condition ","Steps taken to address the problem areas "]
[{"$nulls":3},"1.3.1","The department must take responsibility to ensure the effective delivery of programme learning outcomes.",null,null,{"$f":"VLOOKUP(G43,$BA$5:$BR$9,13)","v":{"$error":"#N/A"}}]
[{"$nulls":7},{"$f":"VLOOKUP(G44,$BA$5:$BR$9,13)","v":{"$error":"#N/A"}}]
[{"$nulls":4},{"$f":"IF(AND(I43=\"\",J43=\"\",K43=\"\",L43=\"\"),\"INPUT ERROR! Please provide remarks\",\" \")","v":"INPUT ERROR! Please provide remarks"},{"$nulls":24},{"$f":"IF(G43=\"\",FALSE,TRUE)","v":false},{"$f":"IF(G43=\"AL5\",5,0)","v":0},{"$f":"IF(G43=\"AL4\",4,0)","v":0},{"$f":"IF(G43=\"AL3\",3,0)","v":0},{"$f":"IF(G43=\"AL2\",2,0)","v":0},{"$f":"IF(G43=\"AL1\",1,0)","v":0},{"$f":"IF(AND(K43=\"\",L43=\"\"),TRUE,FALSE)","v":true},{"$f":"IF(AND(K44=\"\",L44=\"\"),TRUE,FALSE)","v":true},null,{"$f":"COUNTIF(AE45:AI45,0)","v":5},{"$f":"IF((E45=\" \"),TRUE,FALSE)","v":false},{"$f":"COUNTIF(AE45:AI45,5)","v":0},{"$f":"COUNTIF(AE45:AI45,4)","v":0},{"$f":"COUNTIF(AE45:AI45,2)","v":0},{"$f":"COUNTIF(AE45:AI45,1)","v":0},null,{"$f":"IF(G44=\"AL5\",5,0)","v":0},{"$f":"IF(G44=\"AL4\",4,0)","v":0},{"$f":"IF(G44=\"AL3\",3,0)","v":0},{"$f":"IF(G44=\"AL2\",2,0)","v":0},{"$f":"IF(G44=\"AL1\",1,0)","v":0}]
[{"$nulls":3},"1.3.2","Students must be provided with, and briefed on current information about (among others) the objectives, structure, outline, schedule, credit value, learning outcomes, and methods of assessment of the programme at the commencement of their studies. ",null,null,{"$f":"VLOOKUP(G46,$BA$5:$BR$9,14)","v":{"$error":"#N/A"}}]
[{"$nulls":7},{"$f":"VLOOKUP(G47,$BA$5:$BR$9,14)","v":{"$error":"#N/A"}}]
[{"$nulls":4},{"$f":"IF(AND(I46=\"\",J46=\"\",K46=\"\",L46=\"\"),\"INPUT ERROR! Please provide remarks\",\" \")","v":"INPUT ERROR! Please provide remarks"},{"$nulls":24},{"$f":"IF(G46=\"\",FALSE,TRUE)","v":false},{"$f":"IF(G46=\"AL5\",5,0)","v":0},{"$f":"IF(G46=\"AL4\",4,0)","v":0},{"$f":"IF(G46=\"AL3\",3,0)","v":0},{"$f":"IF(G46=\"AL2\",2,0)","v":0},{"$f":"IF(G46=\"AL1\",1,0)","v":0},{"$f":"IF(AND(K46=\"\",L46=\"\"),TRUE,FALSE)","v":true},{"$f":"IF(AND(K47=\"\",L47=\"\"),TRUE,FALSE)","v":true},null,{"$f":"COUNTIF(AE48:AI48,0)","v":5},{"$f":"IF((E48=\" \"),TRUE,FALSE)","v":false},{"$f":"COUNTIF(AE48:AI48,5)","v":0},{"$f":"COUNTIF(AE48:AI48,4)","v":0},{"$f":"COUNTIF(AE48:AI48,2)","v":0},{"$f":"COUNTIF(AE48:AI48,1)","v":0},null,{"$f":"IF(G47=\"AL5\",5,0)","v":0},{"$f":"IF(G47=\"AL4\",4,0)","v":0},{"$f":"IF(G47=\"AL3\",3,0)","v":0},{"$f":"IF(G47=\"AL2\",2,0)","v":0},{"$f":"IF(G47=\"AL1\",1,0)","v":0}]
[{"$nulls":3},"1.3.3","The programme must have an appropriate full-time coordinator and a team of academic staff (e.g., a programme committee) with adequate authority for the effective delivery of the programme. \n(This standard must be read together with related Programme Standards and Guidelines to Good Practices, and with standards 6.1.1 and 6.2.2 in Area 6) ",null,null,{"$f":"VLOOKUP(G49,$BA$5:$BR$9,15)","v":{"$error":"#N/A"}}]
[{"$nulls":7},{"$f":"VLOOKUP(G50,$BA$5:$BR$9,15)","v":{"$error":"#N/A"}}]
[{"$nulls":4},{"$f":"IF(AND(I49=\"\",J49=\"\",K49=\"\",L49=\"\"),\"INPUT ERROR! Please provide remarks\",\" \")","v":"INPUT ERROR! Please provide remarks"},{"$nulls":24},{"$f":"IF(G49=\"\",FALSE,TRUE)","v":false},{"$f":"IF(G49=\"AL5\",5,0)","v":0},{"$f":"IF(G49=\"AL4\",4,0)","v":0},{"$f":"IF(G49=\"AL3\",3,0)","v":0},{"$f":"IF(G49=\"AL2\",2,0)","v":0},{"$f":"IF(G49=\"AL1\",1,0)","v":0},{"$f":"IF(AND(K49=\"\",L49=\"\"),TRUE,FALSE)","v":true},{"$f":"IF(AND(K50=\"\",L50=\"\"),TRUE,FALSE)","v":true},null,{"$f":"COUNTIF(AE51:AI51,0)","v":5},{"$f":"IF((E51=\" \"),TRUE,FALSE)","v":false},{"$f":"COUNTIF(AE51:AI51,5)","v":0},{"$f":"COUNTIF(AE51:AI51,4)","v":0},{"$f":"COUNTIF(AE51:AI51,2)","v":0},{"$f":"COUNTIF(AE51:AI51,1)","v":0},null,{"$f":"IF(G50=\"AL5\",5,0)","v":0},{"$f":"IF(G50=\"AL4\",4,0)","v":0},{"$f":"IF(G50=\"AL3\",3,0)","v":0},{"$f":"IF(G50=\"AL2\",2,0)","v":0},{"$f":"IF(G50=\"AL1\",1,0)","v":0}]
[{"$nulls":3},"1.3.4","The department must provide students with a conducive learning environment.\n(This standard must be read together with standards 5.1.1 \nin Area 5)",null,null,{"$f":"VLOOKUP(G52,$BA$5:$BR$9,16)","v":{"$error":"#N/A"}}]
[{"$nulls":7},{"$f":"VLOOKUP(G53,$BA$5:$BR$9,16)","v":{"$error":"#N/A"}}]
[{"$nulls":4},{"$f":"IF(AND(I52=\"\",J52=\"\",K52=\"\",L52=\"\"),\"INPUT ERROR! Please provide remarks\",\" \")","v":"INPUT ERROR! Please provide remarks"},{"$nulls":24},{"$f":"IF(G52=\"\",FALSE,TRUE)","v":false},{"$f":"IF(G52=\"AL5\",5,0)","v":0},{"$f":"IF(G52=\"AL4\",4,0)","v":0},{"$f":"IF(G52=\"AL3\",3,0)","v":0},{"$f":"IF(G52=\"AL2\",2,0)","v":0},{"$f":"IF(G52=\"AL1\",1,0)","v":0},{"$f":"IF(AND(K52=\"\",L52=\"\"),TRUE,FALSE)","v":true},{"$f":"IF(AND(K53=\"\",L53=\"\"),TRUE,FALSE)","v":true},null,{"$f":"COUNTIF(AE54:AI54,0)","v":5},{"$f":"IF((E54=\" \"),TRUE,FALSE)","v":false},{"$f":"COUNTIF(AE54:AI54,5)","v":0},{"$f":"COUNTIF(AE54:AI54,4)","v":0},{"$f":"COUNTIF(AE54:AI54,2)","v":0},{"$f":"COUNTIF(AE54:AI54,1)","v":0},null,{"$f":"IF(G53=\"AL5\",5,0)","v":0},{"$f":"IF(G53=\"AL4\",4,0)","v":0},{"$f":"IF(G53=\"AL3\",3,0)","v":0},{"$f":"IF(G53=\"AL2\",2,0)","v":0},{"$f":"IF(G53=\"AL1\",1,0)","v":0}]
[{"$nulls":3},"1.3.5","The department must encourage innovations in teaching, learning and assessment.",null,null,{"$f":"VLOOKUP(G55,$BA$5:$BR$9,17)","v":{"$error":"#N/A"}}]
[{"$nulls":7},{"$f":"VLOOKUP(G56,$BA$5:$BR$9,17)","v":{"$error":"#N/A"}}]
[{"$nulls":4},{"$f":"IF(AND(I55=\"\",J55=\"\",K55=\"\",L55=\"\"),\"INPUT ERROR! Please provide remarks\",\" \")","v":"INPUT ERROR! Please provide remarks"},{"$nulls":24},{"$f":"IF(G55=\"\",FALSE,TRUE)","v":false},{"$f":"IF(G55=\"AL5\",5,0)","v":0},{"$f":"IF(G55=\"AL4\",4,0)","v":0},{"$f":"IF(G55=\"AL3\",3,0)","v":0},{"$f":"IF(G55=\"AL2\",2,0)","v":0},{"$f":"IF(G55=\"AL1\",1,0)","v":0},{"$f":"IF(AND(K55=\"\",L55=\"\"),TRUE,FALSE)","v":true},{"$f":"IF(AND(K56=\"\",L56=\"\"),TRUE,FALSE)","v":true},null,{"$f":"COUNTIF(AE57:AI57,0)","v":5},{"$f":"IF((E57=\" \"),TRUE,FALSE)","v":false},{"$f":"COUNTIF(AE57:AI57,5)","v":0},{"$f":"COUNTIF(AE57:AI57,4)","v":0},{"$f":"COUNTIF(AE57:AI57,2)","v":0},{"$f":"COUNTIF(AE57:AI57,1)","v":0},null,{"$f":"IF(G56=\"AL5\",5,0)","v":0},{"$f":"IF(G56=\"AL4\",4,0)","v":0},{"$f":"IF(G56=\"AL3\",3,0)","v":0},{"$f":"IF(G56=\"AL2\",2,0)","v":0},{"$f":"IF(G56=\"AL1\",1,0)","v":0}]
[{"$nulls":3},"1.3.6","The department must obtain feedback from stakeholders  to improve the delivery of the programme outcomes.",null,null,{"$f":"VLOOKUP(G58,$BA$5:$BR$9,18)","v":{"$error":"#N/A"}}]
[{"$nulls":7},{"$f":"VLOOKUP(G59,$BA$5:$BR$9,18)","v":{"$error":"#N/A"}}]
[{"$nulls":4},{"$f":"IF(AND(I58=\"\",J58=\"\",K58=\"\",L58=\"\"),\"INPUT ERROR! Please provide remarks\",\" \")","v":"INPUT ERROR! Please provide remarks"},{"$nulls":24},{"$f":"IF(G58=\"\",FALSE,TRUE)","v":false},{"$f":"IF(G58=\"AL5\",5,0)","v":0},{"$f":"IF(G58=\"AL4\",4,0)","v":0},{"$f":"IF(G58=\"AL3\",3,0)","v":0},{"$f":"IF(G58=\"AL2\",2,0)","v":0},{"$f":"IF(G58=\"AL1\",1,0)","v":0},{"$f":"IF(AND(K58=\"\",L58=\"\"),TRUE,FALSE)","v":true},{"$f":"IF(AND(K59=\"\",L59=\"\"),TRUE,FALSE)","v":true},null,{"$f":"COUNTIF(AE60:AI60,0)","v":5},{"$f":"IF((E60=\" \"),TRUE,FALSE)","v":false},{"$f":"COUNTIF(AE60:AI60,5)","v":0},{"$f":"COUNTIF(AE60:AI60,4)","v":0},{"$f":"COUNTIF(AE60:AI60,2)","v":0},{"$f":"COUNTIF(AE60:AI60,1)","v":0},null,{"$f":"IF(G59=\"AL5\",5,0)","v":0},{"$f":"IF(G59=\"AL4\",4,0)","v":0},{"$f":"IF(G59=\"AL3\",3,0)","v":0},{"$f":"IF(G59=\"AL2\",2,0)","v":0},{"$f":"IF(G59=\"AL1\",1,0)","v":0}]
[]
[]
[{"$nulls":29},{"$f":"IF(AND(AD8:AD60,AN8:AN60),TRUE,FALSE)","v":false},{"$nulls":5},{"$f":"IF(AND(AJ8:AJ61),TRUE,FALSE)","v":true},{"$f":"IF(AND(AK8:AK61),TRUE,FALSE)","v":true}]
[]
[{"$nulls":29},{"$f":"COUNTA(AD8:AD60)","v":17},{"$f":"COUNTIF(AE8:AE60,5)","v":0},{"$f":"COUNTIF(AF8:AF60,4)","v":0},{"$f":"COUNTIF(AG8:AG60,3)","v":0},{"$f":"COUNTIF(AH8:AH60,2)","v":0},{"$f":"COUNTIF(AI8:AI60,1)","v":0},{"$nulls":10},{"$f":"COUNTIF(AT8:AT60,5)","v":0},{"$f":"COUNTIF(AU8:AU60,4)","v":0},{"$f":"COUNTIF(AV8:AV60,3)","v":0},{"$f":"COUNTIF(AW8:AW60,2)","v":0},{"$f":"COUNTIF(AX8:AX60,1)","v":0}]

{"sheet":"Sheet1 (2)","index":4,"n_rows":59,"n_cols":64,"rows_kept":59,"merged":[[5,4,6,4],[7,4,7,11],[8,4,9,4],[10,4,10,11],[13,4,14,4],[15,4,15,11],[16,4,17,4],[18,4,18,11],[19,4,20,4],[21,4,21,11],[22,4,23,4],[24,4,24,11],[27,4,28,4],[29,4,29,11],[30,4,31,4],[32,4,32,11],[33,4,34,4],[35,4,35,11],[36,4,37,4],[38,4,38,11],[39,4,40,4],[41,4,41,11]]}
[{"$nulls":6},"Evaluation Instrument of COPPA 2nd Edition (2017)"]
[]
[{"$nulls":6},"AREA 2: ASSESSMENT OF STUDENT LEARNING"]
[]
[{"$nulls":3},2.1,"Relationship between Assessment and Learning Outcomes",null,"Achievement Level          (AL)","AL Descriptor","Strength/ Commendation","Steps taken to maintain and enhance the strengths/\nCurrent Practices","Areas of concern/ Weakness/ Condition ","Steps taken to address the problem areas ",{"$nulls":17},"√",{"$nulls":22},"AL1","Not aligned at all","Not reviewed at all","Not varied at all","No mechanism at all ","Not documented and communicated at all","No established procedures and not communicated to students","Do not have autonomy at all","No mechanism at all ","Not communicated at all","No guidelines and mechanisms","Not reviewed and acted on at all"]
[{"$nulls":3},"2.1.1","Assessment principles, methods and practices must be aligned to the learning outcomes of the programme, consistent with the levels defined in the MQF.",null,null,{"$f":"VLOOKUP(G6,$BA$5:$BR$11,2)","v":{"$error":"#N/A"}},{"$nulls":44},"AL2","Poorly aligned","Not systematically and regularly reviewed","Poorly varied","Poor mechanisms"," Poorly documented and communicated","Poorly followed established procedures and not fully communicated to students","Poor autonomy","Poor mechanisms","Poorly communicated","Inadequate guidelines and mechanisms","Irregularly reviewed and acted on"]
[{"$nulls":7},{"$f":"VLOOKUP(G7,$BA$5:$BR$11,2)","v":{"$error":"#N/A"}},{"$nulls":44},"AL3","Aligned","Systematically and regularly reviewed","Adequately varied","Adequate mechanisms","Documented and communicated","Followed established procedures and communicated to students","Adequate autonomy","Adequate mechanisms","Adequately communicated","Documented guidelines and appropriate mechanisms","Periodically reviewed and acted on"]
[{"$nulls":4},{"$f":"IF(AND(I6=\"\",J6=\"\",K6=\"\",L6=\"\"),\"INPUT ERROR! Please provide remarks\",\" \")","v":"INPUT ERROR! Please provide remarks"},{"$nulls":24},{"$f":"IF(G6=\"\",FALSE,TRUE)","v":false},{"$f":"IF(G6=\"AL5\",5,0)","v":0},{"$f":"IF(G6=\"AL4\",4,0)","v":0},{"$f":"IF(G6=\"AL3\",3,0)","v":0},{"$f":"IF(G6=\"AL2\",2,0)","v":0},{"$f":"IF(G6=\"AL1\",1,0)","v":0},{"$f":"IF(AND(K6=\"\",L6=\"\"),TRUE,FALSE)","v":true},{"$f":"IF(AND(K7=\"\",L7=\"\"),TRUE,FALSE)","v":true},null,{"$f":"COUNTIF(AE8:AI8,0)","v":5},{"$f":"IF((E8=\" \"),TRUE,FALSE)","v":false},{"$f":"COUNTIF(AE8:AI8,5)","v":0},{"$f":"COUNTIF(AE8:AI8,4)","v":0},{"$f":"COUNTIF(AE8:AI8,2)","v":0},{"$f":"COUNTIF(AE8:AI8,1)","v":0},null,{"$f":"IF(G7=\"AL5\",5,0)","v":0},{"$f":"IF(G7=\"AL4\",4,0)","v":0},{"$f":"IF(G7=\"AL3\",3,0)","v":0},{"$f":"IF(G7=\"AL2\",2,0)","v":0},{"$f":"IF(G7=\"AL1\",1,0)","v":0},null,null,"AL4","Well aligned","Very systematically and regularly reviewed","Well varied","Ample mechanisms","Well documented and communicated","Well followed established procedures and communicated to students","High degree of autonomy","Ample mechanisms","Well communicated","Documented guidelines and ample mechanisms","Regularly reviewed and periodically acted on"]
[{"$nulls":3},"2.1.2","The alignment between assessment and the achievement of learning outcomes in the programme must be systematically and regularly reviewed to ensure its effectiveness.  ",null,null,{"$f":"VLOOKUP(G9,$BA$5:$BR$11,3)","v":{"$error":"#N/A"}},{"$nulls":44},"AL5","Very well aligned","Very systematically and constantly reviewed","Very well varied","Very ample mechanisms","Very well documented and communicated","Very well followed established procedures and communicated to all students","Very high degree of autonomy","Very ample mechanisms","Very well communicated","Well documented guidelines and ample mechanisms","Regularly reviewed and constantly acted on"]
[{"$nulls":7},{"$f":"VLOOKUP(G10,$BA$5:$BR$11,3)","v":{"$error":"#N/A"}}]
[{"$nulls":4},{"$f":"IF(AND(I9=\"\",J9=\"\",K9=\"\",L9=\"\"),\"INPUT ERROR! Please provide remarks\",\" \")","v":"INPUT ERROR! Please provide remarks"},{"$nulls":24},{"$f":"IF(G9=\"\",FALSE,TRUE)","v":false},{"$f":"IF(G9=\"AL5\",5,0)","v":0},{"$f":"IF(G9=\"AL4\",4,0)","v":0},{"$f":"IF(G9=\"AL3\",3,0)","v":0},{"$f":"IF(G9=\"AL2\",2,0)","v":0},{"$f":"IF(G9=\"AL1\",1,0)","v":0},{"$f":"IF(AND(K9=\"\",L9=\"\"),TRUE,FALSE)","v":true},{"$f":"IF(AND(K10=\"\",L10=\"\"),TRUE,FALSE)","v":true},null,{"$f":"COUNTIF(AE11:AI11,0)","v":5},{"$f":"IF((E11=\" \"),TRUE,FALSE)","v":false},{"$f":"COUNTIF(AE11:AI11,5)","v":0},{"$f":"COUNTIF(AE11:AI11,4)","v":0},{"$f":"COUNTIF(AE11:AI11,2)","v":0},{"$f":"COUNTIF(AE11:AI11,1)","v":0},null,{"$f":"IF(G10=\"AL5\",5,0)","v":0},{"$f":"IF(G10=\"AL4\",4,0)","v":0},{"$f":"IF(G10=\"AL3\",3,0)","v":0},{"$f":"IF(G10=\"AL2\",2,0)","v":0},{"$f":"IF(G10=\"AL1\",1,0)","v":0}]
[{"$nulls":4},".  "]
[{"$nulls":3},2.2,"Assessment Methods ",null,"Achievement Level          (AL)","AL Descriptor","Strength/ Commendation","Steps taken to maintain and enhance the strengths/\nCurrent Practices","Areas of concern/ Weakness/ Condition ","Steps taken to address the problem areas "]
[{"$nulls":3},"2.2.1","There must be a variety of methods and tools that are appropriate for the assessment of learning outcomes and competencies. ",null,null,{"$f":"VLOOKUP(G14,$BA$5:$BR$11,4)","v":{"$error":"#N/A"}}]
[{"$nulls":7},{"$f":"VLOOKUP(G15,$BA$5:$BR$11,4)","v":{"$error":"#N/A"}}]
[{"$nulls":4},{"$f":"IF(AND(I14=\"\",J14=\"\",K14=\"\",L14=\"\"),\"INPUT ERROR! Please provide remarks\",\" \")","v":"INPUT ERROR! Please provide remarks"},{"$nulls":24},{"$f":"IF(G14=\"\",FALSE,TRUE)","v":false},{"$f":"IF(G14=\"AL5\",5,0)","v":0},{"$f":"IF(G14=\"AL4\",4,0)","v":0},{"$f":"IF(G14=\"AL3\",3,0)","v":0},{"$f":"IF(G14=\"AL2\",2,0)","v":0},{"$f":"IF(G14=\"AL1\",1,0)","v":0},{"$f":"IF(AND(K14=\"\",L14=\"\"),TRUE,FALSE)","v":true},{"$f":"IF(AND(K15=\"\",L15=\"\"),TRUE,FALSE)","v":true},null,{"$f":"COUNTIF(AE16:AI16,0)","v":5},{"$f":"IF((E16=\" \"),TRUE,FALSE)","v":false},{"$f":"COUNTIF(AE16:AI16,5)","v":0},{"$f":"COUNTIF(AE16:AI16,4)","v":0},{"$f":"COUNTIF(AE16:AI16,2)","v":0},{"$f":"COUNTIF(AE16:AI16,1)","v":0},null,{"$f":"IF(G15=\"AL5\",5,0)","v":0},{"$f":"IF(G15=\"AL4\",4,0)","v":0},{"$f":"IF(G15=\"AL3\",3,0)","v":0},{"$f":"IF(G15=\"AL2\",2,0)","v":0},{"$f":"IF(G15=\"AL1\",1,0)","v":0}]
[{"$nulls":3},"2.2.2","There must be mechanisms to ensure, and to periodically review, the validity, reliability, currency and fairness of the assessment methods.",null,null,{"$f":"VLOOKUP(G17,$BA$5:$BR$11,5)","v":{"$error":"#N/A"}}]
[{"$nulls":7},{"$f":"VLOOKUP(G18,$BA$5:$BR$11,5)","v":{"$error":"#N/A"}}]
[{"$nulls":4},{"$f":"IF(AND(I17=\"\",J17=\"\",K17=\"\",L17=\"\"),\"INPUT ERROR! Please provide remarks\",\" \")","v":"INPUT ERROR! Please provide remarks"},{"$nulls":24},{"$f":"IF(G17=\"\",FALSE,TRUE)","v":false},{"$f":"IF(G17=\"AL5\",5,0)","v":0},{"$f":"IF(G17=\"AL4\",4,0)","v":0},{"$f":"IF(G17=\"AL3\",3,0)","v":0},{"$f":"IF(G17=\"AL2\",2,0)","v":0},{"$f":"IF(G17=\"AL1\",1,0)","v":0},{"$f":"IF(AND(K17=\"\",L17=\"\"),TRUE,FALSE)","v":true},{"$f":"IF(AND(K18=\"\",L18=\"\"),TRUE,FALSE)","v":true},null,5,{"$f":"IF((E19=\" \"),TRUE,FALSE)","v":false},0,0,0,0,null,{"$f":"IF(G18=\"AL5\",5,0)","v":0},{"$f":"IF(G18=\"AL4\",4,0)","v":0},{"$f":"IF(G18=\"AL3\",3,0)","v":0},{"$f":"IF(G18=\"AL2\",2,0)","v":0},{"$f":"IF(G18=\"AL1\",1,0)","v":0}]
[{"$nulls":3},"2.2.3","The frequency, methods, and criteria of student assessment -- including the grading criteria and appeal policies -- must be documented and communicated to students on the commencement of the programme",null,null,{"$f":"VLOOKUP(G20,$BA$5:$BR$11,6)","v":{"$error":"#N/A"}}]
[{"$nulls":7},{"$f":"VLOOKUP(G21,$BA$5:$BR$11,6)","v":{"$error":"#N/A"}}]
[{"$nulls":4},{"$f":"IF(AND(I20=\"\",J20=\"\",K20=\"\",L20=\"\"),\"INPUT ERROR! Please provide remarks\",\" \")","v":"INPUT ERROR! Please provide remarks"},{"$nulls":24},{"$f":"IF(G20=\"\",FALSE,TRUE)","v":false},{"$f":"IF(G20=\"AL5\",5,0)","v":0},{"$f":"IF(G20=\"AL4\",4,0)","v":0},{"$f":"IF(G20=\"AL3\",3,0)","v":0},{"$f":"IF(G20=\"AL2\",2,0)","v":0},{"$f":"IF(G20=\"AL1\",1,0)","v":0},{"$f":"IF(AND(K20=\"\",L20=\"\"),TRUE,FALSE)","v":true},{"$f":"IF(AND(K21=\"\",L21=\"\"),TRUE,FALSE)","v":true},null,5,{"$f":"IF((E22=\" \"),TRUE,FALSE)","v":false},0,0,0,0,null,{"$f":"IF(G21=\"AL5\",5,0)","v":0},{"$f":"IF(G21=\"AL4\",4,0)","v":0},{"$f":"IF(G21=\"AL3\",3,0)","v":0},{"$f":"IF(G21=\"AL2\",2,0)","v":0},{"$f":"IF(G21=\"AL1\",1,0)","v":0}]
[{"$nulls":3},"2.2.4","Changes to student assessment  methods must follow established procedures and regulations and be communicated to the student prior to their implementation.  ",null,null,{"$f":"VLOOKUP(G23,$BA$5:$BR$11,7)","v":{"$error":"#N/A"}}]
[{"$nulls":7},{"$f":"VLOOKUP(G24,$BA$5:$BR$11,7)","v":{"$error":"#N/A"}}]
[{"$nulls":4},{"$f":"IF(AND(I23=\"\",J23=\"\",K23=\"\",L23=\"\"),\"INPUT ERROR! Please provide remarks\",\" \")","v":"INPUT ERROR! Please provide remarks"},{"$nulls":24},{"$f":"IF(G23=\"\",FALSE,TRUE)","v":false},{"$f":"IF(G23=\"AL5\",5,0)","v":0},{"$f":"IF(G23=\"AL4\",4,0)","v":0},{"$f":"IF(G23=\"AL3\",3,0)","v":0},{"$f":"IF(G23=\"AL2\",2,0)","v":0},{"$f":"IF(G23=\"AL1\",1,0)","v":0},{"$f":"IF(AND(K23=\"\",L23=\"\"),TRUE,FALSE)","v":true},{"$f":"IF(AND(K24=\"\",L24=\"\"),TRUE,FALSE)","v":true},null,5,{"$f":"IF((E25=\" \"),TRUE,FALSE)","v":false},0,0,0,0,null,{"$f":"IF(G24=\"AL5\",5,0)","v":0},{"$f":"IF(G24=\"AL4\",4,0)","v":0},{"$f":"IF(G24=\"AL3\",3,0)","v":0},{"$f":"IF(G24=\"AL2\",2,0)","v":0},{"$f":"IF(G24=\"AL1\",1,0)","v":0}]
[]
[{"$nulls":3},2.3,"Management of Student Assessment",null,"Achievement Level          (AL)","AL Descriptor","Strength/ Commendation","Steps taken to maintain and enhance the strengths/\nCurrent Practices","Areas of concern/ Weakness/ Condition ","Steps taken to address the problem areas "]
[{"$nulls":3},"2.3.1","The department and its academic staff must have adequate level of autonomy in the management of student assessment. \n(This standard may not be applicable to certain programme arrangements)",null,null,{"$f":"VLOOKUP(G28,$BA$5:$BR$11,8)","v":{"$error":"#N/A"}}]
[{"$nulls":7},{"$f":"VLOOKUP(G29,$BA$5:$BR$11,8)","v":{"$error":"#N/A"}}]
[{"$nulls":4},{"$f":"IF(AND(I28=\"\",J28=\"\",K28=\"\",L28=\"\"),\"INPUT ERROR! Please provide remarks\",\" \")","v":"INPUT ERROR! Please provide remarks"},{"$nulls":23},{"$f":"IF(G28=\"\",FALSE,TRUE)","v":false},true,{"$f":"IF(G28=\"AL5\",5,0)","v":0},{"$f":"IF(G28=\"AL4\",4,0)","v":0},{"$f":"IF(G28=\"AL3\",3,0)","v":0},{"$f":"IF(G28=\"AL2\",2,0)","v":0},{"$f":"IF(G28=\"AL1\",1,0)","v":0},{"$f":"IF(AND(K28=\"\",L28=\"\"),TRUE,FALSE)","v":true},{"$f":"IF(AND(K29=\"\",L29=\"\"),TRUE,FALSE)","v":true},null,5,{"$f":"IF((E30=\" \"),TRUE,FALSE)","v":false},0,0,0,0,null,{"$f":"IF(G29=\"AL5\",5,0)","v":0},{"$f":"IF(G29=\"AL4\",4,0)","v":0},{"$f":"IF(G29=\"AL3\",3,0)","v":0},{"$f":"IF(G29=\"AL2\",2,0)","v":0},{"$f":"IF(G29=\"AL1\",1,0)","v":0}]
[{"$nulls":3},"2.3.2","There must be mechanisms to ensure the security of assessment documents and records.",null,null,{"$f":"VLOOKUP(G31,$BA$5:$BR$11,9)","v":{"$error":"#N/A"}}]
[{"$nulls":7},{"$f":"VLOOKUP(G32,$BA$5:$BR$11,9)","v":{"$error":"#N/A"}}]
[{"$nulls":4},{"$f":"IF(AND(I31=\"\",J31=\"\",K31=\"\",L31=\"\"),\"INPUT ERROR! Please provide remarks\",\" \")","v":"INPUT ERROR! Please provide remarks"},{"$nulls":24},{"$f":"IF(G31=\"\",FALSE,TRUE)","v":false},{"$f":"IF(G31=\"AL5\",5,0)","v":0},{"$f":"IF(G31=\"AL4\",4,0)","v":0},{"$f":"IF(G31=\"AL3\",3,0)","v":0},{"$f":"IF(G31=\"AL2\",2,0)","v":0},{"$f":"IF(G31=\"AL1\",1,0)","v":0},{"$f":"IF(AND(K31=\"\",L31=\"\"),TRUE,FALSE)","v":true},{"$f":"IF(AND(K32=\"\",L32=\"\"),TRUE,FALSE)","v":true},null,5,{"$f":"IF((E33=\" \"),TRUE,FALSE)","v":false},0,0,0,0,null,{"$f":"IF(G32=\"AL5\",5,0)","v":0},{"$f":"IF(G32=\"AL4\",4,0)","v":0},{"$f":"IF(G32=\"AL3\",3,0)","v":0},{"$f":"IF(G32=\"AL2\",2,0)","v":0},{"$f":"IF(G32=\"AL1\",1,0)","v":0}]
[{"$nulls":3},"2.3.3","The assessment results must be communicated to the student before the commencement of a new semester to facilitate  progression decision. ",null,null,{"$f":"VLOOKUP(G34,$BA$5:$BR$11,10)","v":{"$error":"#N/A"}}]
[{"$nulls":7},{"$f":"VLOOKUP(G35,$BA$5:$BR$11,10)","v":{"$error":"#N/A"}}]
[{"$nulls":4},{"$f":"IF(AND(I34=\"\",J34=\"\",K34=\"\",L34=\"\"),\"INPUT ERROR! Please provide remarks\",\" \")","v":"INPUT ERROR! Please provide remarks"},{"$nulls":24},{"$f":"IF(G34=\"\",FALSE,TRUE)","v":false},{"$f":"IF(G34=\"AL5\",5,0)","v":0},{"$f":"IF(G34=\"AL4\",4,0)","v":0},{"$f":"IF(G34=\"AL3\",3,0)","v":0},{"$f":"IF(G34=\"AL2\",2,0)","v":0},{"$f":"IF(G34=\"AL1\",1,0)","v":0},{"$f":"IF(AND(K34=\"\",L34=\"\"),TRUE,FALSE)","v":true},{"$f":"IF(AND(K35=\"\",L35=\"\"),TRUE,FALSE)","v":true},null,5,{"$f":"IF((E36=\" \"),TRUE,FALSE)","v":false},0,0,0,0,null,{"$f":"IF(G35=\"AL5\",5,0)","v":0},{"$f":"IF(G35=\"AL4\",4,0)","v":0},{"$f":"IF(G35=\"AL3\",3,0)","v":0},{"$f":"IF(G35=\"AL2\",2,0)","v":0},{"$f":"IF(G35=\"AL1\",1,0)","v":0}]
[{"$nulls":3},"2.3.4","The department must have  appropriate guidelines and mechanisms for students to appeal their course results.",null,null,{"$f":"VLOOKUP(G37,$BA$5:$BR$11,11)","v":{"$error":"#N/A"}}]
[{"$nulls":7},{"$f":"VLOOKUP(G38,$BA$5:$BR$11,11)","v":{"$error":"#N/A"}}]
[{"$nulls":4},{"$f":"IF(AND(I37=\"\",J37=\"\",K37=\"\",L37=\"\"),\"INPUT ERROR! Please provide remarks\",\" \")","v":"INPUT ERROR! Please provide remarks"},{"$nulls":24},{"$f":"IF(G37=\"\",FALSE,TRUE)","v":false},{"$f":"IF(G37=\"AL5\",5,0)","v":0},{"$f":"IF(G37=\"AL4\",4,0)","v":0},{"$f":"IF(G37=\"AL3\",3,0)","v":0},{"$f":"IF(G37=\"AL2\",2,0)","v":0},{"$f":"IF(G37=\"AL1\",1,0)","v":0},{"$f":"IF(AND(K37=\"\",L37=\"\"),TRUE,FALSE)","v":true},{"$f":"IF(AND(K38=\"\",L38=\"\"),TRUE,FALSE)","v":true},null,5,{"$f":"IF((E39=\" \"),TRUE,FALSE)","v":false},0,0,0,0,null,{"$f":"IF(G38=\"AL5\",5,0)","v":0},{"$f":"IF(G38=\"AL4\",4,0)","v":0},{"$f":"IF(G38=\"AL3\",3,0)","v":0},{"$f":"IF(G38=\"AL2\",2,0)","v":0},{"$f":"IF(G38=\"AL1\",1,0)","v":0}]
[{"$nulls":3},"2.3.5","The department must periodically review the management of student assessment and act on the findings of the review. \n(For MQF level 6 and above, the review must involve external examiners).    ",null,null,{"$f":"VLOOKUP(G40,$BA$5:$BR$11,12)","v":{"$error":"#N/A"}}]
[{"$nulls":7},{"$f":"VLOOKUP(G41,$BA$5:$BR$11,12)","v":{"$error":"#N/A"}}]
[{"$nulls":4},{"$f":"IF(AND(I40=\"\",J40=\"\",K40=\"\",L40=\"\"),\"INPUT ERROR! Please provide remarks\",\" \")","v":"INPUT ERROR! Please provide remarks"},{"$nulls":24},{"$f":"IF(G40=\"\",FALSE,TRUE)","v":false},{"$f":"IF(G40=\"AL5\",5,0)","v":0},{"$f":"IF(G40=\"AL4\",4,0)","v":0},{"$f":"IF(G40=\"AL3\",3,0)","v":0},{"$f":"IF(G40=\"AL2\",2,0)","v":0},{"$f":"IF(G40=\"AL1\",1,0)","v":0},{"$f":"IF(AND(K40=\"\",L40=\"\"),TRUE,FALSE)","v":true},{"$f":"IF(AND(K41=\"\",L41=\"\"),TRUE,FALSE)","v":true},null,5,{"$f":"IF((E42=\" \"),TRUE,FALSE)","v":false},0,0,0,0,null,{"$f":"IF(G41=\"AL5\",5,0)","v":0},{"$f":"IF(G41=\"AL4\",4,0)","v":0},{"$f":"IF(G41=\"AL3\",3,0)","v":0},{"$f":"IF(G41=\"AL2\",2,0)","v":0},{"$f":"IF(G41=\"AL1\",1,0)","v":0}]
{"$rows_empty":14}
[{"$nulls":29},{"$f":"IF(AND(AD8:AD54,AN8:AN54),TRUE,FALSE)","v":false},{"$nulls":5},{"$f":"IF(AND(AJ8:AJ55),TRUE,FALSE)","v":true},{"$f":"IF(AND(AK8:AK55),TRUE,FALSE)","v":true}]
[]
[{"$nulls":29},{"$f":"COUNTA(AD8:AD42)","v":11},{"$f":"COUNTIF(AE8:AE54,5)","v":0},{"$f":"COUNTIF(AF8:AF54,4)","v":0},{"$f":"COUNTIF(AG8:AG54,3)","v":0},{"$f":"COUNTIF(AH8:AH54,2)","v":0},{"$f":"COUNTIF(AI8:AI54,1)","v":0},{"$nulls":10},{"$f":"COUNTIF(AT8:AT54,5)","v":0},{"$f":"COUNTIF(AU8:AU54,4)","v":0},{"$f":"COUNTIF(AV8:AV54,3)","v":0},{"$f":"COUNTIF(AW8:AW54,2)","v":0},{"$f":"COUNTIF(AX8:AX54,1)","v":0}]

{"sheet":"Sheet1 (3)","index":5,"n_rows":79,"n_cols":73,"rows_kept":79,"merged":[[5,4,6,4],[7,4,7,11],[8,4,9,4],[10,4,10,11],[11,4,12,4],[13,4,13,11],[14,4,15,4],[16,4,16,11],[17,4,18,4],[19,4,19,11],[22,4,23,4],[24,4,24,11],[25,4,26,4],[27,4,27,11],[30,4,31,4],[32,4,32,11],[33,4,34,4],[35,4,35,11],[36,4,37,4],[38,4,38,11],[39,4,40,4],[41,4,41,11],[42,4,43,4],[44,4,44,11],[45,4,46,4],[47,4,47,11],[48,4,49,4],[50,4,50,11],[51,4,52,4],[53,4,53,11],[56,4,57,4],[58,4,58,11],[59,4,60,4],[61,4,61,11],[62,4,63,4],[64,4,64,11],[65,4,66,4],[67,4,67,11],[70,4,71,4],[72,4,72,11]]}
[{"$nulls":6},"Evaluation Instrument of COPPA 2nd Edition (2017)"]
[]
[{"$nulls":6},"AREA 3: STUDENT SELECTION AND SUPPORT SERVICES"]
[]
[{"$nulls":3},3.1,"Student Selection",null,"Achievement Level          (AL)","AL Descriptor","Strength/ Commendation","Steps taken to maintain and enhance the strengths/\nCurrent Practices","Areas of concern/ Weakness/ Condition ","Steps taken to address the problem areas ",{"$nulls":17},"√",{"$nulls":22},"AL1","Unclear criteria and processes","Not transparent and objective at all","Not related at all","No policy and mechanisms at all","No remedial support  at all","No policies and mechanisms at all","No mechanism at all ","No support services at all","No unit for planning and implementing  student support  services at all","No induction programme is available","Not provided at all","No mechanism at all ","Unclear processes and procedures","No mechanism at all ","Not evaluated at all","No policies and processes at all","No student representation and organisation","Not facilitated at all","Not facilitated at all","No linkages fostered"]
[{"$nulls":3},"3.1.1","The programme must have  clear criteria and processes for student selection (including that of transfer students) and these must be consistent with applicable requirements.",null,null,{"$f":"VLOOKUP(G6,$BA$5:$BR$10,2)","v":{"$error":"#N/A"}},{"$nulls":44},"AL2","Poor criteria and processes","Not quite transparent and objective","Poorly related","Poor policy and mechanisms","Poor developmental or remedial support ","Poorly-defined and disseminated policies and mechanisms","Poor mechanisms","Poor support services","A unit for planning  and implementing student support services","An induction to the programme is available","Provided by inapproriate staff. ","Poor mechanisms","Poorly defined and documented processes and procedures","Poor mechanisms","Rarely evaluated","Poorly-disseminated policies and processes","Poor student representation and organisation","Poorly facilitated","Poorly facilitated","Linkages poorly fostered"]
[{"$nulls":7},{"$f":"VLOOKUP(G7,$BA$5:$BR$9,2)","v":{"$error":"#N/A"}},{"$nulls":44},"AL3","Clear criteria and processes","Transparent and objective","Related","Clear policy and appropriate mechanisms","Appropriate developmental or remedial support ","Well-defined and effectively disseminated policies and mechanisms","Adequate mechanisms","Appropriate and adequate support services","A designated administrative unit responsible for, staffed by individuals who have appropriate experience","An effective induction to the programme is available","Provided by adequate and qualified staffs. ","Adequate mechanisms","Clearly defined and documented processes and procedures","Adequate mechanisms","Regularly evaluated","Well-disseminated policies and processes","Adequate student representation and organisation","Facilitated","Facilitated","Active linkages fostered"]
[{"$nulls":4},{"$f":"IF(AND(I6=\"\",J6=\"\",K6=\"\",L6=\"\"),\"INPUT ERROR! Please provide remarks\",\" \")","v":"INPUT ERROR! Please provide remarks"},{"$nulls":24},{"$f":"IF(G6=\"\",FALSE,TRUE)","v":false},{"$f":"IF(G6=\"AL5\",5,0)","v":0},{"$f":"IF(G6=\"AL4\",4,0)","v":0},{"$f":"IF(G6=\"AL3\",3,0)","v":0},{"$f":"IF(G6=\"AL2\",2,0)","v":0},{"$f":"IF(G6=\"AL1\",1,0)","v":0},{"$f":"IF(AND(K6=\"\",L6=\"\"),TRUE,FALSE)","v":true},{"$f":"IF(AND(K7=\"\",L7=\"\"),TRUE,FALSE)","v":true},null,{"$f":"COUNTIF(AE8:AI8,0)","v":5},{"$f":"IF((E8=\" \"),TRUE,FALSE)","v":false},{"$f":"COUNTIF(AE8:AI8,5)","v":0},{"$f":"COUNTIF(AE8:AI8,4)","v":0},{"$f":"COUNTIF(AE8:AI8,2)","v":0},{"$f":"COUNTIF(AE8:AI8,1)","v":0},null,{"$f":"IF(G7=\"AL5\",5,0)","v":0},{"$f":"IF(G7=\"AL4\",4,0)","v":0},{"$f":"IF(G7=\"AL3\",3,0)","v":0},{"$f":"IF(G7=\"AL2\",2,0)","v":0},{"$f":"IF(G7=\"AL1\",1,0)","v":0},null,null,"AL4","Very clear criteria and processes","Very transparent and objective","Well related","Clear policy and substantial mechanisms","Ample developmental or remedial support ","Very well-defined and effectively disseminated policies and mechanisms","Ample mechanisms","Appropriate and ample support services","A designated administrative unit responsible for, staffed by qualified individuals who have appropriate experience","A very effective induction to the programme is available","Provided by adequate and well-qualified staffs. ","Ample mechanisms","Very clearly defined and documented processes and procedures","Ample mechanisms","Periodically evaluated","Well-defined and disseminated policies and processes","Ample student representation and organisation","Well facilitated","Well facilitated","Active linkages well fostered"]
[{"$nulls":3},"3.1.2","The criteria and processes of student selection must be transparent and objective.",null,null,{"$f":"VLOOKUP(G9,$BA$5:$BR$10,3)","v":{"$error":"#N/A"}},{"$nulls":44},"AL5","Very clear criteria and processes, and consistent","Very transparent and very objective","Very well related","Very clear policy and correct mechanisms","Abundant developmental or remedial support ","Very well-defined and very effectively disseminated policies and mechanisms","Abundant mechanisms","Very approriate and abundant support services","A designated administrative unit responsible solely for, staffed by qualified individuals with extensive experience","A highly effective induction to the programme is available","Provided by ample and well-qualified, experienced staffs. ","Abundant mechanisms","Very clearly defined and very well-documented processes and procedures","Abundant mechanisms","Constantly evaluated","Very well-defined and very effectively disseminated policies and processes","Abundant student representation and organisation","Very well facilitated","Very well facilitated","Active linkages very well fostered"]
[{"$nulls":7},{"$f":"VLOOKUP(G10,$BA$5:$BR$10,3)","v":{"$error":"#N/A"}}]
[{"$nulls":4},{"$f":"IF(AND(I9=\"\",J9=\"\",K9=\"\",L9=\"\"),\"INPUT ERROR! Please provide remarks\",\" \")","v":"INPUT ERROR! Please provide remarks"},{"$nulls":24},{"$f":"IF(G9=\"\",FALSE,TRUE)","v":false},{"$f":"IF(G9=\"AL5\",5,0)","v":0},{"$f":"IF(G9=\"AL4\",4,0)","v":0},{"$f":"IF(G9=\"AL3\",3,0)","v":0},{"$f":"IF(G9=\"AL2\",2,0)","v":0},{"$f":"IF(G9=\"AL1\",1,0)","v":0},{"$f":"IF(AND(K9=\"\",L9=\"\"),TRUE,FALSE)","v":true},{"$f":"IF(AND(K10=\"\",L10=\"\"),TRUE,FALSE)","v":true},null,{"$f":"COUNTIF(AE11:AI11,0)","v":5},{"$f":"IF((E11=\" \"),TRUE,FALSE)","v":false},{"$f":"COUNTIF(AE11:AI11,5)","v":0},{"$f":"COUNTIF(AE11:AI11,4)","v":0},{"$f":"COUNTIF(AE11:AI11,2)","v":0},{"$f":"COUNTIF(AE11:AI11,1)","v":0},null,{"$f":"IF(G10=\"AL5\",5,0)","v":0},{"$f":"IF(G10=\"AL4\",4,0)","v":0},{"$f":"IF(G10=\"AL3\",3,0)","v":0},{"$f":"IF(G10=\"AL2\",2,0)","v":0},{"$f":"IF(G10=\"AL1\",1,0)","v":0}]
[{"$nulls":3},"3.1.3","Student enrolment must be related to the capacity of the department to effectively deliver the programme. ",null,null,{"$f":"VLOOKUP(G12,$BA$5:$BR$10,4)","v":{"$error":"#N/A"}}]
[{"$nulls":7},{"$f":"VLOOKUP(G13,$BA$5:$BR$10,4)","v":{"$error":"#N/A"}}]
[{"$nulls":4},{"$f":"IF(AND(I12=\"\",J12=\"\",K12=\"\",L12=\"\"),\"INPUT ERROR! Please provide remarks\",\" \")","v":"INPUT ERROR! Please provide remarks"},{"$nulls":24},{"$f":"IF(G12=\"\",FALSE,TRUE)","v":false},{"$f":"IF(G12=\"AL5\",5,0)","v":0},{"$f":"IF(G12=\"AL4\",4,0)","v":0},{"$f":"IF(G12=\"AL3\",3,0)","v":0},{"$f":"IF(G12=\"AL2\",2,0)","v":0},{"$f":"IF(G12=\"AL1\",1,0)","v":0},{"$f":"IF(AND(K12=\"\",L12=\"\"),TRUE,FALSE)","v":true},{"$f":"IF(AND(K13=\"\",L13=\"\"),TRUE,FALSE)","v":true},null,{"$f":"COUNTIF(AE14:AI14,0)","v":5},{"$f":"IF((E14=\" \"),TRUE,FALSE)","v":false},{"$f":"COUNTIF(AE14:AI14,5)","v":0},{"$f":"COUNTIF(AE14:AI14,4)","v":0},{"$f":"COUNTIF(AE14:AI14,2)","v":0},{"$f":"COUNTIF(AE14:AI14,1)","v":0},null,{"$f":"IF(G13=\"AL5\",5,0)","v":0},{"$f":"IF(G13=\"AL4\",4,0)","v":0},{"$f":"IF(G13=\"AL3\",3,0)","v":0},{"$f":"IF(G13=\"AL2\",2,0)","v":0},{"$f":"IF(G13=\"AL1\",1,0)","v":0}]
[{"$nulls":3},"3.1.4","There must be a clear policy, if applicable,  appropriate mechanisms for appeal on student selection. ",null,null,{"$f":"VLOOKUP(G15,$BA$5:$BR$10,5)","v":{"$error":"#N/A"}}]
[{"$nulls":7},{"$f":"VLOOKUP(G16,$BA$5:$BR$10,5)","v":{"$error":"#N/A"}}]
[{"$nulls":4},{"$f":"IF(AND(I15=\"\",J15=\"\",K15=\"\",L15=\"\"),\"INPUT ERROR! Please provide remarks\",\" \")","v":"INPUT ERROR! Please provide remarks"},{"$nulls":23},{"$f":"IF(G15=\"\",FALSE,TRUE)","v":false},{"$f":"AC17","v":false},{"$f":"IF(G15=\"AL5\",5,0)","v":0},{"$f":"IF(G15=\"AL4\",4,0)","v":0},{"$f":"IF(G15=\"AL3\",3,0)","v":0},{"$f":"IF(G15=\"AL2\",2,0)","v":0},{"$f":"IF(G15=\"AL1\",1,0)","v":0},{"$f":"IF(AND(K15=\"\",L15=\"\"),TRUE,FALSE)","v":true},{"$f":"IF(AND(K16=\"\",L16=\"\"),TRUE,FALSE)","v":true},null,{"$f":"COUNTIF(AE17:AI17,0)","v":5},{"$f":"IF((E17=\" \"),TRUE,FALSE)","v":false},{"$f":"COUNTIF(AE17:AI17,5)","v":0},{"$f":"COUNTIF(AE17:AI17,4)","v":0},{"$f":"COUNTIF(AE17:AI17,2)","v":0},{"$f":"COUNTIF(AE17:AI17,1)","v":0},null,{"$f":"IF(G16=\"AL5\",5,0)","v":0},{"$f":"IF(G16=\"AL4\",4,0)","v":0},{"$f":"IF(G16=\"AL3\",3,0)","v":0},{"$f":"IF(G16=\"AL2\",2,0)","v":0},{"$f":"IF(G16=\"AL1\",1,0)","v":0}]
[{"$nulls":3},"3.1.5","The department must offer appropriate developmental or remedial support to assist students, including incoming transfer students who are in need.",null,null,{"$f":"VLOOKUP(G18,$BA$5:$BR$10,6)","v":{"$error":"#N/A"}}]
[{"$nulls":7},{"$f":"VLOOKUP(G19,$BA$5:$BR$10,6)","v":{"$error":"#N/A"}}]
[{"$nulls":4},{"$f":"IF(AND(I18=\"\",J18=\"\",K18=\"\",L18=\"\"),\"INPUT ERROR! Please provide remarks\",\" \")","v":"INPUT ERROR! Please provide remarks"},{"$nulls":24},{"$f":"IF(G18=\"\",FALSE,TRUE)","v":false},{"$f":"IF(G18=\"AL5\",5,0)","v":0},{"$f":"IF(G18=\"AL4\",4,0)","v":0},{"$f":"IF(G18=\"AL3\",3,0)","v":0},{"$f":"IF(G18=\"AL2\",2,0)","v":0},{"$f":"IF(G18=\"AL1\",1,0)","v":0},{"$f":"IF(AND(K18=\"\",L18=\"\"),TRUE,FALSE)","v":true},{"$f":"IF(AND(K19=\"\",L19=\"\"),TRUE,FALSE)","v":true},null,{"$f":"COUNTIF(AE20:AI20,0)","v":5},{"$f":"IF((E20=\" \"),TRUE,FALSE)","v":false},{"$f":"COUNTIF(AE20:AI20,5)","v":0},{"$f":"COUNTIF(AE20:AI20,4)","v":0},{"$f":"COUNTIF(AE20:AI20,2)","v":0},{"$f":"COUNTIF(AE20:AI20,1)","v":0},null,{"$f":"IF(G19=\"AL5\",5,0)","v":0},{"$f":"IF(G19=\"AL4\",4,0)","v":0},{"$f":"IF(G19=\"AL3\",3,0)","v":0},{"$f":"IF(G19=\"AL2\",2,0)","v":0},{"$f":"IF(G19=\"AL1\",1,0)","v":0}]
[]
[{"$nulls":3},3.2,"Articulation and Transfer",null,"Achievement Level          (AL)","AL Descriptor","Strength/ Commendation","Steps taken to maintain and enhance the strengths/\nCurrent Practices","Areas of concern/ Weakness/ Condition ","Steps taken to address the problem areas "]
[{"$nulls":3},"3.2.1","The department must have well-defined policies and mechanisms to facilitate student mobility which may include student transfer within and between institutions as well as, cross-border. ",null,null,{"$f":"VLOOKUP(G23,$BA$5:$BR$10,7)","v":{"$error":"#N/A"}}]
[{"$nulls":7},{"$f":"VLOOKUP(G24,$BA$5:$BR$10,7)","v":{"$error":"#N/A"}}]
[{"$nulls":4},{"$f":"IF(AND(I23=\"\",J23=\"\",K23=\"\",L23=\"\"),\"INPUT ERROR! Please provide remarks\",\" \")","v":"INPUT ERROR! Please provide remarks"},{"$nulls":24},{"$f":"IF(G23=\"\",FALSE,TRUE)","v":false},{"$f":"IF(G23=\"AL5\",5,0)","v":0},{"$f":"IF(G23=\"AL4\",4,0)","v":0},{"$f":"IF(G23=\"AL3\",3,0)","v":0},{"$f":"IF(G23=\"AL2\",2,0)","v":0},{"$f":"IF(G23=\"AL1\",1,0)","v":0},{"$f":"IF(AND(K23=\"\",L23=\"\"),TRUE,FALSE)","v":true},{"$f":"IF(AND(K24=\"\",L24=\"\"),TRUE,FALSE)","v":true},null,{"$f":"COUNTIF(AE25:AI25,0)","v":5},{"$f":"IF((E25=\" \"),TRUE,FALSE)","v":false},{"$f":"COUNTIF(AE25:AI25,5)","v":0},{"$f":"COUNTIF(AE25:AI25,4)","v":0},{"$f":"COUNTIF(AE25:AI25,2)","v":0},{"$f":"COUNTIF(AE25:AI25,1)","v":0},null,{"$f":"IF(G24=\"AL5\",5,0)","v":0},{"$f":"IF(G24=\"AL4\",4,0)","v":0},{"$f":"IF(G24=\"AL3\",3,0)","v":0},{"$f":"IF(G24=\"AL2\",2,0)","v":0},{"$f":"IF(G24=\"AL1\",1,0)","v":0}]
[{"$nulls":3},"3.2.2","The department must ensure that the incoming transfer student have the capacity to successfully follow the programme.",null,null,{"$f":"VLOOKUP(G26,$BA$5:$BR$10,8)","v":{"$error":"#N/A"}}]
[{"$nulls":7},{"$f":"VLOOKUP(G27,$BA$5:$BR$10,8)","v":{"$error":"#N/A"}}]
[{"$nulls":4},{"$f":"IF(AND(I26=\"\",J26=\"\",K26=\"\",L26=\"\"),\"INPUT ERROR! Please provide remarks\",\" \")","v":"INPUT ERROR! Please provide remarks"},{"$nulls":24},{"$f":"IF(G26=\"\",FALSE,TRUE)","v":false},{"$f":"IF(G26=\"AL5\",5,0)","v":0},{"$f":"IF(G26=\"AL4\",4,0)","v":0},{"$f":"IF(G26=\"AL3\",3,0)","v":0},{"$f":"IF(G26=\"AL2\",2,0)","v":0},{"$f":"IF(G26=\"AL1\",1,0)","v":0},{"$f":"IF(AND(K26=\"\",L26=\"\"),TRUE,FALSE)","v":true},{"$f":"IF(AND(K27=\"\",L27=\"\"),TRUE,FALSE)","v":true},null,{"$f":"COUNTIF(AE28:AI28,0)","v":5},{"$f":"IF((E28=\" \"),TRUE,FALSE)","v":false},{"$f":"COUNTIF(AE28:AI28,5)","v":0},{"$f":"COUNTIF(AE28:AI28,4)","v":0},{"$f":"COUNTIF(AE28:AI28,2)","v":0},{"$f":"COUNTIF(AE28:AI28,1)","v":0},null,{"$f":"IF(G27=\"AL5\",5,0)","v":0},{"$f":"IF(G27=\"AL4\",4,0)","v":0},{"$f":"IF(G27=\"AL3\",3,0)","v":0},{"$f":"IF(G27=\"AL2\",2,0)","v":0},{"$f":"IF(G27=\"AL1\",1,0)","v":0}]
[]
[{"$nulls":3},3.3,"Student Support Services ",null,"Achievement Level          (AL)","AL Descriptor","Strength/ Commendation","Steps taken to maintain and enhance the strengths/\nCurrent Practices","Areas of concern/ Weakness/ Condition ","Steps taken to address the problem areas "]
[{"$nulls":3},"3.3.1","Students must have access to appropriate and adequate support services, such as physical, social, financial, recreational and online facilities, academic and non-academic counselling and health services. ",null,null,{"$f":"VLOOKUP(G31,$BA$5:$BR$10,9)","v":{"$error":"#N/A"}}]
[{"$nulls":7},{"$f":"VLOOKUP(G32,$BA$5:$BR$10,9)","v":{"$error":"#N/A"}}]
[{"$nulls":4},{"$f":"IF(AND(I31=\"\",J31=\"\",K31=\"\",L31=\"\"),\"INPUT ERROR! Please provide remarks\",\" \")","v":"INPUT ERROR! Please provide remarks"},{"$nulls":24},{"$f":"IF(G31=\"\",FALSE,TRUE)","v":false},{"$f":"IF(G31=\"AL5\",5,0)","v":0},{"$f":"IF(G31=\"AL4\",4,0)","v":0},{"$f":"IF(G31=\"AL3\",3,0)","v":0},{"$f":"IF(G31=\"AL2\",2,0)","v":0},{"$f":"IF(G31=\"AL1\",1,0)","v":0},{"$f":"IF(AND(K31=\"\",L31=\"\"),TRUE,FALSE)","v":true},{"$f":"IF(AND(K32=\"\",L32=\"\"),TRUE,FALSE)","v":true},null,{"$f":"COUNTIF(AE33:AI33,0)","v":5},{"$f":"IF((E33=\" \"),TRUE,FALSE)","v":false},{"$f":"COUNTIF(AE33:AI33,5)","v":0},{"$f":"COUNTIF(AE33:AI33,4)","v":0},{"$f":"COUNTIF(AE33:AI33,2)","v":0},{"$f":"COUNTIF(AE33:AI33,1)","v":0},null,{"$f":"IF(G32=\"AL5\",5,0)","v":0},{"$f":"IF(G32=\"AL4\",4,0)","v":0},{"$f":"IF(G32=\"AL3\",3,0)","v":0},{"$f":"IF(G32=\"AL2\",2,0)","v":0},{"$f":"IF(G32=\"AL1\",1,0)","v":0}]
[{"$nulls":3},"3.3.2","There must be a designated administrative unit, with a prominent organisational status in the HEP, responsible for planning and implementing student support services staffed by individuals who have appropriate experience. ",null,null,{"$f":"VLOOKUP(G34,$BA$5:$BR$10,10)","v":{"$error":"#N/A"}}]
[{"$nulls":7},{"$f":"VLOOKUP(G35,$BA$5:$BR$10,10)","v":{"$error":"#N/A"}}]
[{"$nulls":4},{"$f":"IF(AND(I34=\"\",J34=\"\",K34=\"\",L34=\"\"),\"INPUT ERROR! Please provide remarks\",\" \")","v":"INPUT ERROR! Please provide remarks"},{"$nulls":24},{"$f":"IF(G34=\"\",FALSE,TRUE)","v":false},{"$f":"IF(G34=\"AL5\",5,0)","v":0},{"$f":"IF(G34=\"AL4\",4,0)","v":0},{"$f":"IF(G34=\"AL3\",3,0)","v":0},{"$f":"IF(G34=\"AL2\",2,0)","v":0},{"$f":"IF(G34=\"AL1\",1,0)","v":0},{"$f":"IF(AND(K34=\"\",L34=\"\"),TRUE,FALSE)","v":true},{"$f":"IF(AND(K35=\"\",L35=\"\"),TRUE,FALSE)","v":true},null,{"$f":"COUNTIF(AE36:AI36,0)","v":5},{"$f":"IF((E36=\" \"),TRUE,FALSE)","v":false},{"$f":"COUNTIF(AE36:AI36,5)","v":0},{"$f":"COUNTIF(AE36:AI36,4)","v":0},{"$f":"COUNTIF(AE36:AI36,2)","v":0},{"$f":"COUNTIF(AE36:AI36,1)","v":0},null,{"$f":"IF(G35=\"AL5\",5,0)","v":0},{"$f":"IF(G35=\"AL4\",4,0)","v":0},{"$f":"IF(G35=\"AL3\",3,0)","v":0},{"$f":"IF(G35=\"AL2\",2,0)","v":0},{"$f":"IF(G35=\"AL1\",1,0)","v":0}]
[{"$nulls":3},"3.3.3","An effective induction to the programme must be available to new students, with special attention given to out of state and international students as well as students with special needs.",null,null,{"$f":"VLOOKUP(G37,$BA$5:$BR$10,11)","v":{"$error":"#N/A"}}]
[{"$nulls":7},{"$f":"VLOOKUP(G38,$BA$5:$BR$10,11)","v":{"$error":"#N/A"}}]
[{"$nulls":4},{"$f":"IF(AND(I37=\"\",J37=\"\",K37=\"\",L37=\"\"),\"INPUT ERROR! Please provide remarks\",\" \")","v":"INPUT ERROR! Please provide remarks"},{"$nulls":24},{"$f":"IF(G37=\"\",FALSE,TRUE)","v":false},{"$f":"IF(G37=\"AL5\",5,0)","v":0},{"$f":"IF(G37=\"AL4\",4,0)","v":0},{"$f":"IF(G37=\"AL3\",3,0)","v":0},{"$f":"IF(G37=\"AL2\",2,0)","v":0},{"$f":"IF(G37=\"AL1\",1,0)","v":0},{"$f":"IF(AND(K37=\"\",L37=\"\"),TRUE,FALSE)","v":true},{"$f":"IF(AND(K38=\"\",L38=\"\"),TRUE,FALSE)","v":true},null,{"$f":"COUNTIF(AE39:AI39,0)","v":5},{"$f":"IF((E39=\" \"),TRUE,FALSE)","v":false},{"$f":"COUNTIF(AE39:AI39,5)","v":0},{"$f":"COUNTIF(AE39:AI39,4)","v":0},{"$f":"COUNTIF(AE39:AI39,2)","v":0},{"$f":"COUNTIF(AE39:AI39,1)","v":0},null,{"$f":"IF(G38=\"AL5\",5,0)","v":0},{"$f":"IF(G38=\"AL4\",4,0)","v":0},{"$f":"IF(G38=\"AL3\",3,0)","v":0},{"$f":"IF(G38=\"AL2\",2,0)","v":0},{"$f":"IF(G38=\"AL1\",1,0)","v":0}]
[{"$nulls":3},"3.3.4","Academic, non-academic and career counselling must be provided by adequate and qualified staff. ",null,null,{"$f":"VLOOKUP(G40,$BA$5:$BR$10,12)","v":{"$error":"#N/A"}}]
[{"$nulls":7},{"$f":"VLOOKUP(G41,$BA$5:$BR$10,12)","v":{"$error":"#N/A"}}]
[{"$nulls":4},{"$f":"IF(AND(I40=\"\",J40=\"\",K40=\"\",L40=\"\"),\"INPUT ERROR! Please provide remarks\",\" \")","v":"INPUT ERROR! Please provide remarks"},{"$nulls":24},{"$f":"IF(G40=\"\",FALSE,TRUE)","v":false},{"$f":"IF(G40=\"AL5\",5,0)","v":0},{"$f":"IF(G40=\"AL4\",4,0)","v":0},{"$f":"IF(G40=\"AL3\",3,0)","v":0},{"$f":"IF(G40=\"AL2\",2,0)","v":0},{"$f":"IF(G40=\"AL1\",1,0)","v":0},{"$f":"IF(AND(K40=\"\",L40=\"\"),TRUE,FALSE)","v":true},{"$f":"IF(AND(K41=\"\",L41=\"\"),TRUE,FALSE)","v":true},null,{"$f":"COUNTIF(AE42:AI42,0)","v":5},{"$f":"IF((E42=\" \"),TRUE,FALSE)","v":false},{"$f":"COUNTIF(AE42:AI42,5)","v":0},{"$f":"COUNTIF(AE42:AI42,4)","v":0},{"$f":"COUNTIF(AE42:AI42,2)","v":0},{"$f":"COUNTIF(AE42:AI42,1)","v":0},null,{"$f":"IF(G41=\"AL5\",5,0)","v":0},{"$f":"IF(G41=\"AL4\",4,0)","v":0},{"$f":"IF(G41=\"AL3\",3,0)","v":0},{"$f":"IF(G41=\"AL2\",2,0)","v":0},{"$f":"IF(G41=\"AL1\",1,0)","v":0}]
[{"$nulls":3},"3.3.5","There must be mechanisms that actively identify and assist students who are in need of academic, spiritual, psychological and social support.",null,null,{"$f":"VLOOKUP(G43,$BA$5:$BR$10,13)","v":{"$error":"#N/A"}}]
[{"$nulls":7},{"$f":"VLOOKUP(G44,$BA$5:$BR$10,13)","v":{"$error":"#N/A"}}]
[{"$nulls":4},{"$f":"IF(AND(I43=\"\",J43=\"\",K43=\"\",L43=\"\"),\"INPUT ERROR! Please provide remarks\",\" \")","v":"INPUT ERROR! Please provide remarks"},{"$nulls":24},{"$f":"IF(G43=\"\",FALSE,TRUE)","v":false},{"$f":"IF(G43=\"AL5\",5,0)","v":0},{"$f":"IF(G43=\"AL4\",4,0)","v":0},{"$f":"IF(G43=\"AL3\",3,0)","v":0},{"$f":"IF(G43=\"AL2\",2,0)","v":0},{"$f":"IF(G43=\"AL1\",1,0)","v":0},{"$f":"IF(AND(K43=\"\",L43=\"\"),TRUE,FALSE)","v":true},{"$f":"IF(AND(K44=\"\",L44=\"\"),TRUE,FALSE)","v":true},null,{"$f":"COUNTIF(AE45:AI45,0)","v":5},{"$f":"IF((E45=\" \"),TRUE,FALSE)","v":false},{"$f":"COUNTIF(AE45:AI45,5)","v":0},{"$f":"COUNTIF(AE45:AI45,4)","v":0},{"$f":"COUNTIF(AE45:AI45,2)","v":0},{"$f":"COUNTIF(AE45:AI45,1)","v":0},null,{"$f":"IF(G44=\"AL5\",5,0)","v":0},{"$f":"IF(G44=\"AL4\",4,0)","v":0},{"$f":"IF(G44=\"AL3\",3,0)","v":0},{"$f":"IF(G44=\"AL2\",2,0)","v":0},{"$f":"IF(G44=\"AL1\",1,0)","v":0}]
[{"$nulls":3},"3.3.6","The HEP must have clearly defined and documented processes and procedures in handling student disciplinary cases.                                                                                ",null,null,{"$f":"VLOOKUP(G46,$BA$5:$BR$10,14)","v":{"$error":"#N/A"}}]
[{"$nulls":7},{"$f":"VLOOKUP(G47,$BA$5:$BR$10,14)","v":{"$error":"#N/A"}}]
[{"$nulls":4},{"$f":"IF(AND(I46=\"\",J46=\"\",K46=\"\",L46=\"\"),\"INPUT ERROR! Please provide remarks\",\" \")","v":"INPUT ERROR! Please provide remarks"},{"$nulls":24},{"$f":"IF(G46=\"\",FALSE,TRUE)","v":false},{"$f":"IF(G46=\"AL5\",5,0)","v":0},{"$f":"IF(G46=\"AL4\",4,0)","v":0},{"$f":"IF(G46=\"AL3\",3,0)","v":0},{"$f":"IF(G46=\"AL2\",2,0)","v":0},{"$f":"IF(G46=\"AL1\",1,0)","v":0},{"$f":"IF(AND(K46=\"\",L46=\"\"),TRUE,FALSE)","v":true},{"$f":"IF(AND(K47=\"\",L47=\"\"),TRUE,FALSE)","v":true},null,{"$f":"COUNTIF(AE48:AI48,0)","v":5},{"$f":"IF((E48=\" \"),TRUE,FALSE)","v":false},{"$f":"COUNTIF(AE48:AI48,5)","v":0},{"$f":"COUNTIF(AE48:AI48,4)","v":0},{"$f":"COUNTIF(AE48:AI48,2)","v":0},{"$f":"COUNTIF(AE48:AI48,1)","v":0},null,{"$f":"IF(G47=\"AL5\",5,0)","v":0},{"$f":"IF(G47=\"AL4\",4,0)","v":0},{"$f":"IF(G47=\"AL3\",3,0)","v":0},{"$f":"IF(G47=\"AL2\",2,0)","v":0},{"$f":"IF(G47=\"AL1\",1,0)","v":0}]
[{"$nulls":3},"3.3.7","There must be an effective mechanism for students to voice their grievances and seek resolution on academic and non-academic matters.",null,null,{"$f":"VLOOKUP(G49,$BA$5:$BR$10,15)","v":{"$error":"#N/A"}}]
[{"$nulls":7},{"$f":"VLOOKUP(G50,$BA$5:$BR$10,15)","v":{"$error":"#N/A"}}]
[{"$nulls":4},{"$f":"IF(AND(I49=\"\",J49=\"\",K49=\"\",L49=\"\"),\"INPUT ERROR! Please provide remarks\",\" \")","v":"INPUT ERROR! Please provide remarks"},{"$nulls":24},{"$f":"IF(G49=\"\",FALSE,TRUE)","v":false},{"$f":"IF(G49=\"AL5\",5,0)","v":0},{"$f":"IF(G49=\"AL4\",4,0)","v":0},{"$f":"IF(G49=\"AL3\",3,0)","v":0},{"$f":"IF(G49=\"AL2\",2,0)","v":0},{"$f":"IF(G49=\"AL1\",1,0)","v":0},{"$f":"IF(AND(K49=\"\",L49=\"\"),TRUE,FALSE)","v":true},{"$f":"IF(AND(K50=\"\",L50=\"\"),TRUE,FALSE)","v":true},null,{"$f":"COUNTIF(AE51:AI51,0)","v":5},{"$f":"IF((E51=\" \"),TRUE,FALSE)","v":false},{"$f":"COUNTIF(AE51:AI51,5)","v":0},{"$f":"COUNTIF(AE51:AI51,4)","v":0},{"$f":"COUNTIF(AE51:AI51,2)","v":0},{"$f":"COUNTIF(AE51:AI51,1)","v":0},null,{"$f":"IF(G50=\"AL5\",5,0)","v":0},{"$f":"IF(G50=\"AL4\",4,0)","v":0},{"$f":"IF(G50=\"AL3\",3,0)","v":0},{"$f":"IF(G50=\"AL2\",2,0)","v":0},{"$f":"IF(G50=\"AL1\",1,0)","v":0}]
[{"$nulls":3},"3.3.8","Student support services must be evaluated regularly to ensure their adequacy, effectiveness and safety.",null,null,{"$f":"VLOOKUP(G52,$BA$5:$BR$10,16)","v":{"$error":"#N/A"}}]
[{"$nulls":7},{"$f":"VLOOKUP(G53,$BA$5:$BR$10,16)","v":{"$error":"#N/A"}}]
[{"$nulls":4},{"$f":"IF(AND(I52=\"\",J52=\"\",K52=\"\",L52=\"\"),\"INPUT ERROR! Please provide remarks\",\" \")","v":"INPUT ERROR! Please provide remarks"},{"$nulls":24},{"$f":"IF(G52=\"\",FALSE,TRUE)","v":false},{"$f":"IF(G52=\"AL5\",5,0)","v":0},{"$f":"IF(G52=\"AL4\",4,0)","v":0},{"$f":"IF(G52=\"AL3\",3,0)","v":0},{"$f":"IF(G52=\"AL2\",2,0)","v":0},{"$f":"IF(G52=\"AL1\",1,0)","v":0},{"$f":"IF(AND(K52=\"\",L52=\"\"),TRUE,FALSE)","v":true},{"$f":"IF(AND(K53=\"\",L53=\"\"),TRUE,FALSE)","v":true},null,{"$f":"COUNTIF(AE54:AI54,0)","v":5},{"$f":"IF((E54=\" \"),TRUE,FALSE)","v":false},{"$f":"COUNTIF(AE54:AI54,5)","v":0},{"$f":"COUNTIF(AE54:AI54,4)","v":0},{"$f":"COUNTIF(AE54:AI54,2)","v":0},{"$f":"COUNTIF(AE54:AI54,1)","v":0},null,{"$f":"IF(G53=\"AL5\",5,0)","v":0},{"$f":"IF(G53=\"AL4\",4,0)","v":0},{"$f":"IF(G53=\"AL3\",3,0)","v":0},{"$f":"IF(G53=\"AL2\",2,0)","v":0},{"$f":"IF(G53=\"AL1\",1,0)","v":0}]
[]
[{"$nulls":3},3.4," Student Representation and and Participation",null,"Achievement Level          (AL)","AL Descriptor","Strength/ Commendation","Steps taken to maintain and enhance the strengths/\nCurrent Practices","Areas of concern/ Weakness/ Condition ","Steps taken to address the problem areas "]
[{"$nulls":3},"3.4.1","There must be well-disseminated  policies and processes for active student engagement especially in areas that affect their interest and welfare.",null,null,{"$f":"VLOOKUP(G57,$BA$5:$BR$10,17)","v":{"$error":"#N/A"}}]
[{"$nulls":7},{"$f":"VLOOKUP(G58,$BA$5:$BR$10,17)","v":{"$error":"#N/A"}}]
[{"$nulls":4},{"$f":"IF(AND(I57=\"\",J57=\"\",K57=\"\",L57=\"\"),\"INPUT ERROR! Please provide remarks\",\" \")","v":"INPUT ERROR! Please provide remarks"},{"$nulls":24},{"$f":"IF(G57=\"\",FALSE,TRUE)","v":false},{"$f":"IF(G57=\"AL5\",5,0)","v":0},{"$f":"IF(G57=\"AL4\",4,0)","v":0},{"$f":"IF(G57=\"AL3\",3,0)","v":0},{"$f":"IF(G57=\"AL2\",2,0)","v":0},{"$f":"IF(G57=\"AL1\",1,0)","v":0},{"$f":"IF(AND(K57=\"\",L57=\"\"),TRUE,FALSE)","v":true},{"$f":"IF(AND(K58=\"\",L58=\"\"),TRUE,FALSE)","v":true},null,{"$f":"COUNTIF(AE59:AI59,0)","v":5},{"$f":"IF((E59=\" \"),TRUE,FALSE)","v":false},{"$f":"COUNTIF(AE59:AI59,5)","v":0},{"$f":"COUNTIF(AE59:AI59,4)","v":0},{"$f":"COUNTIF(AE59:AI59,2)","v":0},{"$f":"COUNTIF(AE59:AI59,1)","v":0},null,{"$f":"IF(G58=\"AL5\",5,0)","v":0},{"$f":"IF(G58=\"AL4\",4,0)","v":0},{"$f":"IF(G58=\"AL3\",3,0)","v":0},{"$f":"IF(G58=\"AL2\",2,0)","v":0},{"$f":"IF(G58=\"AL1\",1,0)","v":0}]
[{"$nulls":3},"3.4.2","There must be adequate student representation and organisation at the institutional and departmental levels.  ",null,null,{"$f":"VLOOKUP(G60,$BA$5:$BR$10,18)","v":{"$error":"#N/A"}}]
[{"$nulls":7},{"$f":"VLOOKUP(G61,$BA$5:$BR$10,18)","v":{"$error":"#N/A"}}]
[{"$nulls":4},{"$f":"IF(AND(I60=\"\",J60=\"\",K60=\"\",L60=\"\"),\"INPUT ERROR! Please provide remarks\",\" \")","v":"INPUT ERROR! Please provide remarks"},{"$nulls":24},{"$f":"IF(G60=\"\",FALSE,TRUE)","v":false},{"$f":"IF(G60=\"AL5\",5,0)","v":0},{"$f":"IF(G60=\"AL4\",4,0)","v":0},{"$f":"IF(G60=\"AL3\",3,0)","v":0},{"$f":"IF(G60=\"AL2\",2,0)","v":0},{"$f":"IF(G60=\"AL1\",1,0)","v":0},{"$f":"IF(AND(K60=\"\",L60=\"\"),TRUE,FALSE)","v":true},{"$f":"IF(AND(K61=\"\",L61=\"\"),TRUE,FALSE)","v":true},null,{"$f":"COUNTIF(AE62:AI62,0)","v":5},{"$f":"IF((E62=\" \"),TRUE,FALSE)","v":false},{"$f":"COUNTIF(AE62:AI62,5)","v":0},{"$f":"COUNTIF(AE62:AI62,4)","v":0},{"$f":"COUNTIF(AE62:AI62,2)","v":0},{"$f":"COUNTIF(AE62:AI62,1)","v":0},null,{"$f":"IF(G61=\"AL5\",5,0)","v":0},{"$f":"IF(G61=\"AL4\",4,0)","v":0},{"$f":"IF(G61=\"AL3\",3,0)","v":0},{"$f":"IF(G61=\"AL2\",2,0)","v":0},{"$f":"IF(G61=\"AL1\",1,0)","v":0}]
[{"$nulls":3},"3.4.3","Student must be facilitated to develop linkages with external stakeholders and to participate in activities to gain managerial, entrepreneurial and leadership skills in preparation for the workplace. ",null,null,{"$f":"VLOOKUP(G63,$BA$5:$BS$10,19)","v":{"$error":"#N/A"}}]
[{"$nulls":7},{"$f":"VLOOKUP(G64,$BA$5:$BS$10,19)","v":{"$error":"#N/A"}}]
[{"$nulls":4},{"$f":"IF(AND(I63=\"\",J63=\"\",K63=\"\",L63=\"\"),\"INPUT ERROR! Please provide remarks\",\" \")","v":"INPUT ERROR! Please provide remarks"},{"$nulls":24},{"$f":"IF(G63=\"\",FALSE,TRUE)","v":false},{"$f":"IF(G63=\"AL5\",5,0)","v":0},{"$f":"IF(G63=\"AL4\",4,0)","v":0},{"$f":"IF(G63=\"AL3\",3,0)","v":0},{"$f":"IF(G63=\"AL2\",2,0)","v":0},{"$f":"IF(G63=\"AL1\",1,0)","v":0},{"$f":"IF(AND(K63=\"\",L63=\"\"),TRUE,FALSE)","v":true},{"$f":"IF(AND(K64=\"\",L64=\"\"),TRUE,FALSE)","v":true},null,5,{"$f":"IF((E65=\" \"),TRUE,FALSE)","v":false},0,0,0,0,null,{"$f":"IF(G64=\"AL5\",5,0)","v":0},{"$f":"IF(G64=\"AL4\",4,0)","v":0},{"$f":"IF(G64=\"AL3\",3,0)","v":0},{"$f":"IF(G64=\"AL2\",2,0)","v":0},{"$f":"IF(G64=\"AL1\",1,0)","v":0}]
[{"$nulls":3},"3.4.4","Student activities and organisations must be facilitated to encourage character building, inculcate a sense of belonging and responsibility, and promote active citizenship.",null,null,{"$f":"VLOOKUP(G66,$BA$5:$BT$10,20)","v":{"$error":"#N/A"}}]
[{"$nulls":7},{"$f":"VLOOKUP(G67,$BA$5:$BT$10,20)","v":{"$error":"#N/A"}}]
[{"$nulls":4},{"$f":"IF(AND(I66=\"\",J66=\"\",K66=\"\",L66=\"\"),\"INPUT ERROR! Please provide remarks\",\" \")","v":"INPUT ERROR! Please provide remarks"},{"$nulls":24},{"$f":"IF(G66=\"\",FALSE,TRUE)","v":false},{"$f":"IF(G66=\"AL5\",5,0)","v":0},{"$f":"IF(G66=\"AL4\",4,0)","v":0},{"$f":"IF(G66=\"AL3\",3,0)","v":0},{"$f":"IF(G66=\"AL2\",2,0)","v":0},{"$f":"IF(G66=\"AL1\",1,0)","v":0},{"$f":"IF(AND(K66=\"\",L66=\"\"),TRUE,FALSE)","v":true},{"$f":"IF(AND(K67=\"\",L67=\"\"),TRUE,FALSE)","v":true},null,5,{"$f":"IF((E68=\" \"),TRUE,FALSE)","v":false},0,0,0,0,null,{"$f":"IF(G67=\"AL5\",5,0)","v":0},{"$f":"IF(G67=\"AL4\",4,0)","v":0},{"$f":"IF(G67=\"AL3\",3,0)","v":0},{"$f":"IF(G67=\"AL2\",2,0)","v":0},{"$f":"IF(G67=\"AL1\",1,0)","v":0}]
[]
[{"$nulls":3},3.5," Alumni",null,"Achievement Level          (AL)","AL Descriptor","Strength/ Commendation","Steps taken to maintain and enhance the strengths/\nCurrent Practices","Areas of concern/ Weakness/ Condition ","Steps taken to address the problem areas "]
[{"$nulls":3},"3.5.1","The department must foster active linkages with alumni to develop, review and continuously improve the programme.",null,null,{"$f":"VLOOKUP(G71,$BA$5:$BU$10,21)","v":{"$error":"#N/A"}}]
[{"$nulls":7},{"$f":"VLOOKUP(G72,$BA$5:$BU$10,21)","v":{"$error":"#N/A"}}]
[{"$nulls":4},{"$f":"IF(AND(I71=\"\",J71=\"\",K71=\"\",L71=\"\"),\"INPUT ERROR! Please provide remarks\",\" \")","v":"INPUT ERROR! Please provide remarks"},{"$nulls":24},{"$f":"IF(G71=\"\",FALSE,TRUE)","v":false},{"$f":"IF(G71=\"AL5\",5,0)","v":0},{"$f":"IF(G71=\"AL4\",4,0)","v":0},{"$f":"IF(G71=\"AL3\",3,0)","v":0},{"$f":"IF(G71=\"AL2\",2,0)","v":0},{"$f":"IF(G71=\"AL1\",1,0)","v":0},{"$f":"IF(AND(K71=\"\",L71=\"\"),TRUE,FALSE)","v":true},{"$f":"IF(AND(K72=\"\",L72=\"\"),TRUE,FALSE)","v":true},null,5,{"$f":"IF((E73=\" \"),TRUE,FALSE)","v":false},0,0,0,0,null,{"$f":"IF(G72=\"AL5\",5,0)","v":0},{"$f":"IF(G72=\"AL4\",4,0)","v":0},{"$f":"IF(G72=\"AL3\",3,0)","v":0},{"$f":"IF(G72=\"AL2\",2,0)","v":0},{"$f":"IF(G72=\"AL1\",1,0)","v":0}]
[]
[]
[]
[{"$nulls":29},{"$f":"IF(AND(AD8:AD73,AN8:AN73),TRUE,FALSE)","v":false},{"$nulls":5},{"$f":"IF(AND(AJ8:AJ73),TRUE,FALSE)","v":true},{"$f":"IF(AND(AK8:AK73),TRUE,FALSE)","v":true}]
[]
[{"$nulls":29},{"$f":"COUNTA(AD8:AD73)","v":20},{"$f":"COUNTIF(AE8:AE73,5)","v":0},{"$f":"COUNTIF(AF8:AF73,4)","v":0},{"$f":"COUNTIF(AG8:AG73,3)","v":0},{"$f":"COUNTIF(AH8:AH73,2)","v":0},{"$f":"COUNTIF(AI8:AI73,1)","v":0},{"$nulls":10},{"$f":"COUNTIF(AT8:AT73,5)","v":0},{"$f":"COUNTIF(AU8:AU73,4)","v":0},{"$f":"COUNTIF(AV8:AV73,3)","v":0},{"$f":"COUNTIF(AW8:AW73,2)","v":0},{"$f":"COUNTIF(AX8:AX73,1)","v":0}]

{"sheet":"Sheet1 (4)","index":6,"n_rows":63,"n_cols":68,"rows_kept":63,"merged":[[5,4,6,4],[7,4,7,11],[8,4,9,4],[10,4,10,11],[11,4,12,4],[13,4,13,11],[14,4,15,4],[16,4,16,11],[17,4,18,4],[19,4,19,11],[20,4,21,4],[22,4,22,11],[23,4,24,4],[25,4,25,11],[26,4,27,4],[28,4,28,11],[31,4,32,4],[33,4,33,11],[34,4,35,4],[36,4,36,11],[37,4,38,4],[39,4,39,11],[40,4,41,4],[42,4,42,11],[43,4,44,4],[45,4,45,11],[46,4,47,4],[48,4,48,11],[49,4,50,4],[51,4,51,11]]}
[{"$nulls":6},"Evaluation Instrument of COPPA 2nd Edition (2017)"]
[]
[{"$nulls":6},"AREA 4: ACADEMIC STAFF"]
[]
[{"$nulls":3},4.1,"Recruitment and Management",null,"Achievement Level          (AL)","AL Descriptor","Strength/ Commendation","Steps taken to maintain and enhance the strengths/\nCurrent Practices","Areas of concern/ Weakness/ Condition ","Steps taken to address the problem areas ",{"$nulls":17},"√",{"$nulls":22},"AL1","No defined plan","No policy at all","Inappropriate to, and not complying with","Inadequate academic staff","Not reflected at all","Not varied at all","No policy at all","No linkage at all","No defined policies","No opportunities provided","No policy at all","No processes and mechanisms","Have no programme","No opportunities provided","Not facilitated and encouraged at all"]
[{"$nulls":3},"4.1.1","The department must have a clearly defined plan for its academic manpower needs consistent with institutional policies and programme requirements.",null,null,{"$f":"VLOOKUP(G6,$BA$5:$BR$11,2)","v":{"$error":"#N/A"}},{"$nulls":44},"AL2","Poorly defined plan","Unclear and poorly documented policy","Appropriate to, but not complying with","Adequate but unqualified academic staff. ","Poorly reflected","Poorly varied","Unclear and not transparent policies and procedures","Poorly linked","Poorly defined policies","Inadequate opportunities provided","Unclear policies and procedures","Inadequate processes and mechanisms","Have inadequate programme","Inadequate opportunities provided","Poorly facilitated and encouraged"]
[{"$nulls":7},{"$f":"VLOOKUP(G7,$BA$5:$BR$11,2)","v":{"$error":"#N/A"}},{"$nulls":44},"AL3","Clearly defined plan","Clear and documented policy","Appropriate to, and comply with","Adequate and qualified academic staffs. ","Adequately reflected","Adequately varied","Clear and transparent policies and procedures, based on merits","Adequately linked","Clear policies","Adequate opportunities provided","Clear policies and procedures","Documented processes and appropriate mechanisms","Have a development programme","Adequate opportunities provided","Facilitated and encouraged"]
[{"$nulls":4},{"$f":"IF(AND(I6=\"\",J6=\"\",K6=\"\",L6=\"\"),\"INPUT ERROR! Please provide remarks\",\" \")","v":"INPUT ERROR! Please provide remarks"},{"$nulls":24},{"$f":"IF(G6=\"\",FALSE,TRUE)","v":false},{"$f":"IF(G6=\"AL5\",5,0)","v":0},{"$f":"IF(G6=\"AL4\",4,0)","v":0},{"$f":"IF(G6=\"AL3\",3,0)","v":0},{"$f":"IF(G6=\"AL2\",2,0)","v":0},{"$f":"IF(G6=\"AL1\",1,0)","v":0},{"$f":"IF(AND(K6=\"\",L6=\"\"),TRUE,FALSE)","v":true},{"$f":"IF(AND(K7=\"\",L7=\"\"),TRUE,FALSE)","v":true},null,{"$f":"COUNTIF(AE8:AI8,0)","v":5},{"$f":"IF((E8=\" \"),TRUE,FALSE)","v":false},{"$f":"COUNTIF(AE8:AI8,5)","v":0},{"$f":"COUNTIF(AE8:AI8,4)","v":0},{"$f":"COUNTIF(AE8:AI8,2)","v":0},{"$f":"COUNTIF(AE8:AI8,1)","v":0},null,{"$f":"IF(G7=\"AL5\",5,0)","v":0},{"$f":"IF(G7=\"AL4\",4,0)","v":0},{"$f":"IF(G7=\"AL3\",3,0)","v":0},{"$f":"IF(G7=\"AL2\",2,0)","v":0},{"$f":"IF(G7=\"AL1\",1,0)","v":0},null,null,"AL4","Very clearly defined plan","Clear and well-documented policy","Very appropriate to, and comply with","Adequate and well-qualified academic staffs. ","Well reflected","Well varied","Very clear and transparent policies and procedures, based on merits","Well linked","Clear and well documented policies","Ample opportunities provided","Very clear policies and procedures","Documented processes and ample mechanisms","Have a well developed programme","Ample opportunities provided","Well facilitated and encouraged"]
[{"$nulls":3},"4.1.2","The department must have a clear and documented academic staff recruitment policy where the criteria for selection are based primarily on academic merit and/or relevant experience. ",null,null,{"$f":"VLOOKUP(G9,$BA$5:$BR$11,3)","v":{"$error":"#N/A"}},{"$nulls":44},"AL5","Highly defined plan","Very clear and very well-documented policy","Highly appropriate to, and exceeded","Ample and well-qualified, experienced academic staffs. ","Very well reflected","Very well varied","Very clear and highly transparent policies and procedures, based on merits","Very well linked","Very clear and well documented policies","Abundant opportunities provided","Very clear and well documented  policies and procedures","Well documented processes and abundant mechanisms","Have a very well-developed proramme","Abundant opportunities provided","Very well facilitated and encouraged"]
[{"$nulls":7},{"$f":"VLOOKUP(G10,$BA$5:$BR$11,3)","v":{"$error":"#N/A"}}]
[{"$nulls":4},{"$f":"IF(AND(I9=\"\",J9=\"\",K9=\"\",L9=\"\"),\"INPUT ERROR! Please provide remarks\",\" \")","v":"INPUT ERROR! Please provide remarks"},{"$nulls":24},{"$f":"IF(G9=\"\",FALSE,TRUE)","v":false},{"$f":"IF(G9=\"AL5\",5,0)","v":0},{"$f":"IF(G9=\"AL4\",4,0)","v":0},{"$f":"IF(G9=\"AL3\",3,0)","v":0},{"$f":"IF(G9=\"AL2\",2,0)","v":0},{"$f":"IF(G9=\"AL1\",1,0)","v":0},{"$f":"IF(AND(K9=\"\",L9=\"\"),TRUE,FALSE)","v":true},{"$f":"IF(AND(K10=\"\",L10=\"\"),TRUE,FALSE)","v":true},null,{"$f":"COUNTIF(AE11:AI11,0)","v":5},{"$f":"IF((E11=\" \"),TRUE,FALSE)","v":false},{"$f":"COUNTIF(AE11:AI11,5)","v":0},{"$f":"COUNTIF(AE11:AI11,4)","v":0},{"$f":"COUNTIF(AE11:AI11,2)","v":0},{"$f":"COUNTIF(AE11:AI11,1)","v":0},null,{"$f":"IF(G10=\"AL5\",5,0)","v":0},{"$f":"IF(G10=\"AL4\",4,0)","v":0},{"$f":"IF(G10=\"AL3\",3,0)","v":0},{"$f":"IF(G10=\"AL2\",2,0)","v":0},{"$f":"IF(G10=\"AL1\",1,0)","v":0}]
[{"$nulls":3},"4.1.3","The staff–student ratio for the programme must be appropriate to the teaching-learning methods and comply with the programme standards for the discipline. \n(This standard must be read together with Guidelines: Academic Staff Workload)",null,null,{"$f":"VLOOKUP(G12,$BA$5:$BR$11,4)","v":{"$error":"#N/A"}}]
[{"$nulls":7},{"$f":"VLOOKUP(G13,$BA$5:$BR$11,4)","v":{"$error":"#N/A"}}]
[{"$nulls":4},{"$f":"IF(AND(I12=\"\",J12=\"\",K12=\"\",L12=\"\"),\"INPUT ERROR! Please provide remarks\",\" \")","v":"INPUT ERROR! Please provide remarks"},{"$nulls":24},{"$f":"IF(G12=\"\",FALSE,TRUE)","v":false},{"$f":"IF(G12=\"AL5\",5,0)","v":0},{"$f":"IF(G12=\"AL4\",4,0)","v":0},{"$f":"IF(G12=\"AL3\",3,0)","v":0},{"$f":"IF(G12=\"AL2\",2,0)","v":0},{"$f":"IF(G12=\"AL1\",1,0)","v":0},{"$f":"IF(AND(K12=\"\",L12=\"\"),TRUE,FALSE)","v":true},{"$f":"IF(AND(K13=\"\",L13=\"\"),TRUE,FALSE)","v":true},null,{"$f":"COUNTIF(AE14:AI14,0)","v":5},{"$f":"IF((E14=\" \"),TRUE,FALSE)","v":false},{"$f":"COUNTIF(AE14:AI14,5)","v":0},{"$f":"COUNTIF(AE14:AI14,4)","v":0},{"$f":"COUNTIF(AE14:AI14,2)","v":0},{"$f":"COUNTIF(AE14:AI14,1)","v":0},null,{"$f":"IF(G13=\"AL5\",5,0)","v":0},{"$f":"IF(G13=\"AL4\",4,0)","v":0},{"$f":"IF(G13=\"AL3\",3,0)","v":0},{"$f":"IF(G13=\"AL2\",2,0)","v":0},{"$f":"IF(G13=\"AL1\",1,0)","v":0}]
[{"$nulls":3},"4.1.4","The department must have adequate and qualified academic staff responsible for implementing the programme. The expected ratio of full time and part time academic staff is 60:40 .  ",null,null,{"$f":"VLOOKUP(G15,$BA$5:$BR$11,5)","v":{"$error":"#N/A"}}]
[{"$nulls":7},{"$f":"VLOOKUP(G16,$BA$5:$BR$11,5)","v":{"$error":"#N/A"}}]
[{"$nulls":4},{"$f":"IF(AND(I15=\"\",J15=\"\",K15=\"\",L15=\"\"),\"INPUT ERROR! Please provide remarks\",\" \")","v":"INPUT ERROR! Please provide remarks"},{"$nulls":24},{"$f":"IF(G15=\"\",FALSE,TRUE)","v":false},{"$f":"IF(G15=\"AL5\",5,0)","v":0},{"$f":"IF(G15=\"AL4\",4,0)","v":0},{"$f":"IF(G15=\"AL3\",3,0)","v":0},{"$f":"IF(G15=\"AL2\",2,0)","v":0},{"$f":"IF(G15=\"AL1\",1,0)","v":0},{"$f":"IF(AND(K15=\"\",L15=\"\"),TRUE,FALSE)","v":true},{"$f":"IF(AND(K16=\"\",L16=\"\"),TRUE,FALSE)","v":true},null,{"$f":"COUNTIF(AE17:AI17,0)","v":5},{"$f":"IF((E17=\" \"),TRUE,FALSE)","v":false},{"$f":"COUNTIF(AE17:AI17,5)","v":0},{"$f":"COUNTIF(AE17:AI17,4)","v":0},{"$f":"COUNTIF(AE17:AI17,2)","v":0},{"$f":"COUNTIF(AE17:AI17,1)","v":0},null,{"$f":"IF(G16=\"AL5\",5,0)","v":0},{"$f":"IF(G16=\"AL4\",4,0)","v":0},{"$f":"IF(G16=\"AL3\",3,0)","v":0},{"$f":"IF(G16=\"AL2\",2,0)","v":0},{"$f":"IF(G16=\"AL1\",1,0)","v":0}]
[{"$nulls":3},"4.1.5","The policy of the department must reflect an equitable distribution of responsibilities among the academic staff.",null,null,{"$f":"VLOOKUP(G18,$BA$5:$BR$11,6)","v":{"$error":"#N/A"}}]
[{"$nulls":7},{"$f":"VLOOKUP(G19,$BA$5:$BR$11,6)","v":{"$error":"#N/A"}}]
[{"$nulls":4},{"$f":"IF(AND(I18=\"\",J18=\"\",K18=\"\",L18=\"\"),\"INPUT ERROR! Please provide remarks\",\" \")","v":"INPUT ERROR! Please provide remarks"},{"$nulls":24},{"$f":"IF(G18=\"\",FALSE,TRUE)","v":false},{"$f":"IF(G18=\"AL5\",5,0)","v":0},{"$f":"IF(G18=\"AL4\",4,0)","v":0},{"$f":"IF(G18=\"AL3\",3,0)","v":0},{"$f":"IF(G18=\"AL2\",2,0)","v":0},{"$f":"IF(G18=\"AL1\",1,0)","v":0},{"$f":"IF(AND(K18=\"\",L18=\"\"),TRUE,FALSE)","v":true},{"$f":"IF(AND(K19=\"\",L19=\"\"),TRUE,FALSE)","v":true},null,{"$f":"COUNTIF(AE20:AI20,0)","v":5},{"$f":"IF((E20=\" \"),TRUE,FALSE)","v":false},{"$f":"COUNTIF(AE20:AI20,5)","v":0},{"$f":"COUNTIF(AE20:AI20,4)","v":0},{"$f":"COUNTIF(AE20:AI20,2)","v":0},{"$f":"COUNTIF(AE20:AI20,1)","v":0},null,{"$f":"IF(G19=\"AL5\",5,0)","v":0},{"$f":"IF(G19=\"AL4\",4,0)","v":0},{"$f":"IF(G19=\"AL3\",3,0)","v":0},{"$f":"IF(G19=\"AL2\",2,0)","v":0},{"$f":"IF(G19=\"AL1\",1,0)","v":0}]
[{"$nulls":3},"4.1.6","The recruitment policy for a particular programme must seek diversity among the academic staff in terms of experience, approaches, and backgrounds.",null,null,{"$f":"VLOOKUP(G21,$BA$5:$BR$11,7)","v":{"$error":"#N/A"}}]
[{"$nulls":7},{"$f":"VLOOKUP(G22,$BA$5:$BR$11,7)","v":{"$error":"#N/A"}}]
[{"$nulls":4},{"$f":"IF(AND(I21=\"\",J21=\"\",K21=\"\",L21=\"\"),\"INPUT ERROR! Please provide remarks\",\" \")","v":"INPUT ERROR! Please provide remarks"},{"$nulls":24},{"$f":"IF(G21=\"\",FALSE,TRUE)","v":false},{"$f":"IF(G21=\"AL5\",5,0)","v":0},{"$f":"IF(G21=\"AL4\",4,0)","v":0},{"$f":"IF(G21=\"AL3\",3,0)","v":0},{"$f":"IF(G21=\"AL2\",2,0)","v":0},{"$f":"IF(G21=\"AL1\",1,0)","v":0},{"$f":"IF(AND(K21=\"\",L21=\"\"),TRUE,FALSE)","v":true},{"$f":"IF(AND(K22=\"\",L22=\"\"),TRUE,FALSE)","v":true},null,{"$f":"COUNTIF(AE23:AI23,0)","v":5},{"$f":"IF((E23=\" \"),TRUE,FALSE)","v":false},{"$f":"COUNTIF(AE23:AI23,5)","v":0},{"$f":"COUNTIF(AE23:AI23,4)","v":0},{"$f":"COUNTIF(AE23:AI23,2)","v":0},{"$f":"COUNTIF(AE23:AI23,1)","v":0},null,{"$f":"IF(G22=\"AL5\",5,0)","v":0},{"$f":"IF(G22=\"AL4\",4,0)","v":0},{"$f":"IF(G22=\"AL3\",3,0)","v":0},{"$f":"IF(G22=\"AL2\",2,0)","v":0},{"$f":"IF(G22=\"AL1\",1,0)","v":0}]
[{"$nulls":3},"4.1.7","Policies and procedures for recognition through promotion, salary increment or other remuneration must be clear, transparent and based on merit.",null,null,{"$f":"VLOOKUP(G24,$BA$5:$BR$11,8)","v":{"$error":"#N/A"}}]
[{"$nulls":7},{"$f":"VLOOKUP(G25,$BA$5:$BR$11,8)","v":{"$error":"#N/A"}}]
[{"$nulls":4},{"$f":"IF(AND(I24=\"\",J24=\"\",K24=\"\",L24=\"\"),\"INPUT ERROR! Please provide remarks\",\" \")","v":"INPUT ERROR! Please provide remarks"},{"$nulls":24},{"$f":"IF(G24=\"\",FALSE,TRUE)","v":false},{"$f":"IF(G24=\"AL5\",5,0)","v":0},{"$f":"IF(G24=\"AL4\",4,0)","v":0},{"$f":"IF(G24=\"AL3\",3,0)","v":0},{"$f":"IF(G24=\"AL2\",2,0)","v":0},{"$f":"IF(G24=\"AL1\",1,0)","v":0},{"$f":"IF(AND(K24=\"\",L24=\"\"),TRUE,FALSE)","v":true},{"$f":"IF(AND(K25=\"\",L25=\"\"),TRUE,FALSE)","v":true},null,5,{"$f":"IF((E26=\" \"),TRUE,FALSE)","v":false},0,0,0,0,null,{"$f":"IF(G25=\"AL5\",5,0)","v":0},{"$f":"IF(G25=\"AL4\",4,0)","v":0},{"$f":"IF(G25=\"AL3\",3,0)","v":0},{"$f":"IF(G25=\"AL2\",2,0)","v":0},{"$f":"IF(G25=\"AL1\",1,0)","v":0}]
[{"$nulls":3},"4.1.8","The department must have national and international linkages to provide for the involvement of experienced academics, professionals and practitioners in order to enhance teaching and learning in the programme.",null,null,{"$f":"VLOOKUP(G27,$BA$5:$BR$11,9)","v":{"$error":"#N/A"}}]
[{"$nulls":7},{"$f":"VLOOKUP(G28,$BA$5:$BR$11,9)","v":{"$error":"#N/A"}}]
[{"$nulls":4},{"$f":"IF(AND(I27=\"\",J27=\"\",K27=\"\",L27=\"\"),\"INPUT ERROR! Please provide remarks\",\" \")","v":"INPUT ERROR! Please provide remarks"},{"$nulls":24},{"$f":"IF(G27=\"\",FALSE,TRUE)","v":false},{"$f":"IF(G27=\"AL5\",5,0)","v":0},{"$f":"IF(G27=\"AL4\",4,0)","v":0},{"$f":"IF(G27=\"AL3\",3,0)","v":0},{"$f":"IF(G27=\"AL2\",2,0)","v":0},{"$f":"IF(G27=\"AL1\",1,0)","v":0},{"$f":"IF(AND(K27=\"\",L27=\"\"),TRUE,FALSE)","v":true},{"$f":"IF(AND(K28=\"\",L28=\"\"),TRUE,FALSE)","v":true},null,5,{"$f":"IF((E29=\" \"),TRUE,FALSE)","v":false},0,0,0,0,null,{"$f":"IF(G28=\"AL5\",5,0)","v":0},{"$f":"IF(G28=\"AL4\",4,0)","v":0},{"$f":"IF(G28=\"AL3\",3,0)","v":0},{"$f":"IF(G28=\"AL2\",2,0)","v":0},{"$f":"IF(G28=\"AL1\",1,0)","v":0}]
[]
[{"$nulls":3},4.2,"Service and Development",null,"Achievement Level          (AL)","AL Descriptor","Strength/ Commendation","Steps taken to maintain and enhance the strengths/\nCurrent Practices","Areas of concern/ Weakness/ Condition ","Steps taken to address the problem areas "]
[{"$nulls":3},"4.2.1","The department must have policies addressing matters related to service, development and appraisal of the academic staff.",null,null,{"$f":"VLOOKUP(G32,$BA$5:$BR$11,10)","v":{"$error":"#N/A"}}]
[{"$nulls":7},{"$f":"VLOOKUP(G33,$BA$5:$BR$11,10)","v":{"$error":"#N/A"}}]
[{"$nulls":4},{"$f":"IF(AND(I32=\"\",J32=\"\",K32=\"\",L32=\"\"),\"INPUT ERROR! Please provide remarks\",\" \")","v":"INPUT ERROR! Please provide remarks"},{"$nulls":24},{"$f":"IF(G32=\"\",FALSE,TRUE)","v":false},{"$f":"IF(G32=\"AL5\",5,0)","v":0},{"$f":"IF(G32=\"AL4\",4,0)","v":0},{"$f":"IF(G32=\"AL3\",3,0)","v":0},{"$f":"IF(G32=\"AL2\",2,0)","v":0},{"$f":"IF(G32=\"AL1\",1,0)","v":0},{"$f":"IF(AND(K32=\"\",L32=\"\"),TRUE,FALSE)","v":true},{"$f":"IF(AND(K33=\"\",L33=\"\"),TRUE,FALSE)","v":true},null,5,{"$f":"IF((E34=\" \"),TRUE,FALSE)","v":false},0,0,0,0,null,{"$f":"IF(G33=\"AL5\",5,0)","v":0},{"$f":"IF(G33=\"AL4\",4,0)","v":0},{"$f":"IF(G33=\"AL3\",3,0)","v":0},{"$f":"IF(G33=\"AL2\",2,0)","v":0},{"$f":"IF(G33=\"AL1\",1,0)","v":0}]
[{"$nulls":3},"4.2.2","The department must provide opportunities for academic staff to focus on their respective areas of expertise. ",null,null,{"$f":"VLOOKUP(G35,$BA$5:$BR$11,11)","v":{"$error":"#N/A"}}]
[{"$nulls":7},{"$f":"VLOOKUP(G36,$BA$5:$BR$11,11)","v":{"$error":"#N/A"}}]
[{"$nulls":4},{"$f":"IF(AND(I35=\"\",J35=\"\",K35=\"\",L35=\"\"),\"INPUT ERROR! Please provide remarks\",\" \")","v":"INPUT ERROR! Please provide remarks"},{"$nulls":24},{"$f":"IF(G35=\"\",FALSE,TRUE)","v":false},{"$f":"IF(G35=\"AL5\",5,0)","v":0},{"$f":"IF(G35=\"AL4\",4,0)","v":0},{"$f":"IF(G35=\"AL3\",3,0)","v":0},{"$f":"IF(G35=\"AL2\",2,0)","v":0},{"$f":"IF(G35=\"AL1\",1,0)","v":0},{"$f":"IF(AND(K35=\"\",L35=\"\"),TRUE,FALSE)","v":true},{"$f":"IF(AND(K36=\"\",L36=\"\"),TRUE,FALSE)","v":true},null,5,{"$f":"IF((E37=\" \"),TRUE,FALSE)","v":false},0,0,0,0,null,{"$f":"IF(G36=\"AL5\",5,0)","v":0},{"$f":"IF(G36=\"AL4\",4,0)","v":0},{"$f":"IF(G36=\"AL3\",3,0)","v":0},{"$f":"IF(G36=\"AL2\",2,0)","v":0},{"$f":"IF(G36=\"AL1\",1,0)","v":0}]
[{"$nulls":3},"4.2.3","The HEP must have clear policies on conflict of interest and professional conduct including procedures for handling disciplinary cases among academic staff.",null,null,{"$f":"VLOOKUP(G38,$BA$5:$BR$11,12)","v":{"$error":"#N/A"}}]
[{"$nulls":7},{"$f":"VLOOKUP(G39,$BA$5:$BR$11,12)","v":{"$error":"#N/A"}}]
[{"$nulls":4},{"$f":"IF(AND(I38=\"\",J38=\"\",K38=\"\",L38=\"\"),\"INPUT ERROR! Please provide remarks\",\" \")","v":"INPUT ERROR! Please provide remarks"},{"$nulls":24},{"$f":"IF(G38=\"\",FALSE,TRUE)","v":false},{"$f":"IF(G38=\"AL5\",5,0)","v":0},{"$f":"IF(G38=\"AL4\",4,0)","v":0},{"$f":"IF(G38=\"AL3\",3,0)","v":0},{"$f":"IF(G38=\"AL2\",2,0)","v":0},{"$f":"IF(G38=\"AL1\",1,0)","v":0},{"$f":"IF(AND(K38=\"\",L38=\"\"),TRUE,FALSE)","v":true},{"$f":"IF(AND(K39=\"\",L39=\"\"),TRUE,FALSE)","v":true},null,5,{"$f":"IF((E40=\" \"),TRUE,FALSE)","v":false},0,0,0,0,null,{"$f":"IF(G39=\"AL5\",5,0)","v":0},{"$f":"IF(G39=\"AL4\",4,0)","v":0},{"$f":"IF(G39=\"AL3\",3,0)","v":0},{"$f":"IF(G39=\"AL2\",2,0)","v":0},{"$f":"IF(G39=\"AL1\",1,0)","v":0}]
[{"$nulls":3},"4.2.4","The HEP must have mechanisms and processes for periodic student evaluation of the academic staff quality improvement. ",null,null,{"$f":"VLOOKUP(G41,$BA$5:$BR$11,13)","v":{"$error":"#N/A"}}]
[{"$nulls":7},{"$f":"VLOOKUP(G42,$BA$5:$BR$11,13)","v":{"$error":"#N/A"}}]
[{"$nulls":4},{"$f":"IF(AND(I41=\"\",J41=\"\",K41=\"\",L41=\"\"),\"INPUT ERROR! Please provide remarks\",\" \")","v":"INPUT ERROR! Please provide remarks"},{"$nulls":24},{"$f":"IF(G41=\"\",FALSE,TRUE)","v":false},{"$f":"IF(G41=\"AL5\",5,0)","v":0},{"$f":"IF(G41=\"AL4\",4,0)","v":0},{"$f":"IF(G41=\"AL3\",3,0)","v":0},{"$f":"IF(G41=\"AL2\",2,0)","v":0},{"$f":"IF(G41=\"AL1\",1,0)","v":0},{"$f":"IF(AND(K41=\"\",L41=\"\"),TRUE,FALSE)","v":true},{"$f":"IF(AND(K42=\"\",L42=\"\"),TRUE,FALSE)","v":true},null,5,{"$f":"IF((E43=\" \"),TRUE,FALSE)","v":false},0,0,0,0,null,{"$f":"IF(G42=\"AL5\",5,0)","v":0},{"$f":"IF(G42=\"AL4\",4,0)","v":0},{"$f":"IF(G42=\"AL3\",3,0)","v":0},{"$f":"IF(G42=\"AL2\",2,0)","v":0},{"$f":"IF(G42=\"AL1\",1,0)","v":0}]
[{"$nulls":3},"4.2.5","The department must have a development programme for new academic staff and continuous professional enhancement for existing staff. ",null,null,{"$f":"VLOOKUP(G44,$BA$5:$BR$11,14)","v":{"$error":"#N/A"}}]
[{"$nulls":7},{"$f":"VLOOKUP(G45,$BA$5:$BR$11,14)","v":{"$error":"#N/A"}}]
[{"$nulls":4},{"$f":"IF(AND(I44=\"\",J44=\"\",K44=\"\",L44=\"\"),\"INPUT ERROR! Please provide remarks\",\" \")","v":"INPUT ERROR! Please provide remarks"},{"$nulls":24},{"$f":"IF(G44=\"\",FALSE,TRUE)","v":false},{"$f":"IF(G44=\"AL5\",5,0)","v":0},{"$f":"IF(G44=\"AL4\",4,0)","v":0},{"$f":"IF(G44=\"AL3\",3,0)","v":0},{"$f":"IF(G44=\"AL2\",2,0)","v":0},{"$f":"IF(G44=\"AL1\",1,0)","v":0},{"$f":"IF(AND(K44=\"\",L44=\"\"),TRUE,FALSE)","v":true},{"$f":"IF(AND(K45=\"\",L45=\"\"),TRUE,FALSE)","v":true},null,5,{"$f":"IF((E46=\" \"),TRUE,FALSE)","v":false},0,0,0,0,null,{"$f":"IF(G45=\"AL5\",5,0)","v":0},{"$f":"IF(G45=\"AL4\",4,0)","v":0},{"$f":"IF(G45=\"AL3\",3,0)","v":0},{"$f":"IF(G45=\"AL2\",2,0)","v":0},{"$f":"IF(G45=\"AL1\",1,0)","v":0}]
[{"$nulls":3},"4.2.6","The HEP must provide opportunities for academic staff to participate in professional, academic and other relevant activities, at national and international to obtain professional qualifications to enhance teaching-learning experience.",null,null,{"$f":"VLOOKUP(G47,$BA$5:$BR$11,15)","v":{"$error":"#N/A"}}]
[{"$nulls":7},{"$f":"VLOOKUP(G48,$BA$5:$BR$11,15)","v":{"$error":"#N/A"}}]
[{"$nulls":4},{"$f":"IF(AND(I47=\"\",J47=\"\",K47=\"\",L47=\"\"),\"INPUT ERROR! Please provide remarks\",\" \")","v":"INPUT ERROR! Please provide remarks"},{"$nulls":24},{"$f":"IF(G47=\"\",FALSE,TRUE)","v":false},{"$f":"IF(G47=\"AL5\",5,0)","v":0},{"$f":"IF(G47=\"AL4\",4,0)","v":0},{"$f":"IF(G47=\"AL3\",3,0)","v":0},{"$f":"IF(G47=\"AL2\",2,0)","v":0},{"$f":"IF(G47=\"AL1\",1,0)","v":0},{"$f":"IF(AND(K47=\"\",L47=\"\"),TRUE,FALSE)","v":true},{"$f":"IF(AND(K48=\"\",L48=\"\"),TRUE,FALSE)","v":true},null,5,{"$f":"IF((E49=\" \"),TRUE,FALSE)","v":false},0,0,0,0,null,{"$f":"IF(G48=\"AL5\",5,0)","v":0},{"$f":"IF(G48=\"AL4\",4,0)","v":0},{"$f":"IF(G48=\"AL3\",3,0)","v":0},{"$f":"IF(G48=\"AL2\",2,0)","v":0},{"$f":"IF(G48=\"AL1\",1,0)","v":0}]
[{"$nulls":3},"4.2.7","The department must encourage and facilitate its academic staff to play an active role in community and industry engagement activities.",null,null,{"$f":"VLOOKUP(G50,$BA$5:$BR$11,16)","v":{"$error":"#N/A"}}]
[{"$nulls":7},{"$f":"VLOOKUP(G51,$BA$5:$BR$11,16)","v":{"$error":"#N/A"}}]
[{"$nulls":4},{"$f":"IF(AND(I50=\"\",J50=\"\",K50=\"\",L50=\"\"),\"INPUT ERROR! Please provide remarks\",\" \")","v":"INPUT ERROR! Please provide remarks"},{"$nulls":24},{"$f":"IF(G50=\"\",FALSE,TRUE)","v":false},{"$f":"IF(G50=\"AL5\",5,0)","v":0},{"$f":"IF(G50=\"AL4\",4,0)","v":0},{"$f":"IF(G50=\"AL3\",3,0)","v":0},{"$f":"IF(G50=\"AL2\",2,0)","v":0},{"$f":"IF(G50=\"AL1\",1,0)","v":0},{"$f":"IF(AND(K50=\"\",L50=\"\"),TRUE,FALSE)","v":true},{"$f":"IF(AND(K51=\"\",L51=\"\"),TRUE,FALSE)","v":true},null,5,{"$f":"IF((E52=\" \"),TRUE,FALSE)","v":false},0,0,0,0,null,{"$f":"IF(G51=\"AL5\",5,0)","v":0},{"$f":"IF(G51=\"AL4\",4,0)","v":0},{"$f":"IF(G51=\"AL3\",3,0)","v":0},{"$f":"IF(G51=\"AL2\",2,0)","v":0},{"$f":"IF(G51=\"AL1\",1,0)","v":0}]
{"$rows_empty":8}
[{"$nulls":29},{"$f":"IF(AND(AD8:AD58,AN8:AN58),TRUE,FALSE)","v":false},{"$nulls":5},{"$f":"IF(AND(AJ8:AJ59),TRUE,FALSE)","v":true},{"$f":"IF(AND(AK8:AK59),TRUE,FALSE)","v":true}]
[]
[{"$nulls":29},{"$f":"COUNTA(AD8:AD58)","v":15},{"$f":"COUNTIF(AE8:AE58,5)","v":0},{"$f":"COUNTIF(AF8:AF58,4)","v":0},{"$f":"COUNTIF(AG8:AG58,3)","v":0},{"$f":"COUNTIF(AH8:AH58,2)","v":0},{"$f":"COUNTIF(AI8:AI58,1)","v":0},{"$nulls":10},{"$f":"COUNTIF(AT8:AT58,5)","v":0},{"$f":"COUNTIF(AU8:AU58,4)","v":0},{"$f":"COUNTIF(AV8:AV58,3)","v":0},{"$f":"COUNTIF(AW8:AW58,2)","v":0},{"$f":"COUNTIF(AX8:AX58,1)","v":0}]

{"sheet":"Sheet1 (5)","index":7,"n_rows":58,"n_cols":63,"rows_kept":58,"merged":[[5,4,6,4],[7,4,7,11],[8,4,9,4],[10,4,10,11],[11,4,12,4],[13,4,13,11],[14,4,15,4],[16,4,16,11],[19,4,20,4],[21,4,21,11],[22,4,23,4],[24,4,24,11],[25,4,26,4],[27,4,27,11],[30,4,31,4],[32,4,32,11],[33,4,34,4],[35,4,35,11],[36,4,37,4],[38,4,38,11]]}
[{"$nulls":6},"Evaluation Instrument of COPPA 2nd Edition (2017)"]
[]
[{"$nulls":6},"AREA 5: EDUCATIONAL RESOURCES"]
[]
[{"$nulls":3},5.1,"Physical Facilities",null,"Achievement Level          (AL)","AL Descriptor","Strength/ Commendation","Steps taken to maintain and enhance the strengths/\nCurrent Practices","Areas of concern/ Weakness/ Condition ","Steps taken to address the problem areas ",{"$nulls":17},"√",{"$nulls":22},"AL1","Inadequate and inappropriate physical facilities and educational resources","Not complied at all","Inadequate and outdated reference materials and inapproriate staff","Not reviewed and not maintaned","Do not have apolicy at all","Not reflected at all","Not reviewed at all","Not demonstrated at all","No defined line of responsibility and authority","No defined procedures at all"]
[{"$nulls":3},"5.1.1","The programme must have sufficient and appropriate physical facilities and educational resources to ensure its effective delivery including facilities for practical-based programmes and for those with special needs. ",null,null,{"$f":"VLOOKUP(G6,$BA$5:$BR$11,2)","v":{"$error":"#N/A"}},{"$nulls":44},"AL2","Adequate but inappropriate physical facilities and educational resources","Poorly complied","Adequate but outdated reference materials and inapproriate staff","Irregularly reviewed and maintaned","Have a poorly documented policy","Poorly reflected","Irregularly reviewed","Poorly demonstrated","Poorly defined line of responsibility and authority","Poorly defined procedures"]
[{"$nulls":7},{"$f":"VLOOKUP(G7,$BA$5:$BR$11,2)","v":{"$error":"#N/A"}},{"$nulls":44},"AL3","Sufficient and appropriate physical facilities and educational resources","Adequately complied","Adequate and up-to-date reference materials and qualified staff","Periodically reviewed and maintaned","Have a documented policy","Adequately reflected","Periodically reviewed","Adequately demonstrated","Adequately defined line of responsibility and authority","Adequately defined procedures"]
[{"$nulls":4},{"$f":"IF(AND(I6=\"\",J6=\"\",K6=\"\",L6=\"\"),\"INPUT ERROR! Please provide remarks\",\" \")","v":"INPUT ERROR! Please provide remarks"},{"$nulls":24},{"$f":"IF(G6=\"\",FALSE,TRUE)","v":false},{"$f":"IF(G6=\"AL5\",5,0)","v":0},{"$f":"IF(G6=\"AL4\",4,0)","v":0},{"$f":"IF(G6=\"AL3\",3,0)","v":0},{"$f":"IF(G6=\"AL2\",2,0)","v":0},{"$f":"IF(G6=\"AL1\",1,0)","v":0},{"$f":"IF(AND(K6=\"\",L6=\"\"),TRUE,FALSE)","v":true},{"$f":"IF(AND(K7=\"\",L7=\"\"),TRUE,FALSE)","v":true},null,{"$f":"COUNTIF(AE8:AI8,0)","v":5},{"$f":"IF((E8=\" \"),TRUE,FALSE)","v":false},{"$f":"COUNTIF(AE8:AI8,5)","v":0},{"$f":"COUNTIF(AE8:AI8,4)","v":0},{"$f":"COUNTIF(AE8:AI8,2)","v":0},{"$f":"COUNTIF(AE8:AI8,1)","v":0},null,{"$f":"IF(G7=\"AL5\",5,0)","v":0},{"$f":"IF(G7=\"AL4\",4,0)","v":0},{"$f":"IF(G7=\"AL3\",3,0)","v":0},{"$f":"IF(G7=\"AL2\",2,0)","v":0},{"$f":"IF(G7=\"AL1\",1,0)","v":0},null,null,"AL4","Ample and correct physical facilities and educational resources","Well complied","Ample and up-to-date reference materials and well qualified staff","Regularly reviewed and periodically maintaned","Have a well documented policy","Well reflected","Regularly reviewed","Well demonstrated","Well defined line of responsibility and authority","Well defined procedures"]
[{"$nulls":3},"5.1.2","The physical facilities must comply with the relevant laws and regulations.  ",null,null,{"$f":"VLOOKUP(G9,$BA$5:$BR$11,3)","v":{"$error":"#N/A"}},{"$nulls":44},"AL5","Abundant and precise physical facilities and educational resources","Very well complied","Abundant and most current reference materials and very well qualified staff","Consistently reviewed and constantly maintaned","Have a very well documented policy","Very well reflected","Consistently reviewed","Very well demonstrated","Very well defined line of responsibility and authority","Very well defined procedures"]
[{"$nulls":7},{"$f":"VLOOKUP(G10,$BA$5:$BR$11,3)","v":{"$error":"#N/A"}}]
[{"$nulls":4},{"$f":"IF(AND(I9=\"\",J9=\"\",K9=\"\",L9=\"\"),\"INPUT ERROR! Please provide remarks\",\" \")","v":"INPUT ERROR! Please provide remarks"},{"$nulls":24},{"$f":"IF(G9=\"\",FALSE,TRUE)","v":false},{"$f":"IF(G9=\"AL5\",5,0)","v":0},{"$f":"IF(G9=\"AL4\",4,0)","v":0},{"$f":"IF(G9=\"AL3\",3,0)","v":0},{"$f":"IF(G9=\"AL2\",2,0)","v":0},{"$f":"IF(G9=\"AL1\",1,0)","v":0},{"$f":"IF(AND(K9=\"\",L9=\"\"),TRUE,FALSE)","v":true},{"$f":"IF(AND(K10=\"\",L10=\"\"),TRUE,FALSE)","v":true},null,{"$f":"COUNTIF(AE11:AI11,0)","v":5},{"$f":"IF((E11=\" \"),TRUE,FALSE)","v":false},{"$f":"COUNTIF(AE11:AI11,5)","v":0},{"$f":"COUNTIF(AE11:AI11,4)","v":0},{"$f":"COUNTIF(AE11:AI11,2)","v":0},{"$f":"COUNTIF(AE11:AI11,1)","v":0},null,{"$f":"IF(G10=\"AL5\",5,0)","v":0},{"$f":"IF(G10=\"AL4\",4,0)","v":0},{"$f":"IF(G10=\"AL3\",3,0)","v":0},{"$f":"IF(G10=\"AL2\",2,0)","v":0},{"$f":"IF(G10=\"AL1\",1,0)","v":0}]
[{"$nulls":3},"5.1.3","The library or resource centre must have adequate and up-to-date reference materials and qualified staff that meet the needs of the programme and research amongst academic staff and students. ",null,null,{"$f":"VLOOKUP(G12,$BA$5:$BR$11,4)","v":{"$error":"#N/A"}}]
[{"$nulls":7},{"$f":"VLOOKUP(G13,$BA$5:$BR$11,4)","v":{"$error":"#N/A"}}]
[{"$nulls":4},{"$f":"IF(AND(I12=\"\",J12=\"\",K12=\"\",L12=\"\"),\"INPUT ERROR! Please provide remarks\",\" \")","v":"INPUT ERROR! Please provide remarks"},{"$nulls":24},{"$f":"IF(G12=\"\",FALSE,TRUE)","v":false},{"$f":"IF(G12=\"AL5\",5,0)","v":0},{"$f":"IF(G12=\"AL4\",4,0)","v":0},{"$f":"IF(G12=\"AL3\",3,0)","v":0},{"$f":"IF(G12=\"AL2\",2,0)","v":0},{"$f":"IF(G12=\"AL1\",1,0)","v":0},{"$f":"IF(AND(K12=\"\",L12=\"\"),TRUE,FALSE)","v":true},{"$f":"IF(AND(K13=\"\",L13=\"\"),TRUE,FALSE)","v":true},null,{"$f":"COUNTIF(AE14:AI14,0)","v":5},{"$f":"IF((E14=\" \"),TRUE,FALSE)","v":false},{"$f":"COUNTIF(AE14:AI14,5)","v":0},{"$f":"COUNTIF(AE14:AI14,4)","v":0},{"$f":"COUNTIF(AE14:AI14,2)","v":0},{"$f":"COUNTIF(AE14:AI14,1)","v":0},null,{"$f":"IF(G13=\"AL5\",5,0)","v":0},{"$f":"IF(G13=\"AL4\",4,0)","v":0},{"$f":"IF(G13=\"AL3\",3,0)","v":0},{"$f":"IF(G13=\"AL2\",2,0)","v":0},{"$f":"IF(G13=\"AL1\",1,0)","v":0}]
[{"$nulls":3},"5.1.4","The educational resources, services and facilities must be maintaned and periodically reviewed to improve the quality and appropriateness. ",null,null,{"$f":"VLOOKUP(G15,$BA$5:$BR$11,5)","v":{"$error":"#N/A"}}]
[{"$nulls":7},{"$f":"VLOOKUP(G16,$BA$5:$BR$11,5)","v":{"$error":"#N/A"}}]
[{"$nulls":4},{"$f":"IF(AND(I15=\"\",J15=\"\",K15=\"\",L15=\"\"),\"INPUT ERROR! Please provide remarks\",\" \")","v":"INPUT ERROR! Please provide remarks"},{"$nulls":24},{"$f":"IF(G15=\"\",FALSE,TRUE)","v":false},{"$f":"IF(G15=\"AL5\",5,0)","v":0},{"$f":"IF(G15=\"AL4\",4,0)","v":0},{"$f":"IF(G15=\"AL3\",3,0)","v":0},{"$f":"IF(G15=\"AL2\",2,0)","v":0},{"$f":"IF(G15=\"AL1\",1,0)","v":0},{"$f":"IF(AND(K15=\"\",L15=\"\"),TRUE,FALSE)","v":true},{"$f":"IF(AND(K16=\"\",L16=\"\"),TRUE,FALSE)","v":true},null,{"$f":"COUNTIF(AE17:AI17,0)","v":5},{"$f":"IF((E17=\" \"),TRUE,FALSE)","v":false},{"$f":"COUNTIF(AE17:AI17,5)","v":0},{"$f":"COUNTIF(AE17:AI17,4)","v":0},{"$f":"COUNTIF(AE17:AI17,2)","v":0},{"$f":"COUNTIF(AE17:AI17,1)","v":0},null,{"$f":"IF(G16=\"AL5\",5,0)","v":0},{"$f":"IF(G16=\"AL4\",4,0)","v":0},{"$f":"IF(G16=\"AL3\",3,0)","v":0},{"$f":"IF(G16=\"AL2\",2,0)","v":0},{"$f":"IF(G16=\"AL1\",1,0)","v":0}]
[]
[{"$nulls":3},5.2,"Research and Development                  (Please note that the standards on Research and Development are largely directed to universities and university colleges)",null,"Achievement Level          (AL)","AL Descriptor","Strength/ Commendation","Steps taken to maintain and enhance the strengths/\nCurrent Practices","Areas of concern/ Weakness/ Condition ","Steps taken to address the problem areas "]
[{"$nulls":3},"5.2.1","The department must have a research policy with adequate facilities and resources to sustain them.",null,null,{"$f":"VLOOKUP(G20,$BA$5:$BR$11,6)","v":{"$error":"#N/A"}}]
[{"$nulls":7},{"$f":"VLOOKUP(G21,$BA$5:$BR$11,6)","v":{"$error":"#N/A"}}]
[{"$nulls":4},{"$f":"IF(AND(I20=\"\",J20=\"\",K20=\"\",L20=\"\"),\"INPUT ERROR! Please provide remarks\",\" \")","v":"INPUT ERROR! Please provide remarks"},{"$nulls":23},{"$f":"IF(G20=\"\",FALSE,TRUE)","v":false},{"$f":"AC22","v":false},{"$f":"IF(G20=\"AL5\",5,0)","v":0},{"$f":"IF(G20=\"AL4\",4,0)","v":0},{"$f":"IF(G20=\"AL3\",3,0)","v":0},{"$f":"IF(G20=\"AL2\",2,0)","v":0},{"$f":"IF(G20=\"AL1\",1,0)","v":0},{"$f":"IF(AND(K20=\"\",L20=\"\"),TRUE,FALSE)","v":true},{"$f":"IF(AND(K21=\"\",L21=\"\"),TRUE,FALSE)","v":true},null,{"$f":"COUNTIF(AE22:AI22,0)","v":5},{"$f":"IF((E22=\" \"),TRUE,FALSE)","v":false},{"$f":"COUNTIF(AE22:AI22,5)","v":0},{"$f":"COUNTIF(AE22:AI22,4)","v":0},{"$f":"COUNTIF(AE22:AI22,2)","v":0},{"$f":"COUNTIF(AE22:AI22,1)","v":0},null,{"$f":"IF(G21=\"AL5\",5,0)","v":0},{"$f":"IF(G21=\"AL4\",4,0)","v":0},{"$f":"IF(G21=\"AL3\",3,0)","v":0},{"$f":"IF(G21=\"AL2\",2,0)","v":0},{"$f":"IF(G21=\"AL1\",1,0)","v":0}]
[{"$nulls":3},"5.2.2","The interaction between research and learning must be reflected in the curriculum, influence current teaching, and encourage and prepare students for engagement in research, scholarship and development.",null,null,{"$f":"VLOOKUP(G23,$BA$5:$BR$11,7)","v":{"$error":"#N/A"}}]
[{"$nulls":7},{"$f":"VLOOKUP(G24,$BA$5:$BR$11,7)","v":{"$error":"#N/A"}}]
[{"$nulls":4},{"$f":"IF(AND(I23=\"\",J23=\"\",K23=\"\",L23=\"\"),\"INPUT ERROR! Please provide remarks\",\" \")","v":"INPUT ERROR! Please provide remarks"},{"$nulls":23},{"$f":"IF(G23=\"\",FALSE,TRUE)","v":false},{"$f":"AC25","v":false},{"$f":"IF(G23=\"AL5\",5,0)","v":0},{"$f":"IF(G23=\"AL4\",4,0)","v":0},{"$f":"IF(G23=\"AL3\",3,0)","v":0},{"$f":"IF(G23=\"AL2\",2,0)","v":0},{"$f":"IF(G23=\"AL1\",1,0)","v":0},{"$f":"IF(AND(K23=\"\",L23=\"\"),TRUE,FALSE)","v":true},{"$f":"IF(AND(K24=\"\",L24=\"\"),TRUE,FALSE)","v":true},null,5,{"$f":"IF((E25=\" \"),TRUE,FALSE)","v":false},0,0,0,0,null,{"$f":"IF(G24=\"AL5\",5,0)","v":0},{"$f":"IF(G24=\"AL4\",4,0)","v":0},{"$f":"IF(G24=\"AL3\",3,0)","v":0},{"$f":"IF(G24=\"AL2\",2,0)","v":0},{"$f":"IF(G24=\"AL1\",1,0)","v":0}]
[{"$nulls":3},"5.2.3","The department must periodically review its research resources and facilities and take appropriate action to enhance its research capabilities and to promote a conducive research environment. ",null,null,{"$f":"VLOOKUP(G26,$BA$5:$BR$11,8)","v":{"$error":"#N/A"}}]
[{"$nulls":7},{"$f":"VLOOKUP(G27,$BA$5:$BR$11,8)","v":{"$error":"#N/A"}}]
[{"$nulls":4},{"$f":"IF(AND(I26=\"\",J26=\"\",K26=\"\",L26=\"\"),\"INPUT ERROR! Please provide remarks\",\" \")","v":"INPUT ERROR! Please provide remarks"},{"$nulls":23},{"$f":"IF(G26=\"\",FALSE,TRUE)","v":false},{"$f":"AC28","v":false},{"$f":"IF(G26=\"AL5\",5,0)","v":0},{"$f":"IF(G26=\"AL4\",4,0)","v":0},{"$f":"IF(G26=\"AL3\",3,0)","v":0},{"$f":"IF(G26=\"AL2\",2,0)","v":0},{"$f":"IF(G26=\"AL1\",1,0)","v":0},{"$f":"IF(AND(K26=\"\",L26=\"\"),TRUE,FALSE)","v":true},{"$f":"IF(AND(K27=\"\",L27=\"\"),TRUE,FALSE)","v":true},null,5,{"$f":"IF((E28=\" \"),TRUE,FALSE)","v":false},0,0,0,0,null,{"$f":"IF(G27=\"AL5\",5,0)","v":0},{"$f":"IF(G27=\"AL4\",4,0)","v":0},{"$f":"IF(G27=\"AL3\",3,0)","v":0},{"$f":"IF(G27=\"AL2\",2,0)","v":0},{"$f":"IF(G27=\"AL1\",1,0)","v":0}]
[]
[{"$nulls":3},5.3,"Financial Resources",null,"Achievement Level          (AL)","AL Descriptor","Strength/ Commendation","Steps taken to maintain and enhance the strengths/\nCurrent Practices","Areas of concern/ Weakness/ Condition ","Steps taken to address the problem areas "]
[{"$nulls":3},"5.3.1","The HEP must demonstrate financial viability and sustainability for the programme.  ",null,null,{"$f":"VLOOKUP(G31,$BA$5:$BR$11,9)","v":{"$error":"#N/A"}}]
[{"$nulls":7},{"$f":"VLOOKUP(G32,$BA$5:$BR$11,9)","v":{"$error":"#N/A"}}]
[{"$nulls":4},{"$f":"IF(AND(I31=\"\",J31=\"\",K31=\"\",L31=\"\"),\"INPUT ERROR! Please provide remarks\",\" \")","v":"INPUT ERROR! Please provide remarks"},{"$nulls":24},{"$f":"IF(G31=\"\",FALSE,TRUE)","v":false},{"$f":"IF(G31=\"AL5\",5,0)","v":0},{"$f":"IF(G31=\"AL4\",4,0)","v":0},{"$f":"IF(G31=\"AL3\",3,0)","v":0},{"$f":"IF(G31=\"AL2\",2,0)","v":0},{"$f":"IF(G31=\"AL1\",1,0)","v":0},{"$f":"IF(AND(K31=\"\",L31=\"\"),TRUE,FALSE)","v":true},{"$f":"IF(AND(K32=\"\",L32=\"\"),TRUE,FALSE)","v":true},null,5,{"$f":"IF((E33=\" \"),TRUE,FALSE)","v":false},0,0,0,0,null,{"$f":"IF(G32=\"AL5\",5,0)","v":0},{"$f":"IF(G32=\"AL4\",4,0)","v":0},{"$f":"IF(G32=\"AL3\",3,0)","v":0},{"$f":"IF(G32=\"AL2\",2,0)","v":0},{"$f":"IF(G32=\"AL1\",1,0)","v":0}]
[{"$nulls":3},"5.3.2","The HEP must have a clear line of responsibility and authority for budgeting and resource allocation that takes into account the specific needs of the department.",null,null,{"$f":"VLOOKUP(G34,$BA$5:$BR$11,10)","v":{"$error":"#N/A"}}]
[{"$nulls":7},{"$f":"VLOOKUP(G35,$BA$5:$BR$11,10)","v":{"$error":"#N/A"}}]
[{"$nulls":4},{"$f":"IF(AND(I34=\"\",J34=\"\",K34=\"\",L34=\"\"),\"INPUT ERROR! Please provide remarks\",\" \")","v":"INPUT ERROR! Please provide remarks"},{"$nulls":24},{"$f":"IF(G34=\"\",FALSE,TRUE)","v":false},{"$f":"IF(G34=\"AL5\",5,0)","v":0},{"$f":"IF(G34=\"AL4\",4,0)","v":0},{"$f":"IF(G34=\"AL3\",3,0)","v":0},{"$f":"IF(G34=\"AL2\",2,0)","v":0},{"$f":"IF(G34=\"AL1\",1,0)","v":0},{"$f":"IF(AND(K34=\"\",L34=\"\"),TRUE,FALSE)","v":true},{"$f":"IF(AND(K35=\"\",L35=\"\"),TRUE,FALSE)","v":true},null,5,{"$f":"IF((E36=\" \"),TRUE,FALSE)","v":false},0,0,0,0,null,{"$f":"IF(G35=\"AL5\",5,0)","v":0},{"$f":"IF(G35=\"AL4\",4,0)","v":0},{"$f":"IF(G35=\"AL3\",3,0)","v":0},{"$f":"IF(G35=\"AL2\",2,0)","v":0},{"$f":"IF(G35=\"AL1\",1,0)","v":0}]
[{"$nulls":3},"5.3.3","The department must have clear procedures to ensure that its financial resources are sufficient and managed efficiently.",null,null,{"$f":"VLOOKUP(G37,$BA$5:$BR$11,11)","v":{"$error":"#N/A"}}]
[{"$nulls":7},{"$f":"VLOOKUP(G38,$BA$5:$BR$11,11)","v":{"$error":"#N/A"}}]
[{"$nulls":4},{"$f":"IF(AND(I37=\"\",J37=\"\",K37=\"\",L37=\"\"),\"INPUT ERROR! Please provide remarks\",\" \")","v":"INPUT ERROR! Please provide remarks"},{"$nulls":24},{"$f":"IF(G37=\"\",FALSE,TRUE)","v":false},{"$f":"IF(G37=\"AL5\",5,0)","v":0},{"$f":"IF(G37=\"AL4\",4,0)","v":0},{"$f":"IF(G37=\"AL3\",3,0)","v":0},{"$f":"IF(G37=\"AL2\",2,0)","v":0},{"$f":"IF(G37=\"AL1\",1,0)","v":0},{"$f":"IF(AND(K37=\"\",L37=\"\"),TRUE,FALSE)","v":true},{"$f":"IF(AND(K38=\"\",L38=\"\"),TRUE,FALSE)","v":true},null,5,{"$f":"IF((E39=\" \"),TRUE,FALSE)","v":false},0,0,0,0,null,{"$f":"IF(G38=\"AL5\",5,0)","v":0},{"$f":"IF(G38=\"AL4\",4,0)","v":0},{"$f":"IF(G38=\"AL3\",3,0)","v":0},{"$f":"IF(G38=\"AL2\",2,0)","v":0},{"$f":"IF(G38=\"AL1\",1,0)","v":0}]
{"$rows_empty":16}
[{"$nulls":29},{"$f":"IF(AND(AD8:AD53,AN8:AN53),TRUE,FALSE)","v":false},{"$nulls":5},{"$f":"IF(AND(AJ8:AJ54),TRUE,FALSE)","v":true},{"$f":"IF(AND(AK8:AK54),TRUE,FALSE)","v":true}]
[]
[{"$nulls":29},{"$f":"COUNTA(AD8:AD53)","v":10},{"$f":"COUNTIF(AE8:AE53,5)","v":0},{"$f":"COUNTIF(AF8:AF53,4)","v":0},{"$f":"COUNTIF(AG8:AG53,3)","v":0},{"$f":"COUNTIF(AH8:AH53,2)","v":0},{"$f":"COUNTIF(AI8:AI53,1)","v":0},{"$nulls":10},{"$f":"COUNTIF(AT8:AT53,5)","v":0},{"$f":"COUNTIF(AU8:AU53,4)","v":0},{"$f":"COUNTIF(AV8:AV53,3)","v":0},{"$f":"COUNTIF(AW8:AW53,2)","v":0},{"$f":"COUNTIF(AX8:AX53,1)","v":0}]

{"sheet":"Sheet1 (6)","index":8,"n_rows":64,"n_cols":69,"rows_kept":64,"merged":[[5,4,6,4],[7,4,7,11],[8,4,9,4],[10,4,10,11],[11,4,12,4],[13,4,13,11],[14,4,15,4],[16,4,16,11],[17,4,18,4],[19,4,19,11],[20,4,21,4],[22,4,22,11],[25,4,26,4],[27,4,27,11],[28,4,29,4],[30,4,30,11],[31,4,32,4],[33,4,33,11],[36,4,37,4],[38,4,38,11],[39,4,40,4],[41,4,41,11],[42,4,43,4],[44,4,44,11],[47,4,48,4],[49,4,49,11],[50,4,51,4],[52,4,52,11],[53,4,54,4],[55,4,55,11],[56,4,57,4],[58,4,58,11]]}
[{"$nulls":6},"Evaluation Instrument of COPPA 2nd Edition (2017)"]
[]
[{"$nulls":6},"AREA 6: PROGRAMME MANAGEMENT"]
[]
[{"$nulls":3},6.1,"Programme Management",null,"Achievement Level          (AL)","AL Descriptor","Strength/ Commendation","Steps taken to maintain and enhance the strengths/\nCurrent Practices","Areas of concern/ Weakness/ Condition ","Steps taken to address the problem areas ",{"$nulls":17},"√",{"$nulls":22},"AL1","Not clarified and communicated","Inaccurate, irrelevant and untimely information","No documented processes and mechanisms","Futile decision-making body with very little degree of autonomy","Not established at all","Not conducted at all","No defined statements","Held by those with inappropriate qualifications and no experience","No processes and mechanisms","Not adequate at all","No performance review conducted","No training scheme at all","No policies and practices at all","Not maintaned at all","Not implemented at all","No review conducted"]
[{"$nulls":3},"6.1.1","The department must clarify its management structure and function, and the relationships between them, and these must be communicated to all parties involved based on the principles of responsibility, accountability and transparency.  ",null,null,{"$f":"VLOOKUP(G6,$BA$5:$BR$11,2)","v":{"$error":"#N/A"}},{"$nulls":44},"AL2","Poorly clarified and communicated","Relevant but untimely information, not easily accessible","Poorly documented policies and procedures and inappropriate mechanisms","Ineffective decision-making body with an indequate degree of autonomy","Poorly established","Poorly conducted","Poorly defined statements","Held by those with inappropriate qualifications and experience","Inadequate processes and mechanisms","Inadequate staffs","Irregular performance review conducted","Inappropriate training scheme","Inapproriate policies and practices","Incorrectly maintaned","Poorly implemented","Irregular review conducted"]
[{"$nulls":7},{"$f":"VLOOKUP(G7,$BA$5:$BR$11,2)","v":{"$error":"#N/A"}},{"$nulls":44},"AL3","Adequately clarified and communicated","Accurate, relevant and timely information","Documented policies and procedures and appropriate mechanisms","Effective decision-making body with an adequate degree of autonomy","Established","Conducted","Clearly defined statements","Held by those with appropriate qualifications and experience","Documented processes and appropriate mechanisms","Adequate staffs","Regular performance review conducted","Appropriate training scheme","Approriate policies and practices","Appropriately maintaned","Adequately implemented","Regular review conducted"]
[{"$nulls":4},{"$f":"IF(AND(I6=\"\",J6=\"\",K6=\"\",L6=\"\"),\"INPUT ERROR! Please provide remarks\",\" \")","v":"INPUT ERROR! Please provide remarks"},{"$nulls":24},{"$f":"IF(G6=\"\",FALSE,TRUE)","v":false},{"$f":"IF(G6=\"AL5\",5,0)","v":0},{"$f":"IF(G6=\"AL4\",4,0)","v":0},{"$f":"IF(G6=\"AL3\",3,0)","v":0},{"$f":"IF(G6=\"AL2\",2,0)","v":0},{"$f":"IF(G6=\"AL1\",1,0)","v":0},{"$f":"IF(AND(K6=\"\",L6=\"\"),TRUE,FALSE)","v":true},{"$f":"IF(AND(K7=\"\",L7=\"\"),TRUE,FALSE)","v":true},null,{"$f":"COUNTIF(AE8:AI8,0)","v":5},{"$f":"IF((E8=\" \"),TRUE,FALSE)","v":false},{"$f":"COUNTIF(AE8:AI8,5)","v":0},{"$f":"COUNTIF(AE8:AI8,4)","v":0},{"$f":"COUNTIF(AE8:AI8,2)","v":0},{"$f":"COUNTIF(AE8:AI8,1)","v":0},null,{"$f":"IF(G7=\"AL5\",5,0)","v":0},{"$f":"IF(G7=\"AL4\",4,0)","v":0},{"$f":"IF(G7=\"AL3\",3,0)","v":0},{"$f":"IF(G7=\"AL2\",2,0)","v":0},{"$f":"IF(G7=\"AL1\",1,0)","v":0},null,null,"AL4","Well clarified and communicated","Very accurate, relevant and timely information, and easily accessible","Well documented policies and procedures and ample mechanisms","Effective decision-making body with a high degree of autonomy","Well established","Well conducted","Very clearly defined statements","Held by those with correct qualifications and approriate experience","Documented processes and ample mechanisms","Ample staffs","Very regular performance review conducted","Correct training scheme","Correct policies and practices","Correctly maintaned","Well implemented","Very regular review conducted"]
[{"$nulls":3},"6.1.2","The department must provide accurate, relevant and timely information about the programme which are easily and publicly accessible, especially to prospective students.",null,null,{"$f":"VLOOKUP(G9,$BA$5:$BR$11,3)","v":{"$error":"#N/A"}},{"$nulls":44},"AL5","Very well clarified and communicated","Very accurate, relevant and timely information, and very easily accessible","Very well documented policies and procedures and abundant mechanisms","Very dynamic decision-making body with very high degree of autonomy","Very well established","Very well conducted","Highly defined statements","Held by those with correct qualifications and ample experience","Well documented processes and abundant mechanisms","Abundant staffs","Consistent performance review conducted","Precise training scheme","Precise policies and practices","Constantly and correctly maintaned","Very well implemented","Consistent review conducted"]
[{"$nulls":7},{"$f":"VLOOKUP(G10,$BA$5:$BR$11,3)","v":{"$error":"#N/A"}}]
[{"$nulls":4},{"$f":"IF(AND(I9=\"\",J9=\"\",K9=\"\",L9=\"\"),\"INPUT ERROR! Please provide remarks\",\" \")","v":"INPUT ERROR! Please provide remarks"},{"$nulls":24},{"$f":"IF(G9=\"\",FALSE,TRUE)","v":false},{"$f":"IF(G9=\"AL5\",5,0)","v":0},{"$f":"IF(G9=\"AL4\",4,0)","v":0},{"$f":"IF(G9=\"AL3\",3,0)","v":0},{"$f":"IF(G9=\"AL2\",2,0)","v":0},{"$f":"IF(G9=\"AL1\",1,0)","v":0},{"$f":"IF(AND(K9=\"\",L9=\"\"),TRUE,FALSE)","v":true},{"$f":"IF(AND(K10=\"\",L10=\"\"),TRUE,FALSE)","v":true},null,{"$f":"COUNTIF(AE11:AI11,0)","v":5},{"$f":"IF((E11=\" \"),TRUE,FALSE)","v":false},{"$f":"COUNTIF(AE11:AI11,5)","v":0},{"$f":"COUNTIF(AE11:AI11,4)","v":0},{"$f":"COUNTIF(AE11:AI11,2)","v":0},{"$f":"COUNTIF(AE11:AI11,1)","v":0},null,{"$f":"IF(G10=\"AL5\",5,0)","v":0},{"$f":"IF(G10=\"AL4\",4,0)","v":0},{"$f":"IF(G10=\"AL3\",3,0)","v":0},{"$f":"IF(G10=\"AL2\",2,0)","v":0},{"$f":"IF(G10=\"AL1\",1,0)","v":0}]
[{"$nulls":3},"6.1.3","The department must have policies, procedures and mechanisms for regular reviewing and updating of its structures, functions, strategies and core activities to ensure continuous quality improvement. ",null,null,{"$f":"VLOOKUP(G12,$BA$5:$BR$11,4)","v":{"$error":"#N/A"}}]
[{"$nulls":7},{"$f":"VLOOKUP(G13,$BA$5:$BR$11,4)","v":{"$error":"#N/A"}}]
[{"$nulls":4},{"$f":"IF(AND(I12=\"\",J12=\"\",K12=\"\",L12=\"\"),\"INPUT ERROR! Please provide remarks\",\" \")","v":"INPUT ERROR! Please provide remarks"},{"$nulls":24},{"$f":"IF(G12=\"\",FALSE,TRUE)","v":false},{"$f":"IF(G12=\"AL5\",5,0)","v":0},{"$f":"IF(G12=\"AL4\",4,0)","v":0},{"$f":"IF(G12=\"AL3\",3,0)","v":0},{"$f":"IF(G12=\"AL2\",2,0)","v":0},{"$f":"IF(G12=\"AL1\",1,0)","v":0},{"$f":"IF(AND(K12=\"\",L12=\"\"),TRUE,FALSE)","v":true},{"$f":"IF(AND(K13=\"\",L13=\"\"),TRUE,FALSE)","v":true},null,{"$f":"COUNTIF(AE14:AI14,0)","v":5},{"$f":"IF((E14=\" \"),TRUE,FALSE)","v":false},{"$f":"COUNTIF(AE14:AI14,5)","v":0},{"$f":"COUNTIF(AE14:AI14,4)","v":0},{"$f":"COUNTIF(AE14:AI14,2)","v":0},{"$f":"COUNTIF(AE14:AI14,1)","v":0},null,{"$f":"IF(G13=\"AL5\",5,0)","v":0},{"$f":"IF(G13=\"AL4\",4,0)","v":0},{"$f":"IF(G13=\"AL3\",3,0)","v":0},{"$f":"IF(G13=\"AL2\",2,0)","v":0},{"$f":"IF(G13=\"AL1\",1,0)","v":0}]
[{"$nulls":3},"6.1.4","The academic board of the department must be an effective decision-making body with an adequate degree of autonomy. ",null,null,{"$f":"VLOOKUP(G15,$BA$5:$BR$11,5)","v":{"$error":"#N/A"}}]
[{"$nulls":7},{"$f":"VLOOKUP(G16,$BA$5:$BR$11,5)","v":{"$error":"#N/A"}}]
[{"$nulls":4},{"$f":"IF(AND(I15=\"\",J15=\"\",K15=\"\",L15=\"\"),\"INPUT ERROR! Please provide remarks\",\" \")","v":"INPUT ERROR! Please provide remarks"},{"$nulls":24},{"$f":"IF(G15=\"\",FALSE,TRUE)","v":false},{"$f":"IF(G15=\"AL5\",5,0)","v":0},{"$f":"IF(G15=\"AL4\",4,0)","v":0},{"$f":"IF(G15=\"AL3\",3,0)","v":0},{"$f":"IF(G15=\"AL2\",2,0)","v":0},{"$f":"IF(G15=\"AL1\",1,0)","v":0},{"$f":"IF(AND(K15=\"\",L15=\"\"),TRUE,FALSE)","v":true},{"$f":"IF(AND(K16=\"\",L16=\"\"),TRUE,FALSE)","v":true},null,{"$f":"COUNTIF(AE17:AI17,0)","v":5},{"$f":"IF((E17=\" \"),TRUE,FALSE)","v":false},{"$f":"COUNTIF(AE17:AI17,5)","v":0},{"$f":"COUNTIF(AE17:AI17,4)","v":0},{"$f":"COUNTIF(AE17:AI17,2)","v":0},{"$f":"COUNTIF(AE17:AI17,1)","v":0},null,{"$f":"IF(G16=\"AL5\",5,0)","v":0},{"$f":"IF(G16=\"AL4\",4,0)","v":0},{"$f":"IF(G16=\"AL3\",3,0)","v":0},{"$f":"IF(G16=\"AL2\",2,0)","v":0},{"$f":"IF(G16=\"AL1\",1,0)","v":0}]
[{"$nulls":3},"6.1.5","Mechanisms to ensure functional integration and comparability of educational quality must be established for programmes conducted in different campuses or partner institutions. \n(This standard must be read together with standard 7.1.7 \nin Area 7)",null,null,{"$f":"VLOOKUP(G18,$BA$5:$BR$11,6)","v":{"$error":"#N/A"}}]
[{"$nulls":7},{"$f":"VLOOKUP(G19,$BA$5:$BR$11,6)","v":{"$error":"#N/A"}}]
[{"$nulls":4},{"$f":"IF(AND(I18=\"\",J18=\"\",K18=\"\",L18=\"\"),\"INPUT ERROR! Please provide remarks\",\" \")","v":"INPUT ERROR! Please provide remarks"},{"$nulls":23},{"$f":"IF(G18=\"\",FALSE,TRUE)","v":false},true,{"$f":"IF(G18=\"AL5\",5,0)","v":0},{"$f":"IF(G18=\"AL4\",4,0)","v":0},{"$f":"IF(G18=\"AL3\",3,0)","v":0},{"$f":"IF(G18=\"AL2\",2,0)","v":0},{"$f":"IF(G18=\"AL1\",1,0)","v":0},{"$f":"IF(AND(K18=\"\",L18=\"\"),TRUE,FALSE)","v":true},{"$f":"IF(AND(K19=\"\",L19=\"\"),TRUE,FALSE)","v":true},null,{"$f":"COUNTIF(AE20:AI20,0)","v":5},{"$f":"IF((E20=\" \"),TRUE,FALSE)","v":false},{"$f":"COUNTIF(AE20:AI20,5)","v":0},{"$f":"COUNTIF(AE20:AI20,4)","v":0},{"$f":"COUNTIF(AE20:AI20,2)","v":0},{"$f":"COUNTIF(AE20:AI20,1)","v":0},null,{"$f":"IF(G19=\"AL5\",5,0)","v":0},{"$f":"IF(G19=\"AL4\",4,0)","v":0},{"$f":"IF(G19=\"AL3\",3,0)","v":0},{"$f":"IF(G19=\"AL2\",2,0)","v":0},{"$f":"IF(G19=\"AL1\",1,0)","v":0}]
[{"$nulls":3},"6.1.6","The department must conduct internal and external consultation, market needs and graduate employability analyses                                                                                                           \n(This standard must be read together with standards 1.1.2, 1.2.2 and 7.1.6 in Area 1 and Area 7)",null,null,{"$f":"VLOOKUP(G21,$BA$5:$BR$11,7)","v":{"$error":"#N/A"}}]
[{"$nulls":7},{"$f":"VLOOKUP(G22,$BA$5:$BR$11,7)","v":{"$error":"#N/A"}}]
[{"$nulls":4},{"$f":"IF(AND(I21=\"\",J21=\"\",K21=\"\",L21=\"\"),\"INPUT ERROR! Please provide remarks\",\" \")","v":"INPUT ERROR! Please provide remarks"},{"$nulls":24},{"$f":"IF(G21=\"\",FALSE,TRUE)","v":false},{"$f":"IF(G21=\"AL5\",5,0)","v":0},{"$f":"IF(G21=\"AL4\",4,0)","v":0},{"$f":"IF(G21=\"AL3\",3,0)","v":0},{"$f":"IF(G21=\"AL2\",2,0)","v":0},{"$f":"IF(G21=\"AL1\",1,0)","v":0},{"$f":"IF(AND(K21=\"\",L21=\"\"),TRUE,FALSE)","v":true},{"$f":"IF(AND(K22=\"\",L22=\"\"),TRUE,FALSE)","v":true},null,{"$f":"COUNTIF(AE23:AI23,0)","v":5},{"$f":"IF((E23=\" \"),TRUE,FALSE)","v":false},{"$f":"COUNTIF(AE23:AI23,5)","v":0},{"$f":"COUNTIF(AE23:AI23,4)","v":0},{"$f":"COUNTIF(AE23:AI23,2)","v":0},{"$f":"COUNTIF(AE23:AI23,1)","v":0},null,{"$f":"IF(G22=\"AL5\",5,0)","v":0},{"$f":"IF(G22=\"AL4\",4,0)","v":0},{"$f":"IF(G22=\"AL3\",3,0)","v":0},{"$f":"IF(G22=\"AL2\",2,0)","v":0},{"$f":"IF(G22=\"AL1\",1,0)","v":0}]
[]
[{"$nulls":3},6.2," Programme Leadership",null,"Achievement Level          (AL)","AL Descriptor","Strength/ Commendation","Steps taken to maintain and enhance the strengths/\nCurrent Practices","Areas of concern/ Weakness/ Condition ","Steps taken to address the problem areas "]
[{"$nulls":3},"6.2.1","The criteria for the appointment and the responsibilities of the programme leader must be clearly stated.",null,null,{"$f":"VLOOKUP(G26,$BA$5:$BR$11,8)","v":{"$error":"#N/A"}}]
[{"$nulls":7},{"$f":"VLOOKUP(G27,$BA$5:$BR$11,8)","v":{"$error":"#N/A"}}]
[{"$nulls":4},{"$f":"IF(AND(I26=\"\",J26=\"\",K26=\"\",L26=\"\"),\"INPUT ERROR! Please provide remarks\",\" \")","v":"INPUT ERROR! Please provide remarks"},{"$nulls":24},{"$f":"IF(G26=\"\",FALSE,TRUE)","v":false},{"$f":"IF(G26=\"AL5\",5,0)","v":0},{"$f":"IF(G26=\"AL4\",4,0)","v":0},{"$f":"IF(G26=\"AL3\",3,0)","v":0},{"$f":"IF(G26=\"AL2\",2,0)","v":0},{"$f":"IF(G26=\"AL1\",1,0)","v":0},{"$f":"IF(AND(K26=\"\",L26=\"\"),TRUE,FALSE)","v":true},{"$f":"IF(AND(K27=\"\",L27=\"\"),TRUE,FALSE)","v":true},null,{"$f":"COUNTIF(AE28:AI28,0)","v":5},{"$f":"IF((E28=\" \"),TRUE,FALSE)","v":false},{"$f":"COUNTIF(AE28:AI28,5)","v":0},{"$f":"COUNTIF(AE28:AI28,4)","v":0},{"$f":"COUNTIF(AE28:AI28,2)","v":0},{"$f":"COUNTIF(AE28:AI28,1)","v":0},null,{"$f":"IF(G27=\"AL5\",5,0)","v":0},{"$f":"IF(G27=\"AL4\",4,0)","v":0},{"$f":"IF(G27=\"AL3\",3,0)","v":0},{"$f":"IF(G27=\"AL2\",2,0)","v":0},{"$f":"IF(G27=\"AL1\",1,0)","v":0}]
[{"$nulls":3},"6.2.2","The programme leader must have appropriate qualifications, knowledge and experiences, related to the programme he/she is responsible for.",null,null,{"$f":"VLOOKUP(G29,$BA$5:$BR$11,9)","v":{"$error":"#N/A"}}]
[{"$nulls":7},{"$f":"VLOOKUP(G30,$BA$5:$BR$11,9)","v":{"$error":"#N/A"}}]
[{"$nulls":4},{"$f":"IF(AND(I29=\"\",J29=\"\",K29=\"\",L29=\"\"),\"INPUT ERROR! Please provide remarks\",\" \")","v":"INPUT ERROR! Please provide remarks"},{"$nulls":24},{"$f":"IF(G29=\"\",FALSE,TRUE)","v":false},{"$f":"IF(G29=\"AL5\",5,0)","v":0},{"$f":"IF(G29=\"AL4\",4,0)","v":0},{"$f":"IF(G29=\"AL3\",3,0)","v":0},{"$f":"IF(G29=\"AL2\",2,0)","v":0},{"$f":"IF(G29=\"AL1\",1,0)","v":0},{"$f":"IF(AND(K29=\"\",L29=\"\"),TRUE,FALSE)","v":true},{"$f":"IF(AND(K30=\"\",L30=\"\"),TRUE,FALSE)","v":true},null,{"$f":"COUNTIF(AE31:AI31,0)","v":5},{"$f":"IF((E31=\" \"),TRUE,FALSE)","v":false},{"$f":"COUNTIF(AE31:AI31,5)","v":0},{"$f":"COUNTIF(AE31:AI31,4)","v":0},{"$f":"COUNTIF(AE31:AI31,2)","v":0},{"$f":"COUNTIF(AE31:AI31,1)","v":0},null,{"$f":"IF(G30=\"AL5\",5,0)","v":0},{"$f":"IF(G30=\"AL4\",4,0)","v":0},{"$f":"IF(G30=\"AL3\",3,0)","v":0},{"$f":"IF(G30=\"AL2\",2,0)","v":0},{"$f":"IF(G30=\"AL1\",1,0)","v":0}]
[{"$nulls":3},"6.2.3","There must be mechanisms and processes for communication between the programme leader, department and HEP on matters such as staff recruitment and training, student admission, allocation of resources and decision making processes. ",null,null,{"$f":"VLOOKUP(G32,$BA$5:$BR$11,10)","v":{"$error":"#N/A"}}]
[{"$nulls":7},{"$f":"VLOOKUP(G33,$BA$5:$BR$11,10)","v":{"$error":"#N/A"}}]
[{"$nulls":4},{"$f":"IF(AND(I32=\"\",J32=\"\",K32=\"\",L32=\"\"),\"INPUT ERROR! Please provide remarks\",\" \")","v":"INPUT ERROR! Please provide remarks"},{"$nulls":24},{"$f":"IF(G32=\"\",FALSE,TRUE)","v":false},{"$f":"IF(G32=\"AL5\",5,0)","v":0},{"$f":"IF(G32=\"AL4\",4,0)","v":0},{"$f":"IF(G32=\"AL3\",3,0)","v":0},{"$f":"IF(G32=\"AL2\",2,0)","v":0},{"$f":"IF(G32=\"AL1\",1,0)","v":0},{"$f":"IF(AND(K32=\"\",L32=\"\"),TRUE,FALSE)","v":true},{"$f":"IF(AND(K33=\"\",L33=\"\"),TRUE,FALSE)","v":true},null,{"$f":"COUNTIF(AE34:AI34,0)","v":5},{"$f":"IF((E34=\" \"),TRUE,FALSE)","v":false},{"$f":"COUNTIF(AE34:AI34,5)","v":0},{"$f":"COUNTIF(AE34:AI34,4)","v":0},{"$f":"COUNTIF(AE34:AI34,2)","v":0},{"$f":"COUNTIF(AE34:AI34,1)","v":0},null,{"$f":"IF(G33=\"AL5\",5,0)","v":0},{"$f":"IF(G33=\"AL4\",4,0)","v":0},{"$f":"IF(G33=\"AL3\",3,0)","v":0},{"$f":"IF(G33=\"AL2\",2,0)","v":0},{"$f":"IF(G33=\"AL1\",1,0)","v":0}]
[]
[{"$nulls":3},6.3,"Administrative  Staff",null,"Achievement Level          (AL)","AL Descriptor","Strength/ Commendation","Steps taken to maintain and enhance the strengths/\nCurrent Practices","Areas of concern/ Weakness/ Condition ","Steps taken to address the problem areas "]
[{"$nulls":3},"6.3.1","The department must have sufficient number of qualified administrative staff to support the implementation of the programme and related activities.",null,null,{"$f":"VLOOKUP(G37,$BA$5:$BR$11,11)","v":{"$error":"#N/A"}}]
[{"$nulls":7},{"$f":"VLOOKUP(G38,$BA$5:$BR$11,11)","v":{"$error":"#N/A"}}]
[{"$nulls":4},{"$f":"IF(AND(I37=\"\",J37=\"\",K37=\"\",L37=\"\"),\"INPUT ERROR! Please provide remarks\",\" \")","v":"INPUT ERROR! Please provide remarks"},{"$nulls":24},{"$f":"IF(G37=\"\",FALSE,TRUE)","v":false},{"$f":"IF(G37=\"AL5\",5,0)","v":0},{"$f":"IF(G37=\"AL4\",4,0)","v":0},{"$f":"IF(G37=\"AL3\",3,0)","v":0},{"$f":"IF(G37=\"AL2\",2,0)","v":0},{"$f":"IF(G37=\"AL1\",1,0)","v":0},{"$f":"IF(AND(K37=\"\",L37=\"\"),TRUE,FALSE)","v":true},{"$f":"IF(AND(K38=\"\",L38=\"\"),TRUE,FALSE)","v":true},null,{"$f":"COUNTIF(AE39:AI39,0)","v":5},{"$f":"IF((E39=\" \"),TRUE,FALSE)","v":false},{"$f":"COUNTIF(AE39:AI39,5)","v":0},{"$f":"COUNTIF(AE39:AI39,4)","v":0},{"$f":"COUNTIF(AE39:AI39,2)","v":0},{"$f":"COUNTIF(AE39:AI39,1)","v":0},null,{"$f":"IF(G38=\"AL5\",5,0)","v":0},{"$f":"IF(G38=\"AL4\",4,0)","v":0},{"$f":"IF(G38=\"AL3\",3,0)","v":0},{"$f":"IF(G38=\"AL2\",2,0)","v":0},{"$f":"IF(G38=\"AL1\",1,0)","v":0}]
[{"$nulls":3},"6.3.2","Regular performance review of the administrative staff of the programme must be conducted.",null,null,{"$f":"VLOOKUP(G40,$BA$5:$BR$11,12)","v":{"$error":"#N/A"}}]
[{"$nulls":7},{"$f":"VLOOKUP(G41,$BA$5:$BR$11,12)","v":{"$error":"#N/A"}}]
[{"$nulls":4},{"$f":"IF(AND(I40=\"\",J40=\"\",K40=\"\",L40=\"\"),\"INPUT ERROR! Please provide remarks\",\" \")","v":"INPUT ERROR! Please provide remarks"},{"$nulls":24},{"$f":"IF(G40=\"\",FALSE,TRUE)","v":false},{"$f":"IF(G40=\"AL5\",5,0)","v":0},{"$f":"IF(G40=\"AL4\",4,0)","v":0},{"$f":"IF(G40=\"AL3\",3,0)","v":0},{"$f":"IF(G40=\"AL2\",2,0)","v":0},{"$f":"IF(G40=\"AL1\",1,0)","v":0},{"$f":"IF(AND(K40=\"\",L40=\"\"),TRUE,FALSE)","v":true},{"$f":"IF(AND(K41=\"\",L41=\"\"),TRUE,FALSE)","v":true},null,{"$f":"COUNTIF(AE42:AI42,0)","v":5},{"$f":"IF((E42=\" \"),TRUE,FALSE)","v":false},{"$f":"COUNTIF(AE42:AI42,5)","v":0},{"$f":"COUNTIF(AE42:AI42,4)","v":0},{"$f":"COUNTIF(AE42:AI42,2)","v":0},{"$f":"COUNTIF(AE42:AI42,1)","v":0},null,{"$f":"IF(G41=\"AL5\",5,0)","v":0},{"$f":"IF(G41=\"AL4\",4,0)","v":0},{"$f":"IF(G41=\"AL3\",3,0)","v":0},{"$f":"IF(G41=\"AL2\",2,0)","v":0},{"$f":"IF(G41=\"AL1\",1,0)","v":0}]
[{"$nulls":3},"6.3.3","The department must have an appropriate training scheme for the advancement of the administrative staff as well as to fulfil the specific needs of the programme.",null,null,{"$f":"VLOOKUP(G43,$BA$5:$BR$11,13)","v":{"$error":"#N/A"}}]
[{"$nulls":7},{"$f":"VLOOKUP(G44,$BA$5:$BR$11,13)","v":{"$error":"#N/A"}}]
[{"$nulls":4},{"$f":"IF(AND(I43=\"\",J43=\"\",K43=\"\",L43=\"\"),\"INPUT ERROR! Please provide remarks\",\" \")","v":"INPUT ERROR! Please provide remarks"},{"$nulls":24},{"$f":"IF(G43=\"\",FALSE,TRUE)","v":false},{"$f":"IF(G43=\"AL5\",5,0)","v":0},{"$f":"IF(G43=\"AL4\",4,0)","v":0},{"$f":"IF(G43=\"AL3\",3,0)","v":0},{"$f":"IF(G43=\"AL2\",2,0)","v":0},{"$f":"IF(G43=\"AL1\",1,0)","v":0},{"$f":"IF(AND(K43=\"\",L43=\"\"),TRUE,FALSE)","v":true},{"$f":"IF(AND(K44=\"\",L44=\"\"),TRUE,FALSE)","v":true},null,{"$f":"COUNTIF(AE45:AI45,0)","v":5},{"$f":"IF((E45=\" \"),TRUE,FALSE)","v":false},{"$f":"COUNTIF(AE45:AI45,5)","v":0},{"$f":"COUNTIF(AE45:AI45,4)","v":0},{"$f":"COUNTIF(AE45:AI45,2)","v":0},{"$f":"COUNTIF(AE45:AI45,1)","v":0},null,{"$f":"IF(G44=\"AL5\",5,0)","v":0},{"$f":"IF(G44=\"AL4\",4,0)","v":0},{"$f":"IF(G44=\"AL3\",3,0)","v":0},{"$f":"IF(G44=\"AL2\",2,0)","v":0},{"$f":"IF(G44=\"AL1\",1,0)","v":0}]
[]
[{"$nulls":3},6.4,"Academic Records",null,"Achievement Level          (AL)","AL Descriptor","Strength/ Commendation","Steps taken to maintain and enhance the strengths/\nCurrent Practices","Areas of concern/ Weakness/ Condition ","Steps taken to address the problem areas "]
[{"$nulls":3},"6.4.1","The department must have appropriate policies and practices concerning the nature, content and security of student, academic staff and other academic records. ",null,null,{"$f":"VLOOKUP(G48,$BA$5:$BR$11,14)","v":{"$error":"#N/A"}}]
[{"$nulls":7},{"$f":"VLOOKUP(G49,$BA$5:$BR$11,14)","v":{"$error":"#N/A"}}]
[{"$nulls":4},{"$f":"IF(AND(I48=\"\",J48=\"\",K48=\"\",L48=\"\"),\"INPUT ERROR! Please provide remarks\",\" \")","v":"INPUT ERROR! Please provide remarks"},{"$nulls":24},{"$f":"IF(G48=\"\",FALSE,TRUE)","v":false},{"$f":"IF(G48=\"AL5\",5,0)","v":0},{"$f":"IF(G48=\"AL4\",4,0)","v":0},{"$f":"IF(G48=\"AL3\",3,0)","v":0},{"$f":"IF(G48=\"AL2\",2,0)","v":0},{"$f":"IF(G48=\"AL1\",1,0)","v":0},{"$f":"IF(AND(K48=\"\",L48=\"\"),TRUE,FALSE)","v":true},{"$f":"IF(AND(K49=\"\",L49=\"\"),TRUE,FALSE)","v":true},null,{"$f":"COUNTIF(AE50:AI50,0)","v":5},{"$f":"IF((E50=\" \"),TRUE,FALSE)","v":false},{"$f":"COUNTIF(AE50:AI50,5)","v":0},{"$f":"COUNTIF(AE50:AI50,4)","v":0},{"$f":"COUNTIF(AE50:AI50,2)","v":0},{"$f":"COUNTIF(AE50:AI50,1)","v":0},null,{"$f":"IF(G49=\"AL5\",5,0)","v":0},{"$f":"IF(G49=\"AL4\",4,0)","v":0},{"$f":"IF(G49=\"AL3\",3,0)","v":0},{"$f":"IF(G49=\"AL2\",2,0)","v":0},{"$f":"IF(G49=\"AL1\",1,0)","v":0}]
[{"$nulls":3},"6.4.2","The department must maintain student records relating to their admission, performance, completion and graduation in such form as is practical and preserve these records for future reference. ",null,null,{"$f":"VLOOKUP(G51,$BA$5:$BR$11,15)","v":{"$error":"#N/A"}}]
[{"$nulls":7},{"$f":"VLOOKUP(G52,$BA$5:$BR$11,15)","v":{"$error":"#N/A"}}]
[{"$nulls":4},{"$f":"IF(AND(I51=\"\",J51=\"\",K51=\"\",L51=\"\"),\"INPUT ERROR! Please provide remarks\",\" \")","v":"INPUT ERROR! Please provide remarks"},{"$nulls":24},{"$f":"IF(G51=\"\",FALSE,TRUE)","v":false},{"$f":"IF(G51=\"AL5\",5,0)","v":0},{"$f":"IF(G51=\"AL4\",4,0)","v":0},{"$f":"IF(G51=\"AL3\",3,0)","v":0},{"$f":"IF(G51=\"AL2\",2,0)","v":0},{"$f":"IF(G51=\"AL1\",1,0)","v":0},{"$f":"IF(AND(K51=\"\",L51=\"\"),TRUE,FALSE)","v":true},{"$f":"IF(AND(K52=\"\",L52=\"\"),TRUE,FALSE)","v":true},null,{"$f":"COUNTIF(AE53:AI53,0)","v":5},{"$f":"IF((E53=\" \"),TRUE,FALSE)","v":false},{"$f":"COUNTIF(AE53:AI53,5)","v":0},{"$f":"COUNTIF(AE53:AI53,4)","v":0},{"$f":"COUNTIF(AE53:AI53,2)","v":0},{"$f":"COUNTIF(AE53:AI53,1)","v":0},null,{"$f":"IF(G52=\"AL5\",5,0)","v":0},{"$f":"IF(G52=\"AL4\",4,0)","v":0},{"$f":"IF(G52=\"AL3\",3,0)","v":0},{"$f":"IF(G52=\"AL2\",2,0)","v":0},{"$f":"IF(G52=\"AL1\",1,0)","v":0}]
[{"$nulls":3},"6.4.3","The department must implement policies on the rights of individual privacy and the confidentiality of records.",null,null,{"$f":"VLOOKUP(G54,$BA$5:$BR$11,16)","v":{"$error":"#N/A"}}]
[{"$nulls":7},{"$f":"VLOOKUP(G55,$BA$5:$BR$11,16)","v":{"$error":"#N/A"}}]
[{"$nulls":4},{"$f":"IF(AND(I54=\"\",J54=\"\",K54=\"\",L54=\"\"),\"INPUT ERROR! Please provide remarks\",\" \")","v":"INPUT ERROR! Please provide remarks"},{"$nulls":24},{"$f":"IF(G54=\"\",FALSE,TRUE)","v":false},{"$f":"IF(G54=\"AL5\",5,0)","v":0},{"$f":"IF(G54=\"AL4\",4,0)","v":0},{"$f":"IF(G54=\"AL3\",3,0)","v":0},{"$f":"IF(G54=\"AL2\",2,0)","v":0},{"$f":"IF(G54=\"AL1\",1,0)","v":0},{"$f":"IF(AND(K54=\"\",L54=\"\"),TRUE,FALSE)","v":true},{"$f":"IF(AND(K55=\"\",L55=\"\"),TRUE,FALSE)","v":true},null,{"$f":"COUNTIF(AE56:AI56,0)","v":5},{"$f":"IF((E56=\" \"),TRUE,FALSE)","v":false},{"$f":"COUNTIF(AE56:AI56,5)","v":0},{"$f":"COUNTIF(AE56:AI56,4)","v":0},{"$f":"COUNTIF(AE56:AI56,2)","v":0},{"$f":"COUNTIF(AE56:AI56,1)","v":0},null,{"$f":"IF(G55=\"AL5\",5,0)","v":0},{"$f":"IF(G55=\"AL4\",4,0)","v":0},{"$f":"IF(G55=\"AL3\",3,0)","v":0},{"$f":"IF(G55=\"AL2\",2,0)","v":0},{"$f":"IF(G55=\"AL1\",1,0)","v":0}]
[{"$nulls":3},"6.4.4","The department must continuously review policies on the security of records including the increased use of electronic technologies and safety systems.",null,null,{"$f":"VLOOKUP(G57,$BA$5:$BR$11,17)","v":{"$error":"#N/A"}}]
[{"$nulls":7},{"$f":"VLOOKUP(G58,$BA$5:$BR$11,17)","v":{"$error":"#N/A"}}]
[{"$nulls":4},{"$f":"IF(AND(I57=\"\",J57=\"\",K57=\"\",L57=\"\"),\"INPUT ERROR! Please provide remarks\",\" \")","v":"INPUT ERROR! Please provide remarks"},{"$nulls":24},{"$f":"IF(G57=\"\",FALSE,TRUE)","v":false},{"$f":"IF(G57=\"AL5\",5,0)","v":0},{"$f":"IF(G57=\"AL4\",4,0)","v":0},{"$f":"IF(G57=\"AL3\",3,0)","v":0},{"$f":"IF(G57=\"AL2\",2,0)","v":0},{"$f":"IF(G57=\"AL1\",1,0)","v":0},{"$f":"IF(AND(K57=\"\",L57=\"\"),TRUE,FALSE)","v":true},{"$f":"IF(AND(K58=\"\",L58=\"\"),TRUE,FALSE)","v":true},null,{"$f":"COUNTIF(AE59:AI59,0)","v":5},{"$f":"IF((E59=\" \"),TRUE,FALSE)","v":false},{"$f":"COUNTIF(AE59:AI59,5)","v":0},{"$f":"COUNTIF(AE59:AI59,4)","v":0},{"$f":"COUNTIF(AE59:AI59,2)","v":0},{"$f":"COUNTIF(AE59:AI59,1)","v":0},null,{"$f":"IF(G58=\"AL5\",5,0)","v":0},{"$f":"IF(G58=\"AL4\",4,0)","v":0},{"$f":"IF(G58=\"AL3\",3,0)","v":0},{"$f":"IF(G58=\"AL2\",2,0)","v":0},{"$f":"IF(G58=\"AL1\",1,0)","v":0}]
[]
[]
[{"$nulls":29},{"$f":"IF(AND(AD8:AD59,AN8:AN59),TRUE,FALSE)","v":false},{"$nulls":5},{"$f":"IF(AND(AJ8:AJ60),TRUE,FALSE)","v":true},{"$f":"IF(AND(AK8:AK60),TRUE,FALSE)","v":true}]
[]
[{"$nulls":29},{"$f":"COUNTA(AD8:AD59)","v":16},{"$f":"COUNTIF(AE8:AE59,5)","v":0},{"$f":"COUNTIF(AF8:AF59,4)","v":0},{"$f":"COUNTIF(AG8:AG59,3)","v":0},{"$f":"COUNTIF(AH8:AH59,2)","v":0},{"$f":"COUNTIF(AI8:AI59,1)","v":0},{"$nulls":10},{"$f":"COUNTIF(AT8:AT59,5)","v":0},{"$f":"COUNTIF(AU8:AU59,4)","v":0},{"$f":"COUNTIF(AV8:AV59,3)","v":0},{"$f":"COUNTIF(AW8:AW59,2)","v":0},{"$f":"COUNTIF(AX8:AX59,1)","v":0}]

{"sheet":"Sheet1 (7)","index":9,"n_rows":57,"n_cols":62,"rows_kept":57,"merged":[[5,4,6,4],[7,4,7,11],[8,4,9,4],[10,4,10,11],[11,4,12,4],[13,4,13,11],[14,4,15,4],[16,4,16,11],[17,4,18,4],[19,4,19,11],[20,4,21,4],[22,4,22,11],[23,4,24,4],[25,4,25,11],[26,4,27,4],[28,4,28,11],[29,4,30,4],[31,4,31,11],[34,4,53,11]]}
[{"$nulls":6},"Evaluation Instrument of COPPA 2nd Edition (2017)"]
[]
[{"$nulls":6},"AREA 7: PROGRAMME MONITORING, REVIEW AND "]
[{"$nulls":6},"CONTINUAL QUALITY IMPROVEMENT"]
[{"$nulls":3},7.1,"Mechanisms for Programme Monitoring, Review and Continual Quality Improvement",null,"Achievement Level          (AL)","AL Descriptor","Strength/ Commendation","Steps taken to maintain and enhance the strengths/\nCurrent Practices","Areas of concern/ Weakness/ Condition ","Steps taken to address the problem areas ",{"$nulls":17},"√",{"$nulls":22},"AL1","No policy and mechanisms at all","Do not have a QA unit or personnel","Do not have a monitoring and review committee","Stakeholders not engaged at all","Not accessible at all","Not analysed at all","Not shared at all","Not presented at all","Not linked at all"]
[{"$nulls":3},"7.1.1","The department must have clear policies and appropriate mechanisms for regular monitoring and review of the programme.",null,null,{"$f":"VLOOKUP(G6,$BA$5:$BR$11,2)","v":{"$error":"#N/A"}},{"$nulls":44},"AL2","Poor policies and mechanisms","Have a general QA personnel","Have a general monitoring and review committee","Stakeholders inadequately engaged","Poorly accessible","Poorly analysed","Poorly shared","Irregularly presented","Poorly linked"]
[{"$nulls":7},{"$f":"VLOOKUP(G7,$BA$5:$BR$11,2)","v":{"$error":"#N/A"}},{"$nulls":44},"AL3","Clear policies and appropriate mechanisms","Have a QA unit","Have an internal monitoring and review committee with a designated head","Stakeholders adequately engaged","Adequately accessible","Adequately analysed","Adequately shared","Regularly presented","Adequately linked"]
[{"$nulls":4},{"$f":"IF(AND(I6=\"\",J6=\"\",K6=\"\",L6=\"\"),\"INPUT ERROR! Please provide remarks\",\" \")","v":"INPUT ERROR! Please provide remarks"},{"$nulls":24},{"$f":"IF(G6=\"\",FALSE,TRUE)","v":false},{"$f":"IF(G6=\"AL5\",5,0)","v":0},{"$f":"IF(G6=\"AL4\",4,0)","v":0},{"$f":"IF(G6=\"AL3\",3,0)","v":0},{"$f":"IF(G6=\"AL2\",2,0)","v":0},{"$f":"IF(G6=\"AL1\",1,0)","v":0},{"$f":"IF(AND(K6=\"\",L6=\"\"),TRUE,FALSE)","v":true},{"$f":"IF(AND(K7=\"\",L7=\"\"),TRUE,FALSE)","v":true},null,{"$f":"COUNTIF(AE8:AI8,0)","v":5},{"$f":"IF((E8=\" \"),TRUE,FALSE)","v":false},{"$f":"COUNTIF(AE8:AI8,5)","v":0},{"$f":"COUNTIF(AE8:AI8,4)","v":0},{"$f":"COUNTIF(AE8:AI8,2)","v":0},{"$f":"COUNTIF(AE8:AI8,1)","v":0},null,{"$f":"IF(G7=\"AL5\",5,0)","v":0},{"$f":"IF(G7=\"AL4\",4,0)","v":0},{"$f":"IF(G7=\"AL3\",3,0)","v":0},{"$f":"IF(G7=\"AL2\",2,0)","v":0},{"$f":"IF(G7=\"AL1\",1,0)","v":0},null,null,"AL4","Clear policies and substantial mechanisms","Have a highly dedicated QA unit","Have a dedicated internal monitoring and review committee with a designated head","Stakeholders well engaged","Well accessible","Well analysed","Well shared","Very regularly presented","Well linked"]
[{"$nulls":3},"7.1.2","The department must have a Quality Assurance (QA) unit for internal quality assurance of the department to work hand-in-hand with the QA unit of the HEP.",null,null,{"$f":"VLOOKUP(G9,$BA$5:$BR$11,3)","v":{"$error":"#N/A"}},{"$nulls":44},"AL5","Very clear policies and correct mechanisms","Have a highly specialised and designated QA unit","Have an external and a dedicated internal monitoring and review committee with a designated head","Stakeholders very well engaged","Highly accessible","Very well analysed","Very well shared","Consistently presented","Very well linked"]
[{"$nulls":7},{"$f":"VLOOKUP(G10,$BA$5:$BR$11,3)","v":{"$error":"#N/A"}}]
[{"$nulls":4},{"$f":"IF(AND(I9=\"\",J9=\"\",K9=\"\",L9=\"\"),\"INPUT ERROR! Please provide remarks\",\" \")","v":"INPUT ERROR! Please provide remarks"},{"$nulls":24},{"$f":"IF(G9=\"\",FALSE,TRUE)","v":false},{"$f":"IF(G9=\"AL5\",5,0)","v":0},{"$f":"IF(G9=\"AL4\",4,0)","v":0},{"$f":"IF(G9=\"AL3\",3,0)","v":0},{"$f":"IF(G9=\"AL2\",2,0)","v":0},{"$f":"IF(G9=\"AL1\",1,0)","v":0},{"$f":"IF(AND(K9=\"\",L9=\"\"),TRUE,FALSE)","v":true},{"$f":"IF(AND(K10=\"\",L10=\"\"),TRUE,FALSE)","v":true},null,{"$f":"COUNTIF(AE11:AI11,0)","v":5},{"$f":"IF((E11=\" \"),TRUE,FALSE)","v":false},{"$f":"COUNTIF(AE11:AI11,5)","v":0},{"$f":"COUNTIF(AE11:AI11,4)","v":0},{"$f":"COUNTIF(AE11:AI11,2)","v":0},{"$f":"COUNTIF(AE11:AI11,1)","v":0},null,{"$f":"IF(G10=\"AL5\",5,0)","v":0},{"$f":"IF(G10=\"AL4\",4,0)","v":0},{"$f":"IF(G10=\"AL3\",3,0)","v":0},{"$f":"IF(G10=\"AL2\",2,0)","v":0},{"$f":"IF(G10=\"AL1\",1,0)","v":0}]
[{"$nulls":3},"7.1.3","The department must have an internal monitoring and review committee with a designated head responsible for continual review of the programme to ensure its currency and relevancy.",null,null,{"$f":"VLOOKUP(G12,$BA$5:$BR$11,4)","v":{"$error":"#N/A"}}]
[{"$nulls":7},{"$f":"VLOOKUP(G13,$BA$5:$BR$11,4)","v":{"$error":"#N/A"}}]
[{"$nulls":4},{"$f":"IF(AND(I12=\"\",J12=\"\",K12=\"\",L12=\"\"),\"INPUT ERROR! Please provide remarks\",\" \")","v":"INPUT ERROR! Please provide remarks"},{"$nulls":24},{"$f":"IF(G12=\"\",FALSE,TRUE)","v":false},{"$f":"IF(G12=\"AL5\",5,0)","v":0},{"$f":"IF(G12=\"AL4\",4,0)","v":0},{"$f":"IF(G12=\"AL3\",3,0)","v":0},{"$f":"IF(G12=\"AL2\",2,0)","v":0},{"$f":"IF(G12=\"AL1\",1,0)","v":0},{"$f":"IF(AND(K12=\"\",L12=\"\"),TRUE,FALSE)","v":true},{"$f":"IF(AND(K13=\"\",L13=\"\"),TRUE,FALSE)","v":true},null,{"$f":"COUNTIF(AE14:AI14,0)","v":5},{"$f":"IF((E14=\" \"),TRUE,FALSE)","v":false},{"$f":"COUNTIF(AE14:AI14,5)","v":0},{"$f":"COUNTIF(AE14:AI14,4)","v":0},{"$f":"COUNTIF(AE14:AI14,2)","v":0},{"$f":"COUNTIF(AE14:AI14,1)","v":0},null,{"$f":"IF(G13=\"AL5\",5,0)","v":0},{"$f":"IF(G13=\"AL4\",4,0)","v":0},{"$f":"IF(G13=\"AL3\",3,0)","v":0},{"$f":"IF(G13=\"AL2\",2,0)","v":0},{"$f":"IF(G13=\"AL1\",1,0)","v":0}]
[{"$nulls":3},"7.1.4"," The department’s review system must constructively engage stakeholders including the alumni and employers as well as the external expertise, whose views are taken into consideration. \n(This standard must be read together with standard 1.2.3 \nin Area 1) ",null,null,{"$f":"VLOOKUP(G15,$BA$5:$BR$11,5)","v":{"$error":"#N/A"}}]
[{"$nulls":7},{"$f":"VLOOKUP(G16,$BA$5:$BR$11,5)","v":{"$error":"#N/A"}}]
[{"$nulls":4},{"$f":"IF(AND(I15=\"\",J15=\"\",K15=\"\",L15=\"\"),\"INPUT ERROR! Please provide remarks\",\" \")","v":"INPUT ERROR! Please provide remarks"},{"$nulls":24},{"$f":"IF(G15=\"\",FALSE,TRUE)","v":false},{"$f":"IF(G15=\"AL5\",5,0)","v":0},{"$f":"IF(G15=\"AL4\",4,0)","v":0},{"$f":"IF(G15=\"AL3\",3,0)","v":0},{"$f":"IF(G15=\"AL2\",2,0)","v":0},{"$f":"IF(G15=\"AL1\",1,0)","v":0},{"$f":"IF(AND(K15=\"\",L15=\"\"),TRUE,FALSE)","v":true},{"$f":"IF(AND(K16=\"\",L16=\"\"),TRUE,FALSE)","v":true},null,{"$f":"COUNTIF(AE17:AI17,0)","v":5},{"$f":"IF((E17=\" \"),TRUE,FALSE)","v":false},{"$f":"COUNTIF(AE17:AI17,5)","v":0},{"$f":"COUNTIF(AE17:AI17,4)","v":0},{"$f":"COUNTIF(AE17:AI17,2)","v":0},{"$f":"COUNTIF(AE17:AI17,1)","v":0},null,{"$f":"IF(G16=\"AL5\",5,0)","v":0},{"$f":"IF(G16=\"AL4\",4,0)","v":0},{"$f":"IF(G16=\"AL3\",3,0)","v":0},{"$f":"IF(G16=\"AL2\",2,0)","v":0},{"$f":"IF(G16=\"AL1\",1,0)","v":0}]
[{"$nulls":3},"7.1.5","The department must make the programme review report accessible to stakeholders.",null,null,{"$f":"VLOOKUP(G18,$BA$5:$BR$11,6)","v":{"$error":"#N/A"}}]
[{"$nulls":7},{"$f":"VLOOKUP(G19,$BA$5:$BR$11,6)","v":{"$error":"#N/A"}}]
[{"$nulls":4},{"$f":"IF(AND(I18=\"\",J18=\"\",K18=\"\",L18=\"\"),\"INPUT ERROR! Please provide remarks\",\" \")","v":"INPUT ERROR! Please provide remarks"},{"$nulls":24},{"$f":"IF(G18=\"\",FALSE,TRUE)","v":false},{"$f":"IF(G18=\"AL5\",5,0)","v":0},{"$f":"IF(G18=\"AL4\",4,0)","v":0},{"$f":"IF(G18=\"AL3\",3,0)","v":0},{"$f":"IF(G18=\"AL2\",2,0)","v":0},{"$f":"IF(G18=\"AL1\",1,0)","v":0},{"$f":"IF(AND(K18=\"\",L18=\"\"),TRUE,FALSE)","v":true},{"$f":"IF(AND(K19=\"\",L19=\"\"),TRUE,FALSE)","v":true},null,{"$f":"COUNTIF(AE20:AI20,0)","v":5},{"$f":"IF((E20=\" \"),TRUE,FALSE)","v":false},{"$f":"COUNTIF(AE20:AI20,5)","v":0},{"$f":"COUNTIF(AE20:AI20,4)","v":0},{"$f":"COUNTIF(AE20:AI20,2)","v":0},{"$f":"COUNTIF(AE20:AI20,1)","v":0},null,{"$f":"IF(G19=\"AL5\",5,0)","v":0},{"$f":"IF(G19=\"AL4\",4,0)","v":0},{"$f":"IF(G19=\"AL3\",3,0)","v":0},{"$f":"IF(G19=\"AL2\",2,0)","v":0},{"$f":"IF(G19=\"AL1\",1,0)","v":0}]
[{"$nulls":3},"7.1.6","Various aspects of student performance, progression, attrition, graduation and employment must be analysed for the purpose of continual quality improvement. ",null,null,{"$f":"VLOOKUP(G21,$BA$5:$BR$11,7)","v":{"$error":"#N/A"}}]
[{"$nulls":7},{"$f":"VLOOKUP(G22,$BA$5:$BR$11,7)","v":{"$error":"#N/A"}}]
[{"$nulls":4},{"$f":"IF(AND(I21=\"\",J21=\"\",K21=\"\",L21=\"\"),\"INPUT ERROR! Please provide remarks\",\" \")","v":"INPUT ERROR! Please provide remarks"},{"$nulls":24},{"$f":"IF(G21=\"\",FALSE,TRUE)","v":false},{"$f":"IF(G21=\"AL5\",5,0)","v":0},{"$f":"IF(G21=\"AL4\",4,0)","v":0},{"$f":"IF(G21=\"AL3\",3,0)","v":0},{"$f":"IF(G21=\"AL2\",2,0)","v":0},{"$f":"IF(G21=\"AL1\",1,0)","v":0},{"$f":"IF(AND(K21=\"\",L21=\"\"),TRUE,FALSE)","v":true},{"$f":"IF(AND(K22=\"\",L22=\"\"),TRUE,FALSE)","v":true},null,{"$f":"COUNTIF(AE23:AI23,0)","v":5},{"$f":"IF((E23=\" \"),TRUE,FALSE)","v":false},{"$f":"COUNTIF(AE23:AI23,5)","v":0},{"$f":"COUNTIF(AE23:AI23,4)","v":0},{"$f":"COUNTIF(AE23:AI23,2)","v":0},{"$f":"COUNTIF(AE23:AI23,1)","v":0},null,{"$f":"IF(G22=\"AL5\",5,0)","v":0},{"$f":"IF(G22=\"AL4\",4,0)","v":0},{"$f":"IF(G22=\"AL3\",3,0)","v":0},{"$f":"IF(G22=\"AL2\",2,0)","v":0},{"$f":"IF(G22=\"AL1\",1,0)","v":0}]
[{"$nulls":3},"7.1.7","In collaborative arrangements, the partners involved must share the responsibilities of programme monitoring and review.",null,null,{"$f":"VLOOKUP(G24,$BA$5:$BR$11,8)","v":{"$error":"#N/A"}}]
[{"$nulls":7},{"$f":"VLOOKUP(G25,$BA$5:$BR$11,8)","v":{"$error":"#N/A"}}]
[{"$nulls":4},{"$f":"IF(AND(I24=\"\",J24=\"\",K24=\"\",L24=\"\"),\"INPUT ERROR! Please provide remarks\",\" \")","v":"INPUT ERROR! Please provide remarks"},{"$nulls":24},{"$f":"IF(G24=\"\",FALSE,TRUE)","v":false},{"$f":"IF(G24=\"AL5\",5,0)","v":0},{"$f":"IF(G24=\"AL4\",4,0)","v":0},{"$f":"IF(G24=\"AL3\",3,0)","v":0},{"$f":"IF(G24=\"AL2\",2,0)","v":0},{"$f":"IF(G24=\"AL1\",1,0)","v":0},{"$f":"IF(AND(K24=\"\",L24=\"\"),TRUE,FALSE)","v":true},{"$f":"IF(AND(K25=\"\",L25=\"\"),TRUE,FALSE)","v":true},null,5,{"$f":"IF((E26=\" \"),TRUE,FALSE)","v":false},0,0,0,0,null,{"$f":"IF(G25=\"AL5\",5,0)","v":0},{"$f":"IF(G25=\"AL4\",4,0)","v":0},{"$f":"IF(G25=\"AL3\",3,0)","v":0},{"$f":"IF(G25=\"AL2\",2,0)","v":0},{"$f":"IF(G25=\"AL1\",1,0)","v":0}]
[{"$nulls":3},"7.1.8","The findings of a programme review must be presented to the HEP for its attention and further action.",null,null,{"$f":"VLOOKUP(G27,$BA$5:$BR$11,9)","v":{"$error":"#N/A"}}]
[{"$nulls":7},{"$f":"VLOOKUP(G28,$BA$5:$BR$11,9)","v":{"$error":"#N/A"}}]
[{"$nulls":4},{"$f":"IF(AND(I27=\"\",J27=\"\",K27=\"\",L27=\"\"),\"INPUT ERROR! Please provide remarks\",\" \")","v":"INPUT ERROR! Please provide remarks"},{"$nulls":24},{"$f":"IF(G27=\"\",FALSE,TRUE)","v":false},{"$f":"IF(G27=\"AL5\",5,0)","v":0},{"$f":"IF(G27=\"AL4\",4,0)","v":0},{"$f":"IF(G27=\"AL3\",3,0)","v":0},{"$f":"IF(G27=\"AL2\",2,0)","v":0},{"$f":"IF(G27=\"AL1\",1,0)","v":0},{"$f":"IF(AND(K27=\"\",L27=\"\"),TRUE,FALSE)","v":true},{"$f":"IF(AND(K28=\"\",L28=\"\"),TRUE,FALSE)","v":true},null,5,{"$f":"IF((E29=\" \"),TRUE,FALSE)","v":false},0,0,0,0,null,{"$f":"IF(G28=\"AL5\",5,0)","v":0},{"$f":"IF(G28=\"AL4\",4,0)","v":0},{"$f":"IF(G28=\"AL3\",3,0)","v":0},{"$f":"IF(G28=\"AL2\",2,0)","v":0},{"$f":"IF(G28=\"AL1\",1,0)","v":0}]
[{"$nulls":3},"7.1.9","There must be an integral link between the departmental quality assurance processes and the achievement of the institutional purpose.",null,null,{"$f":"VLOOKUP(G30,$BA$5:$BR$11,10)","v":{"$error":"#N/A"}}]
[{"$nulls":7},{"$f":"VLOOKUP(G31,$BA$5:$BR$11,10)","v":{"$error":"#N/A"}}]
[{"$nulls":4},{"$f":"IF(AND(I30=\"\",J30=\"\",K30=\"\",L30=\"\"),\"INPUT ERROR! Please provide remarks\",\" \")","v":"INPUT ERROR! Please provide remarks"},{"$nulls":24},{"$f":"IF(G30=\"\",FALSE,TRUE)","v":false},{"$f":"IF(G30=\"AL5\",5,0)","v":0},{"$f":"IF(G30=\"AL4\",4,0)","v":0},{"$f":"IF(G30=\"AL3\",3,0)","v":0},{"$f":"IF(G30=\"AL2\",2,0)","v":0},{"$f":"IF(G30=\"AL1\",1,0)","v":0},{"$f":"IF(AND(K30=\"\",L30=\"\"),TRUE,FALSE)","v":true},{"$f":"IF(AND(K31=\"\",L31=\"\"),TRUE,FALSE)","v":true},null,5,{"$f":"IF((E32=\" \"),TRUE,FALSE)","v":false},0,0,0,0,null,{"$f":"IF(G31=\"AL5\",5,0)","v":0},{"$f":"IF(G31=\"AL4\",4,0)","v":0},{"$f":"IF(G31=\"AL3\",3,0)","v":0},{"$f":"IF(G31=\"AL2\",2,0)","v":0},{"$f":"IF(G31=\"AL1\",1,0)","v":0}]
[]
[{"$nulls":4},"FOR PANEL OF ASSESSORS USE ONLY: (Additional comments, if any, on the overall performance of the programme)"]
{"$rows_empty":20}
[{"$nulls":29},{"$f":"IF(AND(AD8:AD52,AN8:AN52),TRUE,FALSE)","v":false},{"$nulls":5},{"$f":"IF(AND(AJ8:AJ53),TRUE,FALSE)","v":true},{"$f":"IF(AND(AK8:AK53),TRUE,FALSE)","v":true}]
[]
[{"$nulls":29},{"$f":"COUNTA(AD8:AD52)","v":9},{"$f":"COUNTIF(AE8:AE52,5)","v":0},{"$f":"COUNTIF(AF8:AF52,4)","v":0},{"$f":"COUNTIF(AG8:AG52,3)","v":0},{"$f":"COUNTIF(AH8:AH52,2)","v":0},{"$f":"COUNTIF(AI8:AI52,1)","v":0},{"$nulls":10},{"$f":"COUNTIF(AT8:AT52,5)","v":0},{"$f":"COUNTIF(AU8:AU52,4)","v":0},{"$f":"COUNTIF(AV8:AV52,3)","v":0},{"$f":"COUNTIF(AW8:AW52,2)","v":0},{"$f":"COUNTIF(AX8:AX52,1)","v":0}]

{"sheet":"Sheet2","index":10,"n_rows":90,"n_cols":32,"rows_kept":90,"hidden":true}
[]
[]
[{"$nulls":14},"Weightage","Weightage"]
[{"$nulls":3},"STD","AL5","AL4","AL3","AL2","AL1",null,"AL1/2","AL4/5","AL3-5",null,"PA","FA","PA","FA",null,"AL5","AL4","AL3","AL2","AL1","MAXScr","Scr",null,"PA","FA"]
[null,null,"AREA1",{"$f":"SUM(E5:I5)","v":0},{"$f":"Sheet1!AE65","v":0},{"$f":"Sheet1!AF65","v":0},{"$f":"Sheet1!AG65","v":0},{"$f":"Sheet1!AH65","v":0},{"$f":"Sheet1!AI65","v":0},{"$f":"Sheet1!AJ63","v":true},{"$f":"H5+I5","v":0},{"$f":"E5+F5","v":0},{"$f":"SUM(E5:G5)","v":0},null,40,25,{"$f":"(M5/D5)*O5","v":{"$error":"#DIV/0!"}},{"$f":"(M5/D5)*P5","v":{"$error":"#DIV/0!"}},null,{"$f":"E5*5","v":0},{"$f":"F5*4","v":0},{"$f":"G5*3","v":0},{"$f":"H5*2","v":0},{"$f":"I5*1","v":0},{"$f":"D5*5","v":0},{"$f":"SUM(T5:X5)","v":0},null,{"$f":"(Z5/Y5)*Q5","v":{"$error":"#DIV/0!"}},{"$f":"(Z5/Y5)*R5","v":{"$error":"#DIV/0!"}}]
[null,null,"AREA2",{"$f":"SUM(E6:I6)","v":0},{"$f":"'Sheet1 (2)'!AE59","v":0},{"$f":"'Sheet1 (2)'!AF59","v":0},{"$f":"'Sheet1 (2)'!AG59","v":0},{"$f":"'Sheet1 (2)'!AH59","v":0},{"$f":"'Sheet1 (2)'!AI59","v":0},{"$f":"'Sheet1 (2)'!AJ57","v":true},{"$f":"H6+I6","v":0},{"$f":"E6+F6","v":0},{"$f":"SUM(E6:G6)","v":0},null,10,15,{"$f":"(M6/D6)*O6","v":{"$error":"#DIV/0!"}},{"$f":"(M6/D6)*P6","v":{"$error":"#DIV/0!"}},null,{"$f":"E6*5","v":0},{"$f":"F6*4","v":0},{"$f":"G6*3","v":0},{"$f":"H6*2","v":0},{"$f":"I6*1","v":0},{"$f":"D6*5","v":0},{"$f":"SUM(T6:X6)","v":0},null,{"$f":"(Z6/Y6)*Q6","v":{"$error":"#DIV/0!"}},{"$f":"(Z6/Y6)*R6","v":{"$error":"#DIV/0!"}}]
[null,null,"AREA3",0,{"$f":"'Sheet1 (3)'!AE79","v":0},{"$f":"'Sheet1 (3)'!AF79","v":0},{"$f":"'Sheet1 (3)'!AG79","v":0},{"$f":"'Sheet1 (3)'!AH79","v":0},{"$f":"'Sheet1 (3)'!AI79","v":0},{"$f":"'Sheet1 (3)'!AJ77","v":true},0,0,0,null,5,10,{"$error":"#DIV/0!"},{"$error":"#DIV/0!"},null,0,0,0,0,0,0,0,null,{"$error":"#DIV/0!"},{"$error":"#DIV/0!"}]
[null,null,"AREA4",0,{"$f":"'Sheet1 (4)'!AE63","v":0},{"$f":"'Sheet1 (4)'!AF63","v":0},{"$f":"'Sheet1 (4)'!AG63","v":0},{"$f":"'Sheet1 (4)'!AH63","v":0},{"$f":"'Sheet1 (4)'!AI63","v":0},{"$f":"'Sheet1 (4)'!AJ61","v":true},0,0,0,null,15,15,{"$error":"#DIV/0!"},{"$error":"#DIV/0!"},null,0,0,0,0,0,0,0,null,{"$error":"#DIV/0!"},{"$error":"#DIV/0!"}]
[null,null,"AREA5",0,{"$f":"'Sheet1 (5)'!AE58","v":0},{"$f":"'Sheet1 (5)'!AF58","v":0},{"$f":"'Sheet1 (5)'!AG58","v":0},{"$f":"'Sheet1 (5)'!AH58","v":0},{"$f":"'Sheet1 (5)'!AI58","v":0},{"$f":"'Sheet1 (5)'!AJ56","v":true},0,0,0,null,15,15,{"$error":"#DIV/0!"},{"$error":"#DIV/0!"},null,0,0,0,0,0,0,0,null,{"$error":"#DIV/0!"},{"$error":"#DIV/0!"}]
[null,null,"AREA6",0,{"$f":"'Sheet1 (6)'!AE64","v":0},{"$f":"'Sheet1 (6)'!AF64","v":0},{"$f":"'Sheet1 (6)'!AG64","v":0},{"$f":"'Sheet1 (6)'!AH64","v":0},{"$f":"'Sheet1 (6)'!AI64","v":0},{"$f":"'Sheet1 (6)'!AJ62","v":true},0,0,0,null,10,10,{"$error":"#DIV/0!"},{"$error":"#DIV/0!"},null,0,0,0,0,0,0,0,null,{"$error":"#DIV/0!"},{"$error":"#DIV/0!"}]
[null,null,"AREA7",0,{"$f":"'Sheet1 (7)'!AE57","v":0},{"$f":"'Sheet1 (7)'!AF57","v":0},{"$f":"'Sheet1 (7)'!AG57","v":0},{"$f":"'Sheet1 (7)'!AH57","v":0},{"$f":"'Sheet1 (7)'!AI57","v":0},{"$f":"'Sheet1 (7)'!AJ55","v":true},0,0,0,null,5,10,{"$error":"#DIV/0!"},{"$error":"#DIV/0!"},null,0,0,0,0,0,0,0,null,{"$error":"#DIV/0!"},{"$error":"#DIV/0!"}]
[]
[{"$nulls":3},{"$f":"IF(OR(Sheet1!AD63=FALSE,'Sheet1 (2)'!AD57=FALSE,'Sheet1 (3)'!AD77=FALSE,'Sheet1 (4)'!AD61=FALSE,'Sheet1 (5)'!AD56=FALSE,'Sheet1 (6)'!AD62=FALSE,'Sheet1 (7)'!AD55=FALSE),\"ERROR\",SUM(D5:D11))","v":"ERROR"},{"$f":"SUM(E5:E11)","v":0},0,0,0,0,null,{"$f":"SUM(K5:K11)","v":0},{"$f":"SUM(L5:L11)","v":0},{"$nulls":4},{"$f":"SUM(Q5:Q11)","v":{"$error":"#DIV/0!"}},{"$f":"SUM(R5:R11)","v":{"$error":"#DIV/0!"}},null,{"$f":"SUM(T5:T11)","v":{"v":0,"d":"0.00"}},{"v":0,"d":"0.00"},{"v":0,"d":"0.00"},{"v":0,"d":"0.00"},{"v":0,"d":"0.00"},{"v":0,"d":"0.00"},{"v":0,"d":"0.00"},null,{"$f":"SUM(AB5:AB11)","v":{"$error":"#DIV/0!"}},{"$f":"SUM(AC5:AC11)","v":{"$error":"#DIV/0!"}}]
[{"$nulls":6},{"$f":"ROUND(G13/D13*100,0)","v":{"$error":"#VALUE!"}},null,null,{"$f":"IF(AND(J5:J11),TRUE,FALSE)","v":true},{"$f":"ROUND(K13/D13*100,0)","v":{"$error":"#VALUE!"}},{"$f":"ROUND(L13/D13*100,0)","v":{"$error":"#VALUE!"}},null,null,{"$f":"IF(AND(L14=100,G14=0,K14=0),\"A\",IF(AND(AND(L14<100,L14>79),G14<21,K14=0),\"B\",IF(AND(AND(L14<80,L14>69),AND(G14<31,G14>20),K14=0),\"C\",IF(AND(L14+G14=100,K14=0),\"D\",IF(AND(G14>70,G14<81),\"E\",IF(G14<71,\"F\",\"F\"))))))","v":{"$error":"#VALUE!"}},{"$nulls":13},{"$f":"VLOOKUP(AC13,AC25:AD28,2)","v":{"$error":"#DIV/0!"}},{"$f":"IF(K13=0,AC14,\"F\")","v":{"$error":"#DIV/0!"}}]
[{"$nulls":9},{"$f":"IF(AND(J5:J11),TRUE,FALSE)","v":true},{"$nulls":4},{"$f":"IF(I13>0,\"F\",IF(H13>0,\"P*\",\"P\"))","v":"P"},{"$nulls":13},{"$f":"IF(AND(AD14=\"A\",J14=FALSE),\"ERROR\",(IF(AND(AD14=\"B\",J14=TRUE),\"B+\",(IF(AND(AD14=\"C\",J14=TRUE),\"C+\",AD14)))))","v":{"$error":"#DIV/0!"}},{"$f":"VLOOKUP(AC15,C54:F60,2)","v":{"$error":"#DIV/0!"}},{"$f":"VLOOKUP(AC15,C54:F60,3)","v":{"$error":"#DIV/0!"}},{"$f":"VLOOKUP(AC15,C54:F60,4)","v":{"$error":"#DIV/0!"}}]
[]
[]
[]
[]
[]
[null,null,"GRED","PENCAPAIAN ","KEPUTUSAN","TEMPOH PEMANTAUAN / TEMPOH BERTENANG","DOKUMEN PENILAIAN","KEPERLUAN LAIN","IMPLIKASI"]
[null,null,"A","100% AL5/AL4 ","FA Granted","Accreditation is perpetual, monitoring in 5 years ( or more, depending on particular conditions)","1.      ","2.  ","-"]
[null,null,"B","80% AL4/AL5, the rest AL3   ","FA Granted","Accreditation is given within a given period : 7 years (based on cohort of students), monitoring within 5 years.","1.      ",null,"-"]
[null,null,"C","70% AL4/AL5, the rest AL3","FA Granted","Accreditation is given within a given period : 5 years (based on cohort of students), monitoring within 3 years.","1.      ",null,"-"]
[null,null,"D","100% AL3 ","FA Granted *after consideration (consideration time is dependent on conditions that must be fulfilled to the satisfaction of the MQA) \n","Accreditation granted after conditions have been fulfilled. Accreditation period is 2 years (based on cohort of students)",{"$nulls":22},0,"F"]
[null,null,"E","80% AL3","FA Denied","All PA applications from this field are barred within 6 months (from the date of the first impediment - date on the notification letter) Reapplication of FA can be submitted after one(1) year.",{"$nulls":22},60,"C"]
[null,null,"F","70% AL3","FA Denied","All PA applications from this field are barred within 1 year (from the date of the first impediment - date on the notification letter) Reapplication of FA can be submitted after one(1) year.",{"$nulls":22},70,"B"]
[{"$nulls":28},80,"A"]
[null,null,"F",null,"PA Denied","All PA applications from this field are barred within 1 year (from the date of the first impediment - date on the notification letter) Reapplication of PA can be submitted after one(1) year."]
[null,null,"P",null,"PA Granted"]
[null,null,"P*",null,"PA Granted *with condition","Accreditation granted after conditions have been fulfilled. "]
[]
[]
[]
[]
[]
[null,null,"GRED","PENCAPAIAN ","KEPUTUSAN","TEMPOH PEMANTAUAN / TEMPOH BERTENANG","DOKUMEN PENILAIAN","KEPERLUAN LAIN"]
[null,null,"A","100% AL5/AL4 ","Lulus FA","Akreditasi berterusan** (perpetual), pemantauan dalam tempoh 5 tahun (atau lebih tertakluk kepada syarat-syarat tertentu)","1.      ","2.  "]
[null,null,"B","80% AL4/AL5, the rest AL3   ","Lulus FA","Akreditasi bertempoh: 7 tahun (berdasarkan kohort pelajar), pemantauan dalam tempoh 5 tahun  ","1.      "]
[null,null,"C","70% AL4/AL5, the rest AL3","Lulus FA","Akreditasi bertempoh: 5 tahun (berdasarkan kohort pelajar), pemantauan dalam tempoh 3 tahun   ","1.      "]
[null,null,"D","100% AL3 ","Lulus FA *selepas pertimbangan (tempoh pertimbangan adalah berdasarkan syarat yang dikenakan)","Akreditasi diberikan selepas syarat petimbangan dipatuhi. Tempoh akreditasi adalah 2 tahun (berdasarkan kohort pelajar).  "]
[null,null,"E","80% AL3","Tolak FA","Sekat semua permohonan PA BIDANG tersebut dalam masa 6 bulan (daripada tarikh sekatan yang pertama- tarikh surat makluman) Permohonan semula FA boleh dikemukakan selepas 1 tahun"]
[null,null,"F","70% AL3","Tolak FA","Sekat semua permohonan PA BIDANG tersebut  dalam masa 1 tahun (daripada tarikh sekatan yang pertama – tarikh surat makluman) Permohonan semula FA boleh dikemukakan selepas 1 tahun "]
[]
[]
[null,null,"GRED","PENCAPAIAN "]
[null,null,50,"Grade C"]
[null,null,70,"Grade B"]
[null,null,80,"Grade A"]
[]
[]
[]
[null,null,"GRED","PENUNJUK PENCAPAIAN ","KEPUTUSAN","TEMPOH PEMANTAUAN / TEMPOH BERTENANG","DOKUMEN PENILAIAN","KEPERLUAN LAIN","IMPLIKASI"]
[null,null,"A","80% \n(Achieve 100% AL3 and above)","Pass FA","Duration of Accreditation/Compliance Evaluation:\nDuration of accreditation is 8 years (based on student cohort).\nCompliance evaluation/monitoring will be conducted within the accreditation period (if necessary).\nProcess of FA Re-application:\nNormal FA procedure.\nProcess of Compliance Evaluation:\n1. SRR presentation by HEP to POA and MQA\n2. No site visit (Visit can be conducted if necessary)","Pemantauan:1.      SRR institusi 2.      SRR program","Melalui prosedur FA biasa. Pemantauan :1.    Pembentangan SRR oleh PPT kepada APP dan MQA 2.    Tiada lawatan premis (Lawatan boleh diadakan jika APP merasakan perlu)","-"]
[null,null,"B","70%\n(AL3 with conditions)","FA is considered after all conditions are met.","Duration of Accreditation/Compliance Evaluation:\nAccreditation is granted after consideration conditions are met. Duration of accreditation is 5 years (based on student cohort).\nCompliance evaluation/monitoring will be conducted within the accreditation period (if necessary).\nProcess of FA Re-application & Compliance Evaluation:\nNormal FA and compliance evaluation procedures.\nNote:\nOnly programme with minor conditions (similar to aspects highlighted in recommendations - current  practice) will be considered. ","Maklum balas terhadap syarat pertimbangan. Pemantauan:1.      SRR institusi 2.      SRR program ","Melalui prosedur FA dan audit pematuhan biasa.","Hanya program dengan syarat minor (sama seperti aspek yang ditekankan dalam cadangan penambahbaikan - amalan[3] sekarang) yang akan diberikan status Timbang. "]
[null,null,"B+","70%\n(Achieve 100% AL3 and above)","Pass FA","Duration of Accreditation/Compliance Evaluation:\nDuration of accreditation is 5 years (based on student cohort).\nCompliance evaluation/monitoring will be conducted within the accreditation period (if necessary).  \nProcess of FA Re-application & Compliance Evaluation:\nNormal FA and compliance evaluation procedures.","Maklum balas terhadap syarat pertimbangan. Pemantauan:1.      SRR institusi 2.      SRR program ","Melalui prosedur FA dan audit pematuhan biasa.","Hanya program dengan syarat minor (sama seperti aspek yang ditekankan dalam cadangan penambahbaikan - amalan[3] sekarang) yang akan diberikan status Timbang. "]
[null,null,"C","60%\n(AL3 with conditions)","FA is considered after all conditions are met.","Duration of Accreditation:\nAccreditation is granted after consideration conditions are met. Duration of accreditation is 3 years (based on student cohort).\nProcess of FA Re-application & Compliance Evaluation:\nNormal FA and compliance evaluation procedures.\nNote: \nOnly programme with minor conditions (similar to aspects highlighted in recommendations - current  practice) will be considered. ","Maklum balas terhadap syarat pertimbangan ","Melalui prosedur FA dan audit pematuhan biasa.","Hanya program dengan syarat minor (sama seperti aspek yang ditekankan dalam cadangan penambahbaikan - amalan[2] sekarang) yang akan diberikan status Timbang. "]
[null,null,"C+","60%\n(Achieve 100% AL3 and above) ","Pass FA ","Duration of Accreditation:\nDuration of accreditation is 3 years (based on student cohort).  \nProcess of FA Re-application & Compliance Evaluation:\nNormal FA and compliance evaluation procedures. ","Maklum balas terhadap syarat pertimbangan ","Melalui prosedur FA dan audit pematuhan biasa.","Hanya program dengan syarat minor (sama seperti aspek yang ditekankan dalam cadangan penambahbaikan - amalan[2] sekarang) yang akan diberikan status Timbang. "]
[null,null,"ERROR","Not achieving 100% AL3 ","Refuse FA","A moratorium on the new PA application for related NEC  narrow field (2 digits NEC) for a duration of 1 year from the date of first restriction (date of surat makluman for the refused application). \nMQA will recommend KPT to restrict student intake once the FA refusal result is issued."]
[null,null,"F","Not achieving 100% AL3 ","Refuse FA","A moratorium on the new PA application for related NEC  narrow field (2 digits NEC) for a duration of 1 year from the date of first restriction (date of surat makluman for the refused application). \nMQA will recommend KPT to restrict student intake once the FA refusal result is issued.","-","-","MQA akan mengesyorkan KPT untuk menyekat pengambilan pelajar sejurus setelah keputusan tolak FA dikeluarkan."]
[]
[]
[]
[]
[]
[{"$nulls":5}," "]
{"$rows_empty":8}
[null,null,80,"A"]
[null,null,70,"B"]
[null,null,60,"C"]
[null,null,0,"F"]
[]
[]
[]
[]
[]
[]
[null,null,"Nota: Dasar/arahan berkaitan perlu dibangunkan bagi menguatkuasakan tindakan di bahagian Implikasi untuk Gred F."]
[]
[]
[null,null,"[1] Contoh narrow field NEC adalah Humanities, Journalism and Information, Mathematics and Statistics, Security Services dan lain-lain.   "]
[null,null,"[2] Program masih boleh mendapat Akreditasi walaupun terdapat syarat khusus (tidak memenuhi komponen penting) yang dikenakan selain cadangan penambahbaikan."]
[null,null,"[3] Program masih boleh mendapat Akreditasi walaupun terdapat syarat khusus (tidak memenuhi komponen penting) yang dikenakan selain cadangan penambahbaikan."]

{"sheet":"Sheet5","index":11,"n_rows":169,"n_cols":3,"rows_kept":169,"merged":[[4,1,12,1],[13,1,20,1],[21,1,31,1],[34,1,38,1],[39,1,46,1],[47,1,49,1],[52,1,63,1],[64,1,67,1],[68,1,74,1],[76,1,78,1],[81,1,88,1],[89,1,93,1],[96,1,103,1],[104,1,112,1],[113,1,116,1],[119,1,130,1],[131,1,138,1],[139,1,147,1],[148,1,152,1],[155,1,168,1]]}
[]
[]
[null,"QA AREAS"]
[null,"AREA 1: PROGRAMME DEVELOPMENT AND DELIVERY","SOURCES OF EVIDENCE"]
[null,"1.1                                                      Statement of Educational Objectives of Academic Programme and Learning Outcomes","Statements of vision, mission and educational goal, such as brochures, student handbook, annual report and website"]
[null,null,"Documents on the procedure and processes taken by the faculty/school to relate vision, mission and educational goal of institution with the aims, objectives  and learning outcomes of the programme (PEOs and PLOs)"]
[null,null,"Strategic planning of HEP and the faculty/school"]
[null,null,"Meeting with HEP top management team"]
[null,null,"Minutes of recent meetings which review and update the programme aims and objectives periodically"]
[null,null,"Minutes of recent meetings of faculty/school management team"]
[null,null,"Prospectus of programme"]
[null,null,"Meeting with students"]
[null,null,"Documents on research or study conducted to link student’s competencies with market demands"]
[null,"1.2                                                      Programme Development: Process, Content, Structure and Teaching-Learning Methods","Meeting with Programme Head/ Course Coordinator"]
[null,null,"Faculty Meeting Minutes/ Board of Studies Report"]
[null,null,"Minutes of Curriculum Committee Meeting"]
[null,null,"Policy and procedure of private practice"]
[null,null,"Meeting wit Programme Head/ Course Coordinator"]
[null,null,"Course Outline, Course Material,  Curriculum Mapping, Class Room Observation, Teaching Files"]
[null,null,"Meeting with Academic Staff of the Programme"]
[null,null,"Documents on the analysis from the feedback of external sources"]
[null,"1.3                                                 Programme Delivery","Meeting wit Programme Head/ Course Coordinator"]
[null,null,"Course Outline, Course Material,  Curriculum Mapping, Class Room Observation, Teaching Files"]
[null,null,"Meeting with Academic Staff of the Programme "]
[null,null,"Minutes of Curriculum Committee Meeting/ Board of Studies Report"]
[null,null,"Meeting with Students of the programme and academic staff"]
[null,null,"Student’s timetable"]
[null,null,"Student’s Handbook, Student Study Guide and Student Project Handbook"]
[null,null,"Documents on the review and evaluation processes of programme and the utilisation of the result"]
[null,null,"External examiner - CV, report"]
[null,null,"Records of involvement of external stakeholders - meeting minutes, reports"]
[null,null,"Employers feedback/ survey through alumni"]
[]
[null,"AREA 2: ASSESSMENT OF STUDENT LEARNING","SOURCES OF EVIDENCE"]
[null,"2.1                                               Relationship between Assessment and Learning Outcomes","Examination papers, tests, project, etc - cross refer with Area 2"]
[null,null,"Examination regulations/ procedures - flowchart, vetting committee, second examiner, meeting minutes"]
[null,null,"Examination section/unit - academic staff, administrative staff"]
[null,null,"Curriculum Mapping (LO vs Assessment)"]
[null,null,"Exam Board Minutes/ Curriculum Committee Minutes"]
[null,"2.2                                                     Assessment Methods ","Examination papers, tests, project, etc -question paper and marking scheme"]
[null,null,"Examination regulations/ procedures"]
[null,null,"Internal and external vetting processes -> external examiner report"]
[null,null,"Curriculum Committee Report"]
[null,null,"Meeting with Academic Staff"]
[null,null,"Meeting with Students"]
[null,null,"Student’s Handbook and Portfolios"]
[null,null,"External examiner - CV. reports"]
[null,"2.3                                                        Management of Student Assessment","Appeal procedures and records"]
[null,null,"Course evaluation by the student"]
[null,null,"Meeting with Programme Head/ Course Coordinator"]
[]
[null,"AREA 3: STUDENT SELECTION AND SUPPORT SERVICES","SOURCES OF EVIDENCE"]
[null,"3.1                                                           Student Selection","Student admission policy"]
[null,null,"Mechanism or criteria for student with other equivalent qualifications"]
[null,null,"Student admission records"]
[null,null,"Individual student files"]
[null,null,"Interview procedures, if applicable"]
[null,null,"Statements of entry requirement - website, brochures, banners"]
[null,null,"Sample of interview assessment"]
[null,null,"Appeal procedures and records"]
[null,null,"Evidence of facilities for special student"]
[null,null,"Minutes of meeting on admission of student"]
[null,null,"Meeting with persons in-charge of admission and selection"]
[null,null,"Minutes of meeting involving stakeholders"]
[null,"3.2                                                      Articulation and Transfer","Records of articulation, credit transfer and credit exemptions of students"]
[null,null,"Records of review of those processes"]
[null,null,"Criteria and mechanisms for transfer of students"]
[null,null,"Implementation of HEP Credit Transfer Scheme"]
[null,"3.3                                                         Student Support Services ","Evidence of loan offer by HEP (if applicable)"]
[null,null,"Minutes of meeting about student support service - financial, facilities etc"]
[null,null,"Sample of evaluation student support services/ data"]
[null,null,"Form and Data on student complaint on student support services - evidence action that been taken"]
[null,null,"Staff files"]
[null,null,"Meeting with students and students representative"]
[null,null,"Data on counselling that has been provided to students"]
[null,"3.4                                                           Student Representation and and Participation","Minutes of meeting between HEP and student representatives council"]
[null,"3.5                                                          Alumni","Minutes of meeting with alumni (if possible)"]
[null,null,"Minutes of meeting in curriculum development (if possible)"]
[null,null,"Meeting with alumni"]
[]
[null,"AREA 4: ACADEMIC STAFF","SOURCES OF EVIDENCE"]
[null,"4.1                                              Recruitment and Management","Records for selection criteria"]
[null,null,"Terms of reference of employment and benefits"]
[null,null,"Terms of reference of Professorship and Associate Professorship, including records of appointment"]
[null,null,"List of academic staff - workload"]
[null,null,"Individual academic staff files"]
[null,null,"Teaching portfolio"]
[null,null,"Meeting with Dean, Head of Programme and Course Coordinator"]
[null,null,"Documents on policy, procedure and process of recruitment and selection"]
[null,"4.2                                                         Service and Development","Training roadmap for academic staff"]
[null,null,"Staff development programme records"]
[null,null,"Records of staff participation in conferences and scholarly activities"]
[null,null,"Sample of evaluation for academic staff"]
[null,null,"Evidence on the process of decision making in the faculty/school"]
[]
[null,"AREA 5: EDUCATIONAL RESOURCES","SOURCES OF EVIDENCE"]
[null,"5.1                                                       Physical Facilities","Confirmation on the physical facilities related to programme are adequate for students and academic staff in teaching and learning process"]
[null,null,"Meeting with students and academic staff"]
[null,null,"Meeting with persons in-charge with specific physical facilities such as computers and lab technician and librarian"]
[null,null,"Visit to various physical facilities"]
[null,null,"Documents on policy, procedures and guidelines to use the various physical facilities"]
[null,null,"Minutes of recent meeting which concern of physical facilities"]
[null,null,"Evidence on the condition of physical facilities are well maintained and up-to-date and also suitable to support teaching and learning process"]
[null,null,"Documents on the reviewing and planning of learning environment in the faculty/school"]
[null,"5.2                                                             Research and Development                    (universities and university colleges)","Evidence on policy and programme for research and development"]
[null,null,"List of activities which involved between research, scholarly activity and education"]
[null,null,"List of facilities for research and development"]
[null,null,"List of research and development activities that students and academic staff participated"]
[null,null,"Minutes of recent meeting regarding research and development"]
[null,null,"Evidence on the action taken to enhance research activities in the faculty/ school"]
[null,null,"Documents on the policy of educational expertise"]
[null,null,"Evidence of activities which involves educational expertise"]
[null,null,"Documents on the policy of educational exchanges"]
[null,"5.3                                                      Financial Resources","Documents on the procedure and guideline of budgeting and resource allocation"]
[null,null,"Evidence on the budgetary system of faculty/school"]
[null,null,"Minutes of recent meetings regarding budgeting and recourse allocation"]
[null,null,"Meeting with financial person of HEP and dean"]
[]
[null,"AREA 6: PROGRAMME MANAGEMENT","SOURCES OF EVIDENCE"]
[null,"6.1                                                   Programme Management","Document on faculty/school strategic plan"]
[null,null,"Organisational and functional charts"]
[null,null,"Minutes of recent faculty/school meetings"]
[null,null,"Documents on the procedure and process of decision making"]
[null,null,"Term of reference for appointment of academic leadership"]
[null,null,"List of role and responsibility of members in the faculty/school"]
[null,null,"Minutes of recent head of department meeting"]
[null,null,"Evidence of faculty/school was given adequate autonomy in terms of policy making"]
[null,null,"Terms of reference of governance between main campus and branch campuses"]
[null,null,"Meeting with dean, head of faculty/school and programme coordinator"]
[null,null,"Documents on review of programmes and planning for development"]
[null,null,"List of stakeholders involved in programme development and their roles"]
[null,"6.2                                                 Programme Leadership","List of criteria for appointment of academic leadership"]
[null,null,"Evidence on selection, appointment and evaluation of academic leadership"]
[null,null,"Document on job description and CV of academic leadership"]
[null,null,"List of responsibility and roles of academic leadership in terms of recruitment and training, student admission and allocation of resources and decision making processes"]
[null,null,"Meeting with programme leaders and academic staff"]
[null,null,"Records of appraisal for programme leaders"]
[null,null,"List of criteria for appraisal"]
[null,null,"Evidence of innovation and creativity in faculty/school"]
[null,"6.3 Administrative  Staff","List of administrative staff"]
[null,null,"Terms of reference for appointment of administrative staff"]
[null,null,"List of roles and responsibilities of administrative staff"]
[null,null,"Records of appraisal for administrative staff"]
[null,null,"Records of training and performance review of administrative staff"]
[null,null,"Meeting with administrative staff"]
[null,null,"List of training provided for administrative staff"]
[null,null,"Documents on human resources development plans"]
[null,null,"Evidence of training need identification and training need analysis"]
[null,"6.4                                                      Academic Records","Documents on procedures and processes to secure the academic records"]
[null,null,"To check sample of academic records and the system used by faculty/school"]
[null,null,"Minutes of recent meetings regarding the academic records"]
[null,null,"Evidence on the review of policies on security of records and safety system"]
[null,null,"Meeting with the person-in charge with academic records"]
[]
[null,"AREA 7: PROGRAMME MONITORING, REVIEW AND CONTINUAL QUALITY IMPROVEMENT","SOURCES OF EVIDENCE"]
[null,"7.1                                                             Mechanisms for Programme Monitoring, Review and Continual Quality Improvement","Documents on the processes, procedures and mechanisms for monitoring and reviewing the curriculum"]
[null,null,"Meeting with programme monitoring and review committee"]
[null,null,"Reports of programme monitoring and review"]
[null,null,"Documents on the action taken after the implementation of programme monitoring and review"]
[null,null,"Documents on the future planning of programme monitoring and review"]
[null,null,"Minutes of recent meeting of programme monitoring and review"]
[null,null,"List of internal and external stakeholders involved in programme monitoring and review"]
[null,null,"Term of references of principal stakeholders in programme review"]
[null,null,"Documents on quality management system in the faculty"]
[null,null,"Documents on the procedures and processes of internal quality system and the parties involved"]
[null,null,"Evidence on the implementation of quality assurance process of the programme"]
[null,null,"Meeting with quality audit team from the HEP and faculty/school"]
[null,null,"Documents on the qualification and experience of person in-charge with quality assurance"]
[null,null,"Evidence of the implementation of quality assurance culture in the faculty/school"]

{"sheet":"Sheet3","index":12,"n_rows":33,"n_cols":13,"rows_kept":33,"hidden":true}
[]
[]
[]
[]
[null,null,"A",null,0,{"v":0.2,"d":"20%"},{"v":0.3,"d":"30%"},{"v":0.7,"d":"70%"},{"v":0.8,"d":"80%"},{"v":1,"d":"100%"}]
[{"$nulls":3},"AL1/2",null,0,0,0,0,0]
[{"$nulls":3},"AL3",null,0,0,0,0,0,0,"=0",{"$f":"IF(AND(K8=100,K7=0),\"A\",\"O\")","v":"A"}]
[{"$nulls":3},"AL4/5",null,0,0,0,0,1,100,"=100"]
[]
[null,null,"B",null,0,{"v":0.2,"d":"20%"},{"v":0.3,"d":"30%"},{"v":0.7,"d":"70%"},{"v":0.8,"d":"80%"},{"v":1,"d":"100%"}]
[{"$nulls":3},"AL1/2",null,0,0,0,0,0]
[{"$nulls":3},"AL3",null,1,0,0,0,0,20,"20 AND LESS",{"$f":"IF(AND(AND(K13<100,K13>79),K12<21),\"B\",\"O\")","v":"B"}]
[{"$nulls":3},"AL4/5",null,0,0,0,1,0,80,"80 TO 99"]
[]
[null,null,"C",null,0,{"v":0.2,"d":"20%"},{"v":0.3,"d":"30%"},{"v":0.7,"d":"70%"},{"v":0.8,"d":"80%"},{"v":1,"d":"100%"}]
[{"$nulls":3},"AL1/2",null,0,0,0,0,0]
[{"$nulls":3},"AL3",null,0,1,0,0,0,31,"21 TO 30",{"$f":"IF(AND(AND(K18<80,K18>69),AND(K17<31,K17>20)),\"C\",\"O\")","v":"O"}]
[{"$nulls":3},"AL4/5",null,0,0,1,0,0,69,"70 TO 79"]
[]
[null,null,"D",null,0,{"v":0.2,"d":"20%"},{"v":0.3,"d":"30%"},{"v":0.7,"d":"70%"},{"v":0.8,"d":"80%"},{"v":1,"d":"100%"}]
[{"$nulls":3},"AL1/2",null,0,0,0,0,0]
[{"$nulls":3},"AL3",null,0,0,0,0,1,100,"=100",{"$f":"IF((K23+K22=100),\"D\",\"O\")","v":"D"}]
[{"$nulls":3},"AL4/5",null,0,0,0,0,0,0,"=0"]
[]
[null,null,"E",null,0,{"v":0.2,"d":"20%"},{"v":0.3,"d":"30%"},{"v":0.7,"d":"70%"},{"v":0.8,"d":"80%"},{"v":1,"d":"100%"}]
[{"$nulls":3},"AL1/2",null,0,0,0,0,0]
[{"$nulls":3},"AL3",null,0,0,0,1,0,70,"71 TO 80",{"$f":"IF(AND(K27>70,K27<81),\"E\",\"O\")","v":"O"}]
[{"$nulls":3},"AL4/5",null,0,0,0,0,0]
[]
[null,null,"F",null,0,{"v":0.2,"d":"20%"},{"v":0.3,"d":"30%"},{"v":0.7,"d":"70%"},{"v":0.8,"d":"80%"},{"v":1,"d":"100%"}]
[{"$nulls":3},"AL1/2",null,0,0,0,0,0]
[{"$nulls":3},"AL3",null,0,0,1,0,0,71,"LESS THAN 70",{"$f":"IF(K32<71,\"F\",\"O\")","v":"O"}]
[{"$nulls":3},"AL4/5",null,0,0,0,0,0]

{"sheet":"Sheet7","index":13,"n_rows":18,"n_cols":3,"rows_kept":18,"hidden":true}
[]
[]
[null,"AREA 1: ","PROGRAMME DEVELOPMENT AND DELIVERY"]
[]
[null,null,"Strength"]
[null,1.1,{"$f":"Sheet1!I7&\"  \"&Sheet1!I10&\"  \"&Sheet1!I13&\"  \"&Sheet1!I16&\"  \"&Sheet1!I19&\"  \"","v":"          "}]
[null,1.2,{"$f":"Sheet1!I24&\"  \"&Sheet1!I27&\"  \"&Sheet1!I30&\"  \"&Sheet1!I33&\"  \"&Sheet1!I36&\"  \"&Sheet1!I39&\"  \"","v":"            "}]
[null,1.3,{"$f":"Sheet1!I44&\"  \"&Sheet1!I47&\"  \"&Sheet1!I50&\"  \"&Sheet1!I53&\"  \"&Sheet1!I56&\"  \"&Sheet1!I59&\"  \"","v":"            "}]
[]
[null,null,"Affirmation"]
[null,1.1,{"$f":"Sheet1!J7&\"  \"&Sheet1!J10&\"  \"&Sheet1!J13&\"  \"&Sheet1!J16&\"  \"&Sheet1!J19&\"  \"","v":"          "}]
[null,1.2,{"$f":"Sheet1!J24&\"  \"&Sheet1!J27&\"  \"&Sheet1!J30&\"  \"&Sheet1!J33&\"  \"&Sheet1!J36&\"  \"&Sheet1!J39&\"  \"","v":"            "}]
[null,1.3,{"$f":"Sheet1!J44&\"  \"&Sheet1!J47&\"  \"&Sheet1!J50&\"  \"&Sheet1!J53&\"  \"&Sheet1!J56&\"  \"&Sheet1!J59&\"  \"","v":"            "}]
[]
[null,null,"Condition"]
[null,1.1,{"$f":"Sheet1!K7&\"  \"&Sheet1!K10&\"  \"&Sheet1!K13&\"  \"&Sheet1!K16&\"  \"&Sheet1!K19&\"  \"&Sheet1!L7&\"  \"&Sheet1!L10&\"  \"&Sheet1!L13&\"  \"&Sheet1!L16&\"  \"&Sheet1!L19&\"  \"","v":"                    "}]
[null,1.2,{"$f":"Sheet1!K24&\"  \"&Sheet1!K27&\"  \"&Sheet1!K30&\"  \"&Sheet1!K33&\"  \"&Sheet1!K36&\"  \"&Sheet1!K39&\"  \"&Sheet1!L24&\"  \"&Sheet1!L27&\"  \"&Sheet1!L30&\"  \"&Sheet1!L33&\"  \"&Sheet1!L36&\"  \"&Sheet1!L39&\"  \"","v":"                        "}]
[null,1.3,{"$f":"Sheet1!K44&\"  \"&Sheet1!K47&\"  \"&Sheet1!K50&\"  \"&Sheet1!K53&\"  \"&Sheet1!K56&\"  \"&Sheet1!K59&\"  \"&Sheet1!L44&\"  \"&Sheet1!L47&\"  \"&Sheet1!L50&\"  \"&Sheet1!L53&\"  \"&Sheet1!L56&\"  \"&Sheet1!L59&\"  \"","v":"                        "}]

{"sheet":"Sheet7 (2)","index":14,"n_rows":20,"n_cols":3,"rows_kept":20,"hidden":true}
[]
[]
[null,"AREA 2: ","ASSESSMENT OF STUDENT LEARNING"]
[]
[null,null,"Strength/ Commendation"]
[null,2.1,{"$f":"'Sheet1 (2)'!I7&\"  \"&'Sheet1 (2)'!I10&\"  \"","v":"    "}]
[null,2.2,{"$f":"'Sheet1 (2)'!I15&\"  \"&'Sheet1 (2)'!I18&\"  \"&'Sheet1 (2)'!I21&\"  \"&'Sheet1 (2)'!I24&\"  \"","v":"        "}]
[null,2.3,{"$f":"'Sheet1 (2)'!I29&\"  \"&'Sheet1 (2)'!I32&\"  \"&'Sheet1 (2)'!I35&\"  \"&'Sheet1 (2)'!I38&\"  \"&'Sheet1 (2)'!I41&\"  \"","v":"          "}]
[]
[]
[null,null,"Affirmation/ Support"]
[null,2.1,{"$f":"'Sheet1 (2)'!J7&\"  \"&'Sheet1 (2)'!J10&\"  \"","v":"    "}]
[null,2.2,{"$f":"'Sheet1 (2)'!J15&\"  \"&'Sheet1 (2)'!J18&\"  \"&'Sheet1 (2)'!J21&\"  \"&'Sheet1 (2)'!J24&\"  \"","v":"        "}]
[null,2.3,{"$f":"'Sheet1 (2)'!J29&\"  \"&'Sheet1 (2)'!J32&\"  \"&'Sheet1 (2)'!J35&\"  \"&'Sheet1 (2)'!J38&\"  \"&'Sheet1 (2)'!J41&\"  \"","v":"          "}]
[]
[]
[null,null,"Weaknesses/ Areas of Concerns/ Conditions"]
[null,2.1,{"$f":"'Sheet1 (2)'!K7&\"  \"&'Sheet1 (2)'!K10&\"  \"&'Sheet1 (2)'!L7&\"  \"&'Sheet1 (2)'!L10&\"  \"","v":"        "}]
[null,2.2,{"$f":"'Sheet1 (2)'!K15&\"  \"&'Sheet1 (2)'!K18&\"  \"&'Sheet1 (2)'!K21&\"  \"&'Sheet1 (2)'!K24&\"  \"&'Sheet1 (2)'!L15&\"  \"&'Sheet1 (2)'!L18&\"  \"&'Sheet1 (2)'!L21&\"  \"&'Sheet1 (2)'!L24&\"  \"","v":"                "}]
[null,2.3,{"$f":"'Sheet1 (2)'!K29&\"  \"&'Sheet1 (2)'!K32&\"  \"&'Sheet1 (2)'!K35&\"  \"&'Sheet1 (2)'!K38&\"  \"&'Sheet1 (2)'!K41&\"  \"&'Sheet1 (2)'!L29&\"  \"&'Sheet1 (2)'!L32&\"  \"&'Sheet1 (2)'!L35&\"  \"&'Sheet1 (2)'!L38&\"  \"&'Sheet1 (2)'!L41&\"  \"","v":"                    "}]

{"sheet":"Sheet7 (3)","index":15,"n_rows":27,"n_cols":3,"rows_kept":27,"hidden":true}
[]
[]
[null,"AREA 3: ","STUDENT SELECTION AND SUPPORT SERVICES"]
[]
[null,null,"Strength/ Commendation"]
[null,3.1,{"$f":"'Sheet1 (3)'!I7&\"  \"&'Sheet1 (3)'!I10&\"  \"&'Sheet1 (3)'!I13&\"  \"&'Sheet1 (3)'!I16&\"  \"&'Sheet1 (3)'!I19&\"  \"","v":"          "}]
[null,3.2,{"$f":"'Sheet1 (3)'!I24&\"  \"&'Sheet1 (3)'!I27&\"  \"","v":"    "}]
[null,3.3,{"$f":"'Sheet1 (3)'!I32&\"  \"&'Sheet1 (3)'!I35&\"  \"&'Sheet1 (3)'!I38&\"  \"&'Sheet1 (3)'!I41&\"  \"&'Sheet1 (3)'!I44&\"  \"&'Sheet1 (3)'!I47&\"  \"&'Sheet1 (3)'!I50&\"  \"&'Sheet1 (3)'!I53&\"  \"","v":"                "}]
[null,3.4,{"$f":"'Sheet1 (3)'!I58&\"  \"&'Sheet1 (3)'!I61&\"  \"&'Sheet1 (3)'!I64&\"  \"&'Sheet1 (3)'!I67&\"  \"","v":"        "}]
[null,3.5,{"$f":"'Sheet1 (3)'!I72&\"  \"","v":"  "}]
[]
[]
[null,null,"Affirmation/ Support"]
[null,3.1,{"$f":"'Sheet1 (3)'!J7&\"  \"&'Sheet1 (3)'!J10&\"  \"&'Sheet1 (3)'!J13&\"  \"&'Sheet1 (3)'!J16&\"  \"&'Sheet1 (3)'!J19&\"  \"","v":"          "}]
[null,3.2,{"$f":"'Sheet1 (3)'!J24&\"  \"&'Sheet1 (3)'!J27&\"  \"","v":"    "}]
[null,3.3,{"$f":"'Sheet1 (3)'!J32&\"  \"&'Sheet1 (3)'!J35&\"  \"&'Sheet1 (3)'!J38&\"  \"&'Sheet1 (3)'!J41&\"  \"&'Sheet1 (3)'!J44&\"  \"&'Sheet1 (3)'!J47&\"  \"&'Sheet1 (3)'!J50&\"  \"&'Sheet1 (3)'!J53&\"  \"","v":"                "}]
[null,3.4,{"$f":"'Sheet1 (3)'!J58&\"  \"&'Sheet1 (3)'!J61&\"  \"&'Sheet1 (3)'!J64&\"  \"&'Sheet1 (3)'!J67&\"  \"","v":"        "}]
[null,3.5,{"$f":"'Sheet1 (3)'!J72&\"  \"","v":"  "}]
[]
[]
[]
[null,null,"Weaknesses/ Areas of Concerns/ Conditions"]
[null,3.1,{"$f":"'Sheet1 (3)'!K7&\"  \"&'Sheet1 (3)'!K10&\"  \"&'Sheet1 (3)'!K13&\"  \"&'Sheet1 (3)'!K16&\"  \"&'Sheet1 (3)'!K19&\"  \"&'Sheet1 (3)'!L7&\"  \"&'Sheet1 (3)'!L10&\"  \"&'Sheet1 (3)'!L13&\"  \"&'Sheet1 (3)'!L16&\"  \"&'Sheet1 (3)'!L19&\"  \"","v":"                    "}]
[null,3.2,{"$f":"'Sheet1 (3)'!K24&\"  \"&'Sheet1 (3)'!K27&\"  \"&'Sheet1 (3)'!L24&\"  \"&'Sheet1 (3)'!L27&\"  \"","v":"        "}]
[null,3.3,{"$f":"'Sheet1 (3)'!K32&\"  \"&'Sheet1 (3)'!K35&\"  \"&'Sheet1 (3)'!K38&\"  \"&'Sheet1 (3)'!K41&\"  \"&'Sheet1 (3)'!K44&\"  \"&'Sheet1 (3)'!K47&\"  \"&'Sheet1 (3)'!K50&\"  \"&'Sheet1 (3)'!K53&\"  \"&'Sheet1 (3)'!L32&\"  \"&'Sheet1 (3)'!L35&\"  \"&'Sheet1 (3)'!L38&\"  \"&'Sheet1 (3)'!L41&\"  \"&'Sheet1 (3)'!L44&\"  \"&'Sheet1 (3)'!L47&\"  \"&'Sheet1 (3)'!L50&\"  \"&'Sheet1 (3)'!L53&\"  \"","v":"                                "}]
[null,3.4,{"$f":"'Sheet1 (3)'!K58&\"  \"&'Sheet1 (3)'!K61&\"  \"&'Sheet1 (3)'!K64&\"  \"&'Sheet1 (3)'!K67&\"  \"&'Sheet1 (3)'!L58&\"  \"&'Sheet1 (3)'!L61&\"  \"&'Sheet1 (3)'!L64&\"  \"&'Sheet1 (3)'!L67&\"  \"","v":"                "}]
[null,3.5,{"$f":"'Sheet1 (3)'!K72&\"  \"&'Sheet1 (3)'!L72&\"  \"","v":"    "}]

{"sheet":"Sheet7 (4)","index":16,"n_rows":24,"n_cols":3,"rows_kept":24,"hidden":true}
[]
[]
[null,"AREA 4: ","ACADEMIC STAFF"]
[]
[null,null,"Strength/ Commendation"]
[null,4.1,{"$f":"'Sheet1 (4)'!I7&\"  \"&'Sheet1 (4)'!I10&\"  \"&'Sheet1 (4)'!I13&\"  \"&'Sheet1 (4)'!I16&\"  \"&'Sheet1 (4)'!I19&\"  \"&'Sheet1 (4)'!I22&\"  \"&'Sheet1 (4)'!I25&\"  \"&'Sheet1 (4)'!I28&\"  \"","v":"                "}]
[null,4.2,{"$f":"'Sheet1 (4)'!I33&\"  \"&'Sheet1 (4)'!I36&\"  \"&'Sheet1 (4)'!I39&\"  \"&'Sheet1 (4)'!I42&\"  \"&'Sheet1 (4)'!I45&\"  \"&'Sheet1 (4)'!I48&\"  \"&'Sheet1 (4)'!I51&\"  \"","v":"              "}]
[]
[]
[]
[]
[]
[null,null,"Affirmation/ Support"]
[null,4.1,{"$f":"'Sheet1 (4)'!J7&\"  \"&'Sheet1 (4)'!J10&\"  \"&'Sheet1 (4)'!J13&\"  \"&'Sheet1 (4)'!J16&\"  \"&'Sheet1 (4)'!J19&\"  \"&'Sheet1 (4)'!J22&\"  \"&'Sheet1 (4)'!J25&\"  \"&'Sheet1 (4)'!J28&\"  \"","v":"                "}]
[null,4.2,{"$f":"'Sheet1 (4)'!J33&\"  \"&'Sheet1 (4)'!J36&\"  \"&'Sheet1 (4)'!J39&\"  \"&'Sheet1 (4)'!J42&\"  \"&'Sheet1 (4)'!J45&\"  \"&'Sheet1 (4)'!J48&\"  \"&'Sheet1 (4)'!J51&\"  \"","v":"              "}]
[]
[]
[]
[]
[]
[]
[null,null,"Weaknesses/ Areas of Concerns/ Conditions"]
[null,4.1,{"$f":"'Sheet1 (4)'!K7&\"  \"&'Sheet1 (4)'!K10&\"  \"&'Sheet1 (4)'!K13&\"  \"&'Sheet1 (4)'!K16&\"  \"&'Sheet1 (4)'!K19&\"  \"&'Sheet1 (4)'!K22&\"  \"&'Sheet1 (4)'!K25&\"  \"&'Sheet1 (4)'!K28&\"  \"&'Sheet1 (4)'!L7&\"  \"&'Sheet1 (4)'!L10&\"  \"&'Sheet1 (4)'!L13&\"  \"&'Sheet1 (4)'!L16&\"  \"&'Sheet1 (4)'!L19&\"  \"&'Sheet1 (4)'!L22&\"  \"&'Sheet1 (4)'!L25&\"  \"&'Sheet1 (4)'!L28&\"  \"","v":"                                "}]
[null,4.2,{"$f":"'Sheet1 (4)'!K33&\"  \"&'Sheet1 (4)'!K36&\"  \"&'Sheet1 (4)'!K39&\"  \"&'Sheet1 (4)'!K42&\"  \"&'Sheet1 (4)'!K45&\"  \"&'Sheet1 (4)'!K48&\"  \"&'Sheet1 (4)'!K51&\"  \"&'Sheet1 (4)'!L33&\"  \"&'Sheet1 (4)'!L36&\"  \"&'Sheet1 (4)'!L39&\"  \"&'Sheet1 (4)'!L42&\"  \"&'Sheet1 (4)'!L45&\"  \"&'Sheet1 (4)'!L48&\"  \"&'Sheet1 (4)'!L51&\"  \"","v":"                            "}]

{"sheet":"Sheet7 (5)","index":17,"n_rows":25,"n_cols":3,"rows_kept":25,"hidden":true}
[]
[]
[null,"AREA 5: ","EDUCATIONAL RESOURCES"]
[]
[null,null,"Strength/ Commendation"]
[null,5.1,{"$f":"'Sheet1 (5)'!I7&\"  \"&'Sheet1 (5)'!I10&\"  \"&'Sheet1 (5)'!I13&\"  \"&'Sheet1 (5)'!I18&\"  \"","v":"        "}]
[null,5.2,{"$f":"'Sheet1 (5)'!I21&\"  \"&'Sheet1 (5)'!I24&\"  \"&'Sheet1 (5)'!I27&\"  \"","v":"      "}]
[null,5.3,{"$f":"'Sheet1 (5)'!I32&\"  \"&'Sheet1 (5)'!I35&\"  \"&'Sheet1 (5)'!I38&\"  \"","v":"      "}]
[]
[]
[]
[]
[null,null,"Affirmation/ Support"]
[null,5.1,{"$f":"'Sheet1 (5)'!J7&\"  \"&'Sheet1 (5)'!J10&\"  \"&'Sheet1 (5)'!J13&\"  \"&'Sheet1 (5)'!J16&\"  \"","v":"        "}]
[null,5.2,{"$f":"'Sheet1 (5)'!J21&\"  \"&'Sheet1 (5)'!J24&\"  \"&'Sheet1 (5)'!J27&\"  \"","v":"      "}]
[null,5.3,{"$f":"'Sheet1 (5)'!J32&\"  \"&'Sheet1 (5)'!J35&\"  \"&'Sheet1 (5)'!J38&\"  \"","v":"      "}]
[]
[]
[]
[]
[]
[null,null,"Weaknesses/ Areas of Concerns/ Conditions"]
[null,5.1,{"$f":"'Sheet1 (5)'!K7&\"  \"&'Sheet1 (5)'!K10&\"  \"&'Sheet1 (5)'!K13&\"  \"&'Sheet1 (5)'!K16&\"  \"&'Sheet1 (5)'!L7&\"  \"&'Sheet1 (5)'!L10&\"  \"&'Sheet1 (5)'!L13&\"  \"&'Sheet1 (5)'!L16&\"  \"","v":"                "}]
[null,5.2,{"$f":"'Sheet1 (5)'!K21&\"  \"&'Sheet1 (5)'!K24&\"  \"&'Sheet1 (5)'!K27&\"  \"&'Sheet1 (5)'!L21&\"  \"&'Sheet1 (5)'!L24&\"  \"&'Sheet1 (5)'!L27&\"  \"","v":"            "}]
[null,5.3,{"$f":"'Sheet1 (5)'!K32&\"  \"&'Sheet1 (5)'!K35&\"  \"&'Sheet1 (5)'!K38&\"  \"&'Sheet1 (5)'!L32&\"  \"&'Sheet1 (5)'!L35&\"  \"&'Sheet1 (5)'!L38&\"  \"","v":"            "}]

{"sheet":"Sheet7 (6)","index":18,"n_rows":26,"n_cols":3,"rows_kept":26,"hidden":true}
[]
[]
[null,"AREA 6: ","PROGRAMME MANAGEMENT"]
[]
[null,null,"Strength/ Commendation"]
[null,6.1,{"$f":"'Sheet1 (6)'!I7&\"  \"&'Sheet1 (6)'!I10&\"  \"&'Sheet1 (6)'!I13&\"  \"&'Sheet1 (6)'!I16&\"  \"&'Sheet1 (6)'!I19&\"  \"&'Sheet1 (6)'!I22&\"  \"","v":"            "}]
[null,6.2,{"$f":"'Sheet1 (6)'!I27&\"  \"&'Sheet1 (6)'!I30&\"  \"&'Sheet1 (6)'!I33&\"  \"","v":"      "}]
[null,6.3,{"$f":"'Sheet1 (6)'!I38&\"  \"&'Sheet1 (6)'!I41&\"  \"&'Sheet1 (6)'!I44&\"  \"","v":"      "}]
[null,6.4,{"$f":"'Sheet1 (6)'!I49&\"  \"&'Sheet1 (6)'!I52&\"  \"&'Sheet1 (6)'!I55&\"  \"&'Sheet1 (6)'!I58&\"  \"","v":"        "}]
[]
[]
[]
[null,null,"Affirmation/ Support"]
[null,6.1,{"$f":"'Sheet1 (6)'!J7&\"  \"&'Sheet1 (6)'!J10&\"  \"&'Sheet1 (6)'!J13&\"  \"&'Sheet1 (6)'!J16&\"  \"&'Sheet1 (6)'!J19&\"  \"&'Sheet1 (6)'!J22&\"  \"","v":"            "}]
[null,6.2,{"$f":"'Sheet1 (6)'!J27&\"  \"&'Sheet1 (6)'!J30&\"  \"&'Sheet1 (6)'!J33&\"  \"","v":"      "}]
[null,6.3,{"$f":"'Sheet1 (6)'!J38&\"  \"&'Sheet1 (6)'!J41&\"  \"&'Sheet1 (6)'!J44&\"  \"","v":"      "}]
[null,6.4,{"$f":"'Sheet1 (6)'!J49&\"  \"&'Sheet1 (6)'!J52&\"  \"&'Sheet1 (6)'!J55&\"  \"&'Sheet1 (6)'!J58&\"  \"","v":"        "}]
[]
[]
[]
[]
[null,null,"Weaknesses/ Areas of Concerns/ Conditions"]
[null,6.1,{"$f":"'Sheet1 (6)'!K7&\"  \"&'Sheet1 (6)'!K10&\"  \"&'Sheet1 (6)'!K13&\"  \"&'Sheet1 (6)'!K16&\"  \"&'Sheet1 (6)'!K19&\"  \"&'Sheet1 (6)'!K22&\"  \"&'Sheet1 (6)'!L7&\"  \"&'Sheet1 (6)'!L10&\"  \"&'Sheet1 (6)'!L13&\"  \"&'Sheet1 (6)'!L16&\"  \"&'Sheet1 (6)'!L19&\"  \"&'Sheet1 (6)'!L22&\"  \"","v":"                        "}]
[null,6.2,{"$f":"'Sheet1 (6)'!K27&\"  \"&'Sheet1 (6)'!K30&\"  \"&'Sheet1 (6)'!K33&\"  \"&'Sheet1 (6)'!L27&\"  \"&'Sheet1 (6)'!L30&\"  \"&'Sheet1 (6)'!L33&\"  \"","v":"            "}]
[null,6.3,{"$f":"'Sheet1 (6)'!K38&\"  \"&'Sheet1 (6)'!K41&\"  \"&'Sheet1 (6)'!K44&\"  \"&'Sheet1 (6)'!L38&\"  \"&'Sheet1 (6)'!L41&\"  \"&'Sheet1 (6)'!L44&\"  \"","v":"            "}]
[null,6.4,{"$f":"'Sheet1 (6)'!K49&\"  \"&'Sheet1 (6)'!K52&\"  \"&'Sheet1 (6)'!K55&\"  \"&'Sheet1 (6)'!K58&\"  \"&'Sheet1 (6)'!L49&\"  \"&'Sheet1 (6)'!L52&\"  \"&'Sheet1 (6)'!L55&\"  \"&'Sheet1 (6)'!L58&\"  \"","v":"                "}]

{"sheet":"Sheet7 (7)","index":19,"n_rows":33,"n_cols":3,"rows_kept":33,"hidden":true,"merged":[[5,2,10,13],[13,2,19,13],[22,2,28,13],[32,2,51,13]]}
[]
[]
[null,"AREA 7: ","PROGRAMME MONITORING, REVIEW AND CONTINUAL QUALITY IMPROVEMENT"]
[]
[null,null,"Strength/ Commendation"]
[null,null,{"$f":"'Sheet1 (7)'!I7&\"  \"&'Sheet1 (7)'!I10&\"  \"&'Sheet1 (7)'!I13&\"  \"&'Sheet1 (7)'!I16&\"  \"&'Sheet1 (7)'!I19&\"  \"&'Sheet1 (7)'!I22&\"  \"&'Sheet1 (7)'!I25&\"  \"&'Sheet1 (7)'!I29&\"  \"&'Sheet1 (7)'!I31&\"  \"","v":"                  "}]
[]
[]
[]
[]
[]
[]
[null,null,"Affirmation/ Support"]
[null,null,{"$f":"'Sheet1 (7)'!J9&\"  \"&'Sheet1 (7)'!J10&\"  \"&'Sheet1 (7)'!J13&\"  \"&'Sheet1 (7)'!J16&\"  \"&'Sheet1 (7)'!J19&\"  \"&'Sheet1 (7)'!J22&\"  \"&'Sheet1 (7)'!J25&\"  \"&'Sheet1 (7)'!J28&\"  \"&'Sheet1 (7)'!J31&\"  \"","v":"                  "}]
{"$rows_empty":7}
[null,null,"Weaknesses/ Areas of Concerns/ Conditions"]
[null,null,{"$f":"'Sheet1 (7)'!K7&\"  \"&'Sheet1 (7)'!K10&\"  \"&'Sheet1 (7)'!K13&\"  \"&'Sheet1 (7)'!K16&\"  \"&'Sheet1 (7)'!K19&\"  \"&'Sheet1 (7)'!K22&\"  \"&'Sheet1 (7)'!K25&\"  \"&'Sheet1 (7)'!K28&\"  \"&'Sheet1 (7)'!K31&\"  \"&'Sheet1 (7)'!L7&\"  \"&'Sheet1 (7)'!L10&\"  \"&'Sheet1 (7)'!L13&\"  \"&'Sheet1 (7)'!L16&\"  \"&'Sheet1 (7)'!L19&\"  \"&'Sheet1 (7)'!L22&\"  \"&'Sheet1 (7)'!L25&\"  \"&'Sheet1 (7)'!L28&\"  \"&'Sheet1 (7)'!L31&\"  \"","v":"                                    "}]
{"$rows_empty":7}
[null,null,"Additional comments"]
[]
[null,null,{"$f":"IF('Sheet1 (7)'!E35=0,\"\",'Sheet1 (7)'!E35)","v":""}]

{"sheet":"ReportFA","index":20,"n_rows":323,"n_cols":13,"rows_kept":323,"merged":[[7,4,7,12],[8,4,8,12],[10,4,10,5],[10,9,10,12],[12,4,12,12],[14,4,14,12],[19,4,19,12],[33,4,33,6],[35,2,36,12],[67,4,67,12],[69,4,69,12],[71,4,71,12],[73,4,73,12],[75,4,75,12],[77,4,77,12],[84,5,84,12],[86,4,86,12],[88,4,88,5],[88,9,88,12],[90,5,90,8],[90,9,90,12],[91,5,91,6],[91,7,91,8],[91,9,91,10],[91,11,91,12],[92,5,92,6],[92,7,92,8],[92,9,92,10],[92,11,92,12],[93,5,93,6],[93,7,93,8],[93,9,93,10],[93,11,93,12],[94,5,94,12],[96,4,96,12],[98,1,98,3],[98,4,98,12],[103,1,103,12],[104,1,113,12],[121,2,121,3],[122,2,122,12],[123,2,123,3],[124,2,124,12],[125,2,125,3],[126,2,126,12],[129,2,129,3],[130,2,130,12],[131,2,131,3],[132,2,132,12],[133,2,133,3],[134,2,134,12],[137,2,137,3],[138,2,138,12],[139,2,139,3],[140,2,140,12],[141,2,141,3],[142,2,142,12],[148,2,148,3],[149,2,149,12],[150,2,150,3],[151,2,151,12],[152,2,152,3],[153,2,153,12],[156,2,156,3],[157,2,157,12],[158,2,158,3],[159,2,159,12],[160,2,160,3],[161,2,161,12],[164,2,164,3],[165,2,165,12],[166,2,166,3],[167,2,167,12],[168,2,168,3],[169,2,169,12],[177,2,177,3],[178,2,178,12],[179,2,179,3],[180,2,180,12],[181,2,181,3],[182,2,182,12],[185,2,185,3],[186,2,186,12],[187,2,187,3],[188,2,188,12],[189,2,189,3],[190,2,190,12],[193,2,193,3],[194,2,194,12],[195,2,195,3],[196,2,196,12],[197,2,197,3],[198,2,198,12],[201,2,201,3],[202,2,202,12],[203,2,203,3],[204,2,204,12],[205,2,205,3],[206,2,206,12],[209,2,209,3],[210,2,210,12],[211,2,211,3],[212,2,212,12],[213,2,213,3],[214,2,214,12],[221,2,221,3],[222,2,222,12],[223,2,223,3],[224,2,224,12],[225,2,225,3],[226,2,226,12],[229,2,229,3],[230,2,230,12],[231,2,231,3],[232,2,232,12],[233,2,233,3],[234,2,234,12],[241,2,241,3],[242,2,242,12],[243,2,243,3],[244,2,244,12],[245,2,245,3],[246,2,246,12],[249,2,249,3],[250,2,250,12],[251,2,251,3],[252,2,252,12],[253,2,253,3],[254,2,254,12],[257,2,257,3],[258,2,258,12],[259,2,259,3],[260,2,260,12],[261,2,261,3],[262,2,262,12],[269,2,269,3],[270,2,270,12],[271,2,271,3],[272,2,272,12],[273,2,273,3],[274,2,274,12],[277,2,277,3],[278,2,278,12],[279,2,279,3],[280,2,280,12],[281,2,281,3],[282,2,282,12],[285,2,285,3],[286,2,286,12],[287,2,287,3],[288,2,288,12],[289,2,289,3],[290,2,290,12],[293,2,293,3],[294,2,294,12],[295,2,295,3],[296,2,296,12],[297,2,297,3],[298,2,298,12],[306,2,306,3],[307,2,307,12],[308,2,308,3],[309,2,309,12],[310,2,310,3],[311,2,311,12],[315,1,315,12],[319,1,320,12],[322,1,324,12]]}
[]
[]
[]
[]
[{"$nulls":7},"REPORT OF A FULL ACCREDITATION "]
[{"$nulls":7},{"$f":"IF('Sheet4 (2)'!Q13=2,\"(Higher Education Provider Evaluation Report)\",IF('Sheet4 (2)'!Q13=4,\"(MQA Panel of Assessor Post Visit Full Accreditation Evaluation Report)\",IF('Sheet4 (2)'!Q13=5,\"(MQA Panel of Assessor Preliminary Full Accreditation Evaluation Report)\",IF('Sheet4 (2)'!Q13=6,\"(MQA Panel of Assessor Post FA(Consideration)\",\"\"))))","v":{"$error":"#N/A"}}]
[]
[null,"Name of Programme:",null,null,{"$f":"'Sheet4 (2)'!H7","v":0}]
[null,"(in Bahasa Malaysia)",null,null,{"$f":"'Sheet4 (2)'!H9","v":0}]
[]
[null,"Reference Number:",null,null,{"$f":"'Sheet4 (2)'!H11","v":0},null,null,"Date of site visit:  ",null,{"$f":"IF('Sheet4 (2)'!M15=\"\",\"\",'Sheet4 (2)'!M15)","v":""}]
[]
[null,"Name of HEP",null,null,{"$f":"'Sheet4 (2)'!H17","v":0}]
[]
[null,"Address of HEP",null,null,{"$f":"'Sheet4 (2)'!H22","v":0}]
[]
[]
[]
[]
[null,"Prepared by: ",null,null,{"$f":"'Sheet4 (2)'!H57","v":0}]
[]
[]
[null,"Note:","This privileged communication is the property of the Malaysian Qualifications Agency"]
[]
[]
[]
[null,"Memorandum"]
[]
[]
[null,null,"To:","Malaysian Qualifications Agency"]
[]
[]
[null,null,"From:",{"$f":"IF('Sheet4 (2)'!Q13=1,E8,IF('Sheet4 (2)'!Q13=3,\"The Panel of Assessors that visited \"&E8,IF('Sheet4 (2)'!Q13=4,\"The Panel of Assessors that evaluated the document from \"&E8,\"\")))","v":{"$error":"#N/A"}}]
[{"$nulls":3},{"$f":"IF('Sheet4 (2)'!Q13=3,\"on the \",IF('Sheet4 (2)'!Q13=4,\"\",\"\"))","v":{"$error":"#N/A"}},{"$f":"IF('Sheet4 (2)'!Q13=3,G17,IF('Sheet4 (2)'!Q13=4,\"\",\"\"))","v":{"$error":"#N/A"}}]
[]
[null,null,{"$f":"D33&\" \"&\" is please to provide the following report of its finding and conclusions. \"","v":{"$error":"#N/A"}}]
[]
[]
[]
[null,null,"Signature",null,null,"_______________________________________"]
[null,null,{"$f":"'Sheet4 (2)'!E57","v":"Name of Assessor1 (Chair)"},null,null,{"$f":"'Sheet4 (2)'!H57","v":0}]
[null,null,"Field of Expertise",null,null,{"$f":"'Sheet4 (2)'!H59","v":0}]
[null,null,"Faculty and Institution",null,null,{"$f":"'Sheet4 (2)'!H61","v":0}]
[]
[]
[null,null,"Signature",null,null,"_______________________________________"]
[null,null,{"$f":"'Sheet4 (2)'!E63","v":"Name of Assessor2"},null,null,{"$f":"'Sheet4 (2)'!H63","v":0}]
[null,null,"Field of Expertise",null,null,{"$f":"'Sheet4 (2)'!H65","v":0}]
[null,null,"Faculty and Institution",null,null,{"$f":"'Sheet4 (2)'!H67","v":0}]
[]
[]
[null,null,"Signature ",null,null,"_______________________________________"]
[null,null,{"$f":"'Sheet4 (2)'!E69","v":"Name of Assessor3"},null,null,{"$f":"'Sheet4 (2)'!H69","v":0}]
[null,null,"Field of Expertise",null,null,{"$f":"'Sheet4 (2)'!H71","v":0}]
[null,null,"Faculty and Institution",null,null,{"$f":"'Sheet4 (2)'!H73","v":0}]
[]
[]
[null,null,"Signature ",null,null,"_______________________________________"]
[null,null,{"$f":"'Sheet4 (2)'!E75","v":"Name of Assessor4"},null,null,{"$f":"'Sheet4 (2)'!H75","v":0}]
[null,null,"Field of Expertise",null,null,{"$f":"'Sheet4 (2)'!H77","v":0}]
[null,null,"Faculty and Institution",null,null,{"$f":"'Sheet4 (2)'!H79","v":0}]
[]
[]
[]
[]
[null,"PROGRAMME BACKGROUND"]
[]
[null,"MQF Level",null,null,{"$f":"'Sheet4 (2)'!H24","v":0}]
[{"$nulls":4},"(For NEC 481 and 482 please click                  )"]
[null,"Field of Study and NEC",null,null,{"$f":"'Sheet4 (2)'!M24","v":0}]
[]
[null,"Mode of Study",null,null,{"$f":"'Sheet4 (2)'!H28","v":0}]
[]
[null,"Mode of Delivery",null,null,{"$f":"'Sheet4 (2)'!M28","v":0}]
[]
[null,"Programme Structure",null,null,{"$f":"'Sheet4 (2)'!H30","v":0}]
[]
[null,"Language of Instruction",null,null,{"$f":"'Sheet4 (2)'!M30","v":0}]
[]
[null,"Method of Delivery",null,null,"Lecture",null,null,{"$f":"IF('Sheet4 (2)'!I34=\"\",\"\",'Sheet4 (2)'!I34)","v":""},null,"Industrial Training",null,null,{"$f":"IF('Sheet4 (2)'!M34=\"\",\"\",'Sheet4 (2)'!M34)","v":""}]
[{"$nulls":4},"Tutorial",null,null,{"$f":"IF('Sheet4 (2)'!I35=\"\",\"\",'Sheet4 (2)'!I35)","v":""},null,"Work-Based Learning",null,null,{"$f":"IF('Sheet4 (2)'!M35=\"\",\"\",'Sheet4 (2)'!M35)","v":""}]
[{"$nulls":4},"Practical/Lab/Workshop",null,null,{"$f":"IF('Sheet4 (2)'!I36=\"\",\"\",'Sheet4 (2)'!I36)","v":""},null,"Research",null,null,{"$f":"IF('Sheet4 (2)'!M36=\"\",\"\",'Sheet4 (2)'!M36)","v":""}]
[{"$nulls":4},"Project",null,null,{"$f":"IF('Sheet4 (2)'!I37=\"\",\"\",'Sheet4 (2)'!I37)","v":""},null,"Seminar/Colloquium",null,null,{"$f":"IF('Sheet4 (2)'!M37=\"\",\"\",'Sheet4 (2)'!M37)","v":""}]
[]
[{"$nulls":4},"Others",{"$f":"IF('Sheet4 (2)'!O35=\"\",\"\",'Sheet4 (2)'!O35)","v":""}]
[]
[null,"Graduating Credit",null,null,{"$f":"'Sheet4 (2)'!M39","v":0}]
[]
[null,"Implementation Method",null,null,{"$f":"'Sheet4 (2)'!H39","v":0},null,null,"Awarding Body",null,{"$f":"'Sheet4 (2)'!H41","v":0}]
[]
[null,"Duration of Study",{"$nulls":3},"Full Time",{"$nulls":3},"Part Time"]
[{"$nulls":5},"Long Semester",null,"Short Semester",null,"Long Semester",null,"Short Semester"]
[{"$nulls":3},"No.of Weeks",null,{"$f":"'Sheet4 (2)'!I45","v":0},null,{"$f":"'Sheet4 (2)'!K45","v":0},null,{"$f":"'Sheet4 (2)'!M45","v":0},null,{"$f":"'Sheet4 (2)'!O45","v":0}]
[{"$nulls":3},"No.of Semesters",null,{"$f":"'Sheet4 (2)'!I46","v":0},null,{"$f":"'Sheet4 (2)'!K46","v":0},null,{"$f":"'Sheet4 (2)'!M46","v":0},null,{"$f":"'Sheet4 (2)'!O46","v":0}]
[{"$nulls":3},"No.of Years",null,{"$f":"'Sheet4 (2)'!I47","v":0}]
[]
[null,"Entry Requirements",null,null,"(please click               )"]
[]
[null,"Address of Programme's Location (if applicable)",null,null,{"$f":"IF('Sheet4 (2)'!H52=\"\",\"\",'Sheet4 (2)'!H52)","v":""}]
[]
[]
[null,"Previous Quality Assessment of the Programme"]
[]
[null,"(e.g. The panel has to comment on whether the HEP has complied with the conditions stipulated in the PA)"]
{"$rows_empty":12}
[null,"Report on the Programme in Relation to the Criteria and Standards for Programme Accreditation"]
[]
[null,"Evaluation on Area 1: Programme Development and Delivery"]
[]
[null,"1.1     ","Statement of Educational Objectives of Academic Programme and  Learning Outcomes  "]
[null,null,"Commendation"]
[null,null,{"$f":"Sheet7!C6","v":"          "}]
[null,null,"Affirmation"]
[null,null,{"$f":"Sheet7!C11","v":"          "}]
[null,null,"Condition"]
[null,null,{"$f":"Sheet7!C16","v":"                    "}]
[]
[null,1.2,"Programme Development: Process, Content, Structure and Teaching-Learning Methods"]
[null,null,"Commendation"]
[null,null,{"$f":"Sheet7!C7","v":"            "}]
[null,null,"Affirmation"]
[null,null,{"$f":"Sheet7!C12","v":"            "}]
[null,null,"Condition"]
[null,null,{"$f":"Sheet7!C17","v":"                        "}]
[]
[null,1.3,"Programme Delivery"]
[null,null,"Commendation"]
[null,null,{"$f":"Sheet7!C8","v":"            "}]
[null,null,"Affirmation"]
[null,null,{"$f":"Sheet7!C13","v":"            "}]
[null,null,"Condition"]
[null,null,{"$f":"Sheet7!C18","v":"                        "}]
[]
[]
[null,"Evaluation on Area 2: Assessment of Student Learning"]
[]
[null,"2.1     ","Assessment Methods"]
[null,null,"Commendation"]
[null,null,{"$f":"'Sheet7 (2)'!C6","v":"    "}]
[null,null,"Affirmation"]
[null,null,{"$f":"'Sheet7 (2)'!C12","v":"    "}]
[null,null,"Condition"]
[null,null,{"$f":"'Sheet7 (2)'!C18","v":"        "}]
[]
[null,"2.2      ","Relationship between Assessment and Learning Outcomes "]
[null,null,"Commendation"]
[null,null,{"$f":"'Sheet7 (2)'!C7","v":"        "}]
[null,null,"Affirmation"]
[null,null,{"$f":"'Sheet7 (2)'!C13","v":"        "}]
[null,null,"Condition"]
[null,null,{"$f":"'Sheet7 (2)'!C19","v":"                "}]
[]
[null,"2.3      ","Management of Student Assessment"]
[null,null,"Commendation"]
[null,null,{"$f":"'Sheet7 (2)'!C8","v":"          "}]
[null,null,"Affirmation"]
[null,null,{"$f":"'Sheet7 (2)'!C14","v":"          "}]
[null,null,"Condition"]
[null,null,{"$f":"'Sheet7 (2)'!C20","v":"                    "}]
[]
[]
[]
[]
[null,"Evaluation on Area 3: Student Selection and Support Services"]
[]
[null,"3.1      ","Student Selection"]
[null,null,"Commendation"]
[null,null,{"$f":"'Sheet7 (3)'!C6","v":"          "}]
[null,null,"Affirmation"]
[null,null,{"$f":"'Sheet7 (3)'!C14","v":"          "}]
[null,null,"Condition"]
[null,null,{"$f":"'Sheet7 (3)'!C23","v":"                    "}]
[]
[null,"3.2      ","Articulation and Transfer"]
[null,null,"Commendation"]
[null,null,{"$f":"'Sheet7 (3)'!C7","v":"    "}]
[null,null,"Affirmation"]
[null,null,{"$f":"'Sheet7 (3)'!C15","v":"    "}]
[null,null,"Condition"]
[null,null,{"$f":"'Sheet7 (3)'!C24","v":"        "}]
[]
[null,"3.3      ","Student Support Services"]
[null,null,"Commendation"]
[null,null,{"$f":"'Sheet7 (3)'!C8","v":"                "}]
[null,null,"Affirmation"]
[null,null,{"$f":"'Sheet7 (3)'!C16","v":"                "}]
[null,null,"Condition"]
[null,null,{"$f":"'Sheet7 (3)'!C25","v":"                                "}]
[]
[null,"3.4     ","Student Representation and Participation"]
[null,null,"Commendation"]
[null,null,{"$f":"'Sheet7 (3)'!C9","v":"        "}]
[null,null,"Affirmation"]
[null,null,{"$f":"'Sheet7 (3)'!C17","v":"        "}]
[null,null,"Condition"]
[null,null,{"$f":"'Sheet7 (3)'!C26","v":"                "}]
[]
[null,3.5,"Alumni"]
[null,null,"Commendation"]
[null,null,{"$f":"'Sheet7 (3)'!C10","v":"  "}]
[null,null,"Affirmation"]
[null,null,{"$f":"'Sheet7 (3)'!C18","v":"  "}]
[null,null,"Condition"]
[null,null,{"$f":"'Sheet7 (3)'!C27","v":"    "}]
[]
[]
[]
[null,"Evaluation on Area 4: Academic Staff"]
[]
[null,"4.1     ","Recruitment and Management"]
[null,null,"Commendation"]
[null,null,{"$f":"'Sheet7 (4)'!C6","v":"                "}]
[null,null,"Affirmation"]
[null,null,{"$f":"'Sheet7 (4)'!C14","v":"                "}]
[null,null,"Condition"]
[null,null,{"$f":"'Sheet7 (4)'!C23","v":"                                "}]
[]
[null,4.2,"Service and Development"]
[null,null,"Commendation"]
[null,null,{"$f":"'Sheet7 (4)'!C7","v":"              "}]
[null,null,"Affirmation"]
[null,null,{"$f":"'Sheet7 (4)'!C15","v":"              "}]
[null,null,"Condition"]
[null,null,{"$f":"'Sheet7 (4)'!C24","v":"                            "}]
[]
[]
[]
[null,"Evaluation on Area 5: Educational Resources "]
[]
[null,"5.1 ","Physical Facilities"]
[null,null,"Commendation"]
[null,null,{"$f":"'Sheet7 (5)'!C6","v":"        "}]
[null,null,"Affirmation"]
[null,null,{"$f":"'Sheet7 (5)'!C14","v":"        "}]
[null,null,"Condition"]
[null,null,{"$f":"'Sheet7 (5)'!C23","v":"                "}]
[]
[null,5.2,"Research and Development"]
[null,null,"Commendation"]
[null,null,{"$f":"'Sheet7 (5)'!C7","v":"      "}]
[null,null,"Affirmation"]
[null,null,{"$f":"'Sheet7 (5)'!C15","v":"      "}]
[null,null,"Condition"]
[null,null,{"$f":"'Sheet7 (5)'!C24","v":"            "}]
[]
[null,5.3,"Financial Resources"]
[null,null,"Commendation"]
[null,null,{"$f":"'Sheet7 (5)'!C8","v":"      "}]
[null,null,"Affirmation"]
[null,null,{"$f":"'Sheet7 (5)'!C16","v":"      "}]
[null,null,"Condition"]
[null,null,{"$f":"'Sheet7 (5)'!C25","v":"            "}]
[]
[]
[]
[null,"Evaluation on Area 6: Programme Management "]
[]
[null,"6.1      ","Programme Management   "]
[null,null,"Commendation"]
[null,null,{"$f":"'Sheet7 (6)'!C6","v":"            "}]
[null,null,"Affirmation"]
[null,null,{"$f":"'Sheet7 (6)'!C14","v":"            "}]
[null,null,"Condition"]
[null,null,{"$f":"'Sheet7 (6)'!C23","v":"                        "}]
[]
[null,"6.2      ","Programme Leadership"]
[null,null,"Commendation"]
[null,null,{"$f":"'Sheet7 (6)'!C7","v":"      "}]
[null,null,"Affirmation"]
[null,null,{"$f":"'Sheet7 (6)'!C15","v":"      "}]
[null,null,"Condition"]
[null,null,{"$f":"'Sheet7 (6)'!C24","v":"            "}]
[]
[null,"6.3                     ","Administrative  Staff"]
[null,null,"Commendation"]
[null,null,{"$f":"'Sheet7 (6)'!C8","v":"      "}]
[null,null,"Affirmation"]
[null,null,{"$f":"'Sheet7 (6)'!C16","v":"      "}]
[null,null,"Condition"]
[null,null,{"$f":"'Sheet7 (6)'!C25","v":"            "}]
[]
[null,6.4,"Academic Records"]
[null,null,"Commendation"]
[null,null,{"$f":"'Sheet7 (6)'!C9","v":"        "}]
[null,null,"Affirmation"]
[null,null,{"$f":"'Sheet7 (6)'!C17","v":"        "}]
[null,null,"Condition"]
[null,null,{"$f":"'Sheet7 (6)'!C26","v":"                "}]
[]
[]
[]
[]
[null,"Evaluation on Area 7: Programme Monitoring, Review and Continual Quality Improvement"]
[]
[null,"7.1      ","Mechanisms for Programme Monitoring, Review and Continual Quality Improvement"]
[null,null,"Commendation"]
[null,null,{"$f":"'Sheet7 (7)'!C6","v":"                  "}]
[null,null,"Affirmation"]
[null,null,{"$f":"'Sheet7 (7)'!C14","v":"                  "}]
[null,null,"Condition"]
[null,null,{"$f":"'Sheet7 (7)'!C23","v":"                                    "}]
[]
[null,"Additional comments"]
[]
[null,{"$f":"'Sheet7 (7)'!C33","v":""}]
[]
[null,"Decision on the status of application of accreditation"]
[]
[null,{"$f":"Sheet4!G36","v":"ERROR"}]
[]
[]
[null,{"$f":"Sheet4!G39","v":"ERROR"}]

{"sheet":"ReportPA","index":21,"n_rows":310,"n_cols":13,"rows_kept":310,"merged":[[7,4,7,12],[8,4,8,12],[10,4,10,5],[10,9,10,12],[12,4,12,12],[14,4,14,12],[19,4,19,12],[33,4,33,6],[35,2,36,12],[67,4,67,12],[69,4,69,12],[71,4,71,12],[73,4,73,12],[75,4,75,12],[77,4,77,12],[84,5,84,12],[86,4,86,12],[88,4,88,5],[88,9,88,12],[90,5,90,8],[90,9,90,12],[91,5,91,6],[91,7,91,8],[91,9,91,10],[91,11,91,12],[92,5,92,6],[92,7,92,8],[92,9,92,10],[92,11,92,12],[93,5,93,6],[93,7,93,8],[93,9,93,10],[93,11,93,12],[94,5,94,12],[96,4,96,12],[98,1,98,3],[98,4,98,12],[107,2,107,3],[108,2,108,12],[109,2,109,3],[110,2,110,12],[111,2,111,3],[112,2,112,12],[115,2,115,3],[116,2,116,12],[117,2,117,3],[118,2,118,12],[119,2,119,3],[120,2,120,12],[123,2,123,3],[124,2,124,12],[125,2,125,3],[126,2,126,12],[127,2,127,3],[128,2,128,12],[134,2,134,3],[135,2,135,12],[136,2,136,3],[137,2,137,12],[138,2,138,3],[139,2,139,12],[142,2,142,3],[143,2,143,12],[144,2,144,3],[145,2,145,12],[146,2,146,3],[147,2,147,12],[150,2,150,3],[151,2,151,12],[152,2,152,3],[153,2,153,12],[154,2,154,3],[155,2,155,12],[163,2,163,3],[164,2,164,12],[165,2,165,3],[166,2,166,12],[167,2,167,3],[168,2,168,12],[171,2,171,3],[172,2,172,12],[173,2,173,3],[174,2,174,12],[175,2,175,3],[176,2,176,12],[179,2,179,3],[180,2,180,12],[181,2,181,3],[182,2,182,12],[183,2,183,3],[184,2,184,12],[187,2,187,3],[188,2,188,12],[189,2,189,3],[190,2,190,12],[191,2,191,3],[192,2,192,12],[195,2,195,3],[196,2,196,12],[197,2,197,3],[198,2,198,12],[199,2,199,3],[200,2,200,12],[207,2,207,3],[208,2,208,12],[209,2,209,3],[210,2,210,12],[211,2,211,3],[212,2,212,12],[215,2,215,3],[216,2,216,12],[217,2,217,3],[218,2,218,12],[219,2,219,3],[220,2,220,12],[227,2,227,3],[228,2,228,12],[229,2,229,3],[230,2,230,12],[231,2,231,3],[232,2,232,12],[235,2,235,3],[236,2,236,12],[237,2,237,3],[238,2,238,12],[239,2,239,3],[240,2,240,12],[243,2,243,3],[244,2,244,12],[245,2,245,3],[246,2,246,12],[247,2,247,3],[248,2,248,12],[255,2,255,3],[256,2,256,12],[257,2,257,3],[258,2,258,12],[259,2,259,3],[260,2,260,12],[263,2,263,3],[264,2,264,12],[265,2,265,3],[266,2,266,12],[267,2,267,3],[268,2,268,12],[271,2,271,3],[272,2,272,12],[273,2,273,3],[274,2,274,12],[275,2,275,3],[276,2,276,12],[279,2,279,3],[280,2,280,12],[281,2,281,3],[282,2,282,12],[283,2,283,3],[284,2,284,12],[292,2,292,3],[293,2,293,12],[294,2,294,3],[295,2,295,12],[296,2,296,3],[297,2,297,12],[301,1,301,12],[306,1,307,12],[309,1,311,12]]}
[]
[]
[]
[]
[{"$nulls":7},"REPORT OF A PROVISIONAL  ACCREDITATION "]
[{"$nulls":7},{"$f":"IF('Sheet4 (2)'!Q13=1,\"(Higher Education Provider Evaluation Report)\",IF('Sheet4 (2)'!Q13=3,\"(MQA Panel of Assessor Evaluation Report)\",\"\"))","v":{"$error":"#N/A"}}]
[]
[null,"Name of Programme:",null,null,{"$f":"'Sheet4 (2)'!H7","v":0}]
[null,"(in Bahasa Malaysia)",null,null,{"$f":"'Sheet4 (2)'!H9","v":0}]
[]
[null,"Reference Number:",null,null,{"$f":"'Sheet4 (2)'!H11","v":0},null,null,"Date of site visit:  ",null,{"$f":"IF('Sheet4 (2)'!M15=\"\",\"\",'Sheet4 (2)'!M15)","v":""}]
[]
[null,"Name of HEP",null,null,{"$f":"'Sheet4 (2)'!H17","v":0}]
[]
[null,"Address of HEP",null,null,{"$f":"'Sheet4 (2)'!H22","v":0}]
[]
[]
[]
[]
[null,"Prepared by: ",null,null,{"$f":"'Sheet4 (2)'!H57","v":0}]
[]
[]
[null,"Note:","This privileged communication is the property of the Malaysian Qualifications Agency"]
[]
[]
[]
[null,"Memorandum"]
[]
[]
[null,null,"To:","Malaysian Qualifications Agency"]
[]
[]
[null,null,"From:",{"$f":"IF('Sheet4 (2)'!Q13=1,E8,IF('Sheet4 (2)'!Q13=3,\"The Panel of Assessors that visited \"&E8,IF('Sheet4 (2)'!Q13=4,\"The Panel of Assessors that evaluated the document from \"&E8,\"\")))","v":{"$error":"#N/A"}}]
[{"$nulls":3},{"$f":"IF('Sheet4 (2)'!Q13=3,\"on the \",IF('Sheet4 (2)'!Q13=4,\"\",\"\"))","v":{"$error":"#N/A"}},{"$f":"IF('Sheet4 (2)'!Q13=3,G17,IF('Sheet4 (2)'!Q13=4,\"\",\"\"))","v":{"$error":"#N/A"}}]
[]
[null,null,{"$f":"D33&\" \"&\" is please to provide the following report of its finding and conclusions. \"","v":{"$error":"#N/A"}}]
[]
[]
[]
[null,null,"Signature",null,null,"_______________________________________"]
[null,null,{"$f":"'Sheet4 (2)'!E57","v":"Name of Assessor1 (Chair)"},null,null,{"$f":"'Sheet4 (2)'!H57","v":0}]
[null,null,"Field of Expertise",null,null,{"$f":"'Sheet4 (2)'!H59","v":0}]
[null,null,"Faculty and Institution",null,null,{"$f":"'Sheet4 (2)'!H61","v":0}]
[]
[]
[null,null,"Signature",null,null,"_______________________________________"]
[null,null,{"$f":"'Sheet4 (2)'!E63","v":"Name of Assessor2"},null,null,{"$f":"'Sheet4 (2)'!H63","v":0}]
[null,null,"Field of Expertise",null,null,{"$f":"'Sheet4 (2)'!H65","v":0}]
[null,null,"Faculty and Institution",null,null,{"$f":"'Sheet4 (2)'!H67","v":0}]
[]
[]
[null,null,"Signature ",null,null,"_______________________________________"]
[null,null,{"$f":"'Sheet4 (2)'!E69","v":"Name of Assessor3"},null,null,{"$f":"'Sheet4 (2)'!H69","v":0}]
[null,null,"Field of Expertise",null,null,{"$f":"'Sheet4 (2)'!H71","v":0}]
[null,null,"Faculty and Institution",null,null,{"$f":"'Sheet4 (2)'!H73","v":0}]
[]
[]
[null,null,"Signature ",null,null,"_______________________________________"]
[null,null,{"$f":"'Sheet4 (2)'!E75","v":"Name of Assessor4"},null,null,{"$f":"'Sheet4 (2)'!H75","v":0}]
[null,null,"Field of Expertise",null,null,{"$f":"'Sheet4 (2)'!H77","v":0}]
[null,null,"Faculty and Institution",null,null,{"$f":"'Sheet4 (2)'!H79","v":0}]
[]
[]
[]
[]
[null,"PROGRAMME BACKGROUND"]
[]
[null,"MQF Level",null,null,{"$f":"'Sheet4 (2)'!H24","v":0}]
[{"$nulls":4},"(For NEC 481 and 482 please click                  )"]
[null,"Field of Study and NEC",null,null,{"$f":"'Sheet4 (2)'!M24","v":0}]
[]
[null,"Mode of Study",null,null,{"$f":"'Sheet4 (2)'!H28","v":0}]
[]
[null,"Mode of Delivery",null,null,{"$f":"'Sheet4 (2)'!M28","v":0}]
[]
[null,"Programme Structure",null,null,{"$f":"'Sheet4 (2)'!H30","v":0}]
[]
[null,"Language of Instruction",null,null,{"$f":"'Sheet4 (2)'!M30","v":0}]
[]
[null,"Method of Delivery",null,null,"Lecture",null,null,{"$f":"IF('Sheet4 (2)'!I34=\"\",\"\",'Sheet4 (2)'!I34)","v":""},null,"Industrial Training",null,null,{"$f":"IF('Sheet4 (2)'!M34=\"\",\"\",'Sheet4 (2)'!M34)","v":""}]
[{"$nulls":4},"Tutorial",null,null,{"$f":"IF('Sheet4 (2)'!I35=\"\",\"\",'Sheet4 (2)'!I35)","v":""},null,"Work-Based Learning",null,null,{"$f":"IF('Sheet4 (2)'!M35=\"\",\"\",'Sheet4 (2)'!M35)","v":""}]
[{"$nulls":4},"Practical/Lab/Workshop",null,null,{"$f":"IF('Sheet4 (2)'!I36=\"\",\"\",'Sheet4 (2)'!I36)","v":""},null,"Research",null,null,{"$f":"IF('Sheet4 (2)'!M36=\"\",\"\",'Sheet4 (2)'!M36)","v":""}]
[{"$nulls":4},"Project",null,null,{"$f":"IF('Sheet4 (2)'!I37=\"\",\"\",'Sheet4 (2)'!I37)","v":""},null,"Seminar/Colloquium",null,null,{"$f":"IF('Sheet4 (2)'!M37=\"\",\"\",'Sheet4 (2)'!M37)","v":""}]
[]
[{"$nulls":4},"Others",{"$f":"IF('Sheet4 (2)'!O35=\"\",\"\",'Sheet4 (2)'!O35)","v":""}]
[]
[null,"Graduating Credit",null,null,{"$f":"'Sheet4 (2)'!M39","v":0}]
[]
[null,"Implementation Method",null,null,{"$f":"'Sheet4 (2)'!H39","v":0},null,null,"Awarding Body",null,{"$f":"'Sheet4 (2)'!H41","v":0}]
[]
[null,"Duration of Study",{"$nulls":3},"Full Time",{"$nulls":3},"Part Time"]
[{"$nulls":5},"Long Semester",null,"Short Semester",null,"Long Semester",null,"Short Semester"]
[{"$nulls":3},"No.of Weeks",null,{"$f":"'Sheet4 (2)'!I45","v":0},null,{"$f":"'Sheet4 (2)'!K45","v":0},null,{"$f":"'Sheet4 (2)'!M45","v":0},null,{"$f":"'Sheet4 (2)'!O45","v":0}]
[{"$nulls":3},"No.of Semesters",null,{"$f":"'Sheet4 (2)'!I46","v":0},null,{"$f":"'Sheet4 (2)'!K46","v":0},null,{"$f":"'Sheet4 (2)'!M46","v":0},null,{"$f":"'Sheet4 (2)'!O46","v":0}]
[{"$nulls":3},"No.of Years",null,{"$f":"'Sheet4 (2)'!I47","v":0}]
[]
[null,"Entry Requirements",null,null,"(please click               )"]
[]
[null,"Address of Programme's Location (if applicable)",null,null,{"$f":"IF('Sheet4 (2)'!H52=\"\",\"\",'Sheet4 (2)'!H52)","v":""}]
[]
[]
[null,"Report on the Programme in Relation to the Criteria and Standards for Programme Accreditation"]
[]
[]
[null,"Evaluation on Area 1: Programme Development and Delivery"]
[]
[null,"1.1     ","Statement of Educational Objectives of Academic Programme and  Learning Outcomes  "]
[null,null,"Commendation"]
[null,null,{"$f":"Sheet7!C6","v":"          "}]
[null,null,"Affirmation"]
[null,null,{"$f":"Sheet7!C11","v":"          "}]
[null,null,"Condition"]
[null,null,{"$f":"Sheet7!C16","v":"                    "}]
[]
[null,1.2,"Programme Development: Process, Content, Structure and Teaching-Learning Methods"]
[null,null,"Commendation"]
[null,null,{"$f":"Sheet7!C7","v":"            "}]
[null,null,"Affirmation"]
[null,null,{"$f":"Sheet7!C12","v":"            "}]
[null,null,"Condition"]
[null,null,{"$f":"Sheet7!C17","v":"                        "}]
[]
[null,1.3,"Programme Delivery"]
[null,null,"Commendation"]
[null,null,{"$f":"Sheet7!C8","v":"            "}]
[null,null,"Affirmation"]
[null,null,{"$f":"Sheet7!C13","v":"            "}]
[null,null,"Condition"]
[null,null,{"$f":"Sheet7!C18","v":"                        "}]
[]
[]
[null,"Evaluation on Area 2: Assessment of Student Learning"]
[]
[null,"2.1     ","Assessment Methods"]
[null,null,"Commendation"]
[null,null,{"$f":"'Sheet7 (2)'!C6","v":"    "}]
[null,null,"Affirmation"]
[null,null,{"$f":"'Sheet7 (2)'!C12","v":"    "}]
[null,null,"Condition"]
[null,null,{"$f":"'Sheet7 (2)'!C18","v":"        "}]
[]
[null,"2.2      ","Relationship between Assessment and Learning Outcomes "]
[null,null,"Commendation"]
[null,null,{"$f":"'Sheet7 (2)'!C7","v":"        "}]
[null,null,"Affirmation"]
[null,null,{"$f":"'Sheet7 (2)'!C13","v":"        "}]
[null,null,"Condition"]
[null,null,{"$f":"'Sheet7 (2)'!C19","v":"                "}]
[]
[null,"2.3      ","Management of Student Assessment"]
[null,null,"Commendation"]
[null,null,{"$f":"'Sheet7 (2)'!C8","v":"          "}]
[null,null,"Affirmation"]
[null,null,{"$f":"'Sheet7 (2)'!C14","v":"          "}]
[null,null,"Condition"]
[null,null,{"$f":"'Sheet7 (2)'!C20","v":"                    "}]
[]
[]
[]
[]
[null,"Evaluation on Area 3: Student Selection and Support Services"]
[]
[null,"3.1      ","Student Selection"]
[null,null,"Commendation"]
[null,null,{"$f":"'Sheet7 (3)'!C6","v":"          "}]
[null,null,"Affirmation"]
[null,null,{"$f":"'Sheet7 (3)'!C14","v":"          "}]
[null,null,"Condition"]
[null,null,{"$f":"'Sheet7 (3)'!C23","v":"                    "}]
[]
[null,"3.2      ","Articulation and Transfer"]
[null,null,"Commendation"]
[null,null,{"$f":"'Sheet7 (3)'!C7","v":"    "}]
[null,null,"Affirmation"]
[null,null,{"$f":"'Sheet7 (3)'!C15","v":"    "}]
[null,null,"Condition"]
[null,null,{"$f":"'Sheet7 (3)'!C24","v":"        "}]
[]
[null,"3.3      ","Student Support Services"]
[null,null,"Commendation"]
[null,null,{"$f":"'Sheet7 (3)'!C8","v":"                "}]
[null,null,"Affirmation"]
[null,null,{"$f":"'Sheet7 (3)'!C16","v":"                "}]
[null,null,"Condition"]
[null,null,{"$f":"'Sheet7 (3)'!C25","v":"                                "}]
[]
[null,"3.4     ","Student Representation and Participation"]
[null,null,"Commendation"]
[null,null,{"$f":"'Sheet7 (3)'!C9","v":"        "}]
[null,null,"Affirmation"]
[null,null,{"$f":"'Sheet7 (3)'!C17","v":"        "}]
[null,null,"Condition"]
[null,null,{"$f":"'Sheet7 (3)'!C26","v":"                "}]
[]
[null,3.5,"Alumni"]
[null,null,"Commendation"]
[null,null,{"$f":"'Sheet7 (3)'!C10","v":"  "}]
[null,null,"Affirmation"]
[null,null,{"$f":"'Sheet7 (3)'!C18","v":"  "}]
[null,null,"Condition"]
[null,null,{"$f":"'Sheet7 (3)'!C27","v":"    "}]
[]
[]
[]
[null,"Evaluation on Area 4: Academic Staff"]
[]
[null,"4.1     ","Recruitment and Management"]
[null,null,"Commendation"]
[null,null,{"$f":"'Sheet7 (4)'!C6","v":"                "}]
[null,null,"Affirmation"]
[null,null,{"$f":"'Sheet7 (4)'!C14","v":"                "}]
[null,null,"Condition"]
[null,null,{"$f":"'Sheet7 (4)'!C23","v":"                                "}]
[]
[null,4.2,"Service and Development"]
[null,null,"Commendation"]
[null,null,{"$f":"'Sheet7 (4)'!C7","v":"              "}]
[null,null,"Affirmation"]
[null,null,{"$f":"'Sheet7 (4)'!C15","v":"              "}]
[null,null,"Condition"]
[null,null,{"$f":"'Sheet7 (4)'!C24","v":"                            "}]
[]
[]
[]
[null,"Evaluation on Area 5: Educational Resources "]
[]
[null,"5.1 ","Physical Facilities"]
[null,null,"Commendation"]
[null,null,{"$f":"'Sheet7 (5)'!C6","v":"        "}]
[null,null,"Affirmation"]
[null,null,{"$f":"'Sheet7 (5)'!C14","v":"        "}]
[null,null,"Condition"]
[null,null,{"$f":"'Sheet7 (5)'!C23","v":"                "}]
[]
[null,5.2,"Research and Development"]
[null,null,"Commendation"]
[null,null,{"$f":"'Sheet7 (5)'!C7","v":"      "}]
[null,null,"Affirmation"]
[null,null,{"$f":"'Sheet7 (5)'!C15","v":"      "}]
[null,null,"Condition"]
[null,null,{"$f":"'Sheet7 (5)'!C24","v":"            "}]
[]
[null,5.3,"Financial Resources"]
[null,null,"Commendation"]
[null,null,{"$f":"'Sheet7 (5)'!C8","v":"      "}]
[null,null,"Affirmation"]
[null,null,{"$f":"'Sheet7 (5)'!C16","v":"      "}]
[null,null,"Condition"]
[null,null,{"$f":"'Sheet7 (5)'!C25","v":"            "}]
[]
[]
[]
[null,"Evaluation on Area 6: Programme Management "]
[]
[null,"6.1      ","Programme Management   "]
[null,null,"Commendation"]
[null,null,{"$f":"'Sheet7 (6)'!C6","v":"            "}]
[null,null,"Affirmation"]
[null,null,{"$f":"'Sheet7 (6)'!C14","v":"            "}]
[null,null,"Condition"]
[null,null,{"$f":"'Sheet7 (6)'!C23","v":"                        "}]
[]
[null,"6.2      ","Programme Leadership"]
[null,null,"Commendation"]
[null,null,{"$f":"'Sheet7 (6)'!C7","v":"      "}]
[null,null,"Affirmation"]
[null,null,{"$f":"'Sheet7 (6)'!C15","v":"      "}]
[null,null,"Condition"]
[null,null,{"$f":"'Sheet7 (6)'!C24","v":"            "}]
[]
[null,"6.3                     ","Administrative  Staff"]
[null,null,"Commendation"]
[null,null,{"$f":"'Sheet7 (6)'!C8","v":"      "}]
[null,null,"Affirmation"]
[null,null,{"$f":"'Sheet7 (6)'!C16","v":"      "}]
[null,null,"Condition"]
[null,null,{"$f":"'Sheet7 (6)'!C25","v":"            "}]
[]
[null,6.4,"Academic Records"]
[null,null,"Commendation"]
[null,null,{"$f":"'Sheet7 (6)'!C9","v":"        "}]
[null,null,"Affirmation"]
[null,null,{"$f":"'Sheet7 (6)'!C17","v":"        "}]
[null,null,"Condition"]
[null,null,{"$f":"'Sheet7 (6)'!C26","v":"                "}]
[]
[]
[]
[]
[null,"Evaluation on Area 7: Programme Monitoring, Review and Continual Quality Improvement"]
[]
[null,"7.1      ","Mechanisms for Programme Monitoring, Review and Continual Quality Improvement"]
[null,null,"Commendation"]
[null,null,{"$f":"'Sheet7 (7)'!C6","v":"                  "}]
[null,null,"Affirmation"]
[null,null,{"$f":"'Sheet7 (7)'!C14","v":"                  "}]
[null,null,"Condition"]
[null,null,{"$f":"'Sheet7 (7)'!C23","v":"                                    "}]
[]
[null,"Additional comments"]
[]
[null,{"$f":"'Sheet7 (7)'!C33","v":""}]
[]
[]
[null,"Decision on the status of application of accreditation"]
[]
[null,{"$f":"Sheet4!G36","v":"ERROR"}]
[]
[]
[null,{"$f":"Sheet4!G39","v":"ERROR"}]

{"sheet":"Table1","index":22,"n_rows":30,"n_cols":26,"rows_kept":30,"merged":[[4,1,5,1],[4,2,4,7],[4,9,5,9],[4,10,5,16],[6,9,7,9],[6,10,7,16],[8,9,9,9],[8,10,9,16],[10,9,11,9],[10,10,11,16],[12,9,13,9],[12,10,13,16],[14,9,15,9],[14,10,15,16],[21,2,21,16],[22,2,22,16],[23,2,23,16],[24,2,24,16],[25,2,25,16],[26,2,26,16],[27,2,27,16],[28,2,28,16],[29,2,29,16],[30,2,30,16],[31,2,31,16],[32,2,32,16],[33,2,33,16]]}
[{"$nulls":25},"√"]
[]
[null,"Table 1:  Matrix of Programme Learning Outcomes (PLO) against the Programme Educational Objective (PEO)."]
[]
[null,"Programme Learning Outcomes (PLO)","Programme Educational Objectives (PEO)",{"$nulls":6},"PEO1","The XXXX programme aims to produce XXXXXXX that have  …………………………………………………………………………………………………………………………………………………………………………………………………………………………………………………………………………………………."]
[null,null,"PEO1","PEO2","PEO3","PEO4"]
[null,"PLO 1","√","√","√","√","√","√",null,"PEO2","The XXXX programme aims to produce XXXXXXX that have  …………………………………………………………………………………………………………………………………………………………………………………………………………………………………………………………………………………………."]
[null,"PLO 2","√","√","√","√","√","√"]
[null,"PLO 3","√","√","√","√","√","√",null,"PEO3","The XXXX programme aims to produce XXXXXXX that have  …………………………………………………………………………………………………………………………………………………………………………………………………………………………………………………………………………………………."]
[null,"PLO 4","√","√","√","√","√","√"]
[null,"PLO 5","√","√","√","√","√","√",null,"PEO4","The XXXX programme aims to produce XXXXXXX that have  …………………………………………………………………………………………………………………………………………………………………………………………………………………………………………………………………………………………."]
[null,"PLO 6","√","√","√","√","√","√"]
[null,"PLO 7","√","√","√","√","√","√"]
[null,"PLO 8","√","√","√","√","√","√"]
[null,"PLO 9","√","√","√","√","√","√"]
[null,null,"√","√","√","√","√","√"]
[null,null,"√","√","√","√","√","√"]
[null,null,"√","√","√","√","√","√"]
[null,null,"√","√","√","√","√","√"]
[]
[]
[null,"PLO1","The student will be able to acquire the …………………………………………………………………………………………………………………………………………………………………………………………………………………, and the ………………………………………………………………………………………………………………………………………….."]
[null,"PLO2","The student will be able to acquire the …………………………………………………………………………………………………………………………………………………………………………………………………………………, and the ………………………………………………………………………………………………………………………………………….."]
[null,"PLO3","The student will be able to acquire the …………………………………………………………………………………………………………………………………………………………………………………………………………………, and the ………………………………………………………………………………………………………………………………………….."]
[null,"PLO4","The student will be able to acquire the …………………………………………………………………………………………………………………………………………………………………………………………………………………, and the ………………………………………………………………………………………………………………………………………….."]
[null,"PLO5","The student will be able to acquire the …………………………………………………………………………………………………………………………………………………………………………………………………………………, and the ………………………………………………………………………………………………………………………………………….."]
[null,"PLO6","The student will be able to acquire the …………………………………………………………………………………………………………………………………………………………………………………………………………………, and the ………………………………………………………………………………………………………………………………………….."]
[null,"PLO7","The student will be able to acquire the …………………………………………………………………………………………………………………………………………………………………………………………………………………, and the ………………………………………………………………………………………………………………………………………….."]
[null,"PLO8","The student will be able to acquire the …………………………………………………………………………………………………………………………………………………………………………………………………………………, and the ………………………………………………………………………………………………………………………………………….."]
[null,"PLO9","The student will be able to acquire the …………………………………………………………………………………………………………………………………………………………………………………………………………………, and the ………………………………………………………………………………………………………………………………………….."]

{"sheet":"Table2","index":23,"n_rows":22,"n_cols":5,"rows_kept":22,"merged":[[7,1,9,1],[7,3,8,3],[7,4,8,4]]}
[]
[]
[null,"Table 2. Components of the programme and its credit value "]
[]
[]
[null,null,"Course Classification","Credit Value","Percentage (%)"]
[null,1,"Compulsory courses/modules*"]
[null,2,"Core**/Major(s)***/Specialisation: "]
[null,null,"·  Courses"]
[null,null,"·  projects/thesis /dissertation"]
[null,3,"Optional/elective courses****"]
[null,4,"Minor courses (if applicable)"]
[null,5,"Industrial training/Practicum"]
[null,6,"Others (specify)"]
[null,null,"Total Credit Value",null,100]
[]
[]
[null,"Note: "]
["*","Compulsory courses/modules refers to Mata Pelajaran Umum  (MPU) and other courses required by the HEP."]
["**","Core courses also include faculty common courses."]
["***","Provide information on major including double major if applicable. "]
["****","Optional/elective courses refer to courses where students can exercise choice."]

{"sheet":"Table3","index":24,"n_rows":13,"n_cols":22,"rows_kept":13,"merged":[[6,1,7,1],[6,3,7,3],[6,5,7,5],[6,6,6,18],[6,19,7,19],[6,20,7,20],[6,21,7,21]]}
[]
[]
[]
[]
[null,"Table 3. Brief description of courses offered in the programme"]
[]
[null,null,"Semester/","Name and Code of Course","Classification (Compulsory Major/Minor/","Credit Value","Programme Learning Outcomes (PLO)",{"$nulls":12},"Pre-requisite/ co-requisite","Name(s) of Academic Staff","Remarks"]
[null,null,"Year Offered",null,"Elective)",null,"PLO1","PLO2","PLO3","PLO4","PLO5","PLO6","PLO7","PLO8","PLO9"]
[null,1,{"$nulls":4},"x","x","x",null,"x"]
[null,2]
[null,3]
[null,4]
[null,5]

{"sheet":"Table4","index":25,"n_rows":87,"n_cols":17,"rows_kept":87,"merged":[[4,1,5,1],[4,3,4,16],[5,3,5,16],[6,1,8,1],[6,2,8,2],[6,3,8,16],[9,3,9,16],[10,3,10,6],[10,10,10,16],[11,3,11,16],[12,3,12,16],[13,1,17,1],[13,2,13,16],[14,3,14,16],[15,3,15,16],[16,3,16,16],[17,3,17,16],[18,1,28,1],[18,2,19,16],[20,2,21,2],[20,3,20,14],[20,15,21,15],[20,16,21,16],[27,2,27,16],[28,2,28,16],[29,1,31,1],[29,2,31,7],[29,9,29,16],[30,9,30,16],[31,9,31,16],[32,1,81,1],[32,2,33,16],[34,2,36,8],[34,9,36,9],[34,10,34,15],[34,16,36,16],[35,10,35,13],[35,14,36,14],[35,15,36,15],[37,2,37,8],[38,2,38,8],[39,2,39,8],[40,2,40,8],[41,2,41,8],[42,2,42,8],[43,2,43,8],[44,2,44,8],[45,2,45,8],[46,2,46,8],[47,2,47,8],[48,2,48,8],[49,2,49,8],[50,2,50,8],[51,2,51,8],[52,2,52,8],[53,2,53,8],[54,2,54,8],[55,2,55,8],[56,2,56,8],[57,2,57,8],[57,9,57,15],[59,2,60,8],[59,9,60,9],[59,10,60,12],[59,13,60,15],[59,16,60,16],[61,3,61,8],[61,10,61,12],[61,13,61,15],[62,3,62,8],[62,10,62,12],[62,13,62,15],[63,3,63,8],[63,10,63,12],[63,13,63,15],[64,3,64,8],[64,10,64,12],[64,13,64,15],[66,3,66,8],[66,10,66,12],[66,13,66,15],[67,3,67,8],[67,10,67,12],[67,13,67,15],[68,9,68,15],[70,2,71,8],[70,9,71,9],[70,10,71,12],[70,13,71,15],[70,16,71,16],[72,3,72,8],[72,10,72,12],[72,13,72,15],[73,3,73,8],[73,10,73,12],[73,13,73,15],[75,3,75,8],[75,10,75,12],[75,13,75,15],[76,3,76,8],[76,10,76,12],[76,13,76,15],[77,9,77,15],[78,2,79,9],[79,14,79,15],[80,2,80,10],[81,2,81,8],[82,2,82,3],[82,4,82,16],[83,1,85,1],[83,2,85,7],[83,8,85,16],[86,2,86,7],[86,8,86,16]]}
[]
[null,"Table 4.  Course information "]
[]
[]
[null,"1.         ","Name of Course :"]
[null,null,"Course Code :"]
[null,"2.        ","Synopsis :"]
[]
[]
[null,"3.        ","Name(s) of academic staff : "]
[null,"4.        ","Semester and Year offered :","Semester",{"$nulls":4},"Year"]
[null,"5.        ","Credit Value :",{"$f":"ROUNDDOWN(Q81,0)","v":0}]
[null,"6.        ","Prerequisite/co-requisite:     (if any) "]
[null,"7.        ","Course Learning Outcomes (CLO) :  At the end of the course the students will be able to: \n(example)  -  explain the basic principles of immunisation (C2,PLO1)"]
[null,null,"CLO1"]
[null,null,"CLO2"]
[null,null,"CLO3"]
[]
[null,"8.        ","Mapping of the Course Learning Outcomes to the Programme Learning Outcomes, Teaching Methods and Assessment :"]
[]
[null,null,"Course Learning Outcomes (CLO)","Programme Learning Outcomes (PLO)",{"$nulls":11},"Teaching Methods","Assessment"]
[{"$nulls":3},"PLO1","PLO2","PLO3","PLO4","PLO5","PLO6","PLO7","PLO8","PLO9","PLO10","PLO11","PLO12"]
[null,null,"CLO 1"]
[null,null,"CLO 2"]
[null,null,"CLO 3"]
[]
[]
[null,null,"Indicate the relevancy between the CLO and PLO by ticking “/“ the appropriate relevant box."]
[null,null,"(This description must be read together  with Standards 2.1.2 , 2.2.1 and 2.2.2 in  Area 2 - pages 16 & 18) "]
[null,"9.        ","Transferable Skills (if applicable)\n(Skills learned in the course of study which can be useful and utilized in other settings)",{"$nulls":5},1]
[{"$nulls":8},2]
[{"$nulls":8},3]
[null,"10.     ","Distribution of Student Learning Time (SLT)"]
[]
[null,null,"Course Content Outline",{"$nulls":6},"CLO*","Teaching and Learning Activities",{"$nulls":5},"SLT"]
[{"$nulls":10},"Guided Learning (F2F)",{"$nulls":3},"Guided Learning (NF2F)\neg: \ne-Learning","Independent Learning (NF2F)"]
[{"$nulls":10},"L","T","P","O"]
[{"$nulls":16},{"$f":"SUM(K38:P38)","v":0}]
[{"$nulls":16},{"$f":"SUM(K39:P39)","v":0}]
[{"$nulls":16},0]
[{"$nulls":16},0]
[{"$nulls":16},0]
[{"$nulls":16},0]
[{"$nulls":16},0]
[{"$nulls":16},{"$f":"SUM(K45:P45)","v":0}]
[{"$nulls":16},{"$f":"SUM(K46:P46)","v":0}]
[{"$nulls":16},0]
[{"$nulls":16},0]
[{"$nulls":16},0]
[{"$nulls":16},0]
[{"$nulls":16},0]
[{"$nulls":16},0]
[{"$nulls":16},0]
[{"$nulls":16},0]
[{"$nulls":16},0]
[{"$nulls":16},0]
[{"$nulls":16},0]
[{"$nulls":9},"Total",{"$nulls":6},{"$f":"SUM(Q38:Q57)","v":0}]
[]
[null,null,"Continuous Assessment",{"$nulls":6},"Percentage (%) ","F2F",null,null,"NF2F",null,null,"SLT"]
[]
[null,null,1,{"$nulls":13},{"$f":"SUM(K62:P62)","v":0}]
[null,null,2,{"$nulls":13},0]
[null,null,3,{"$nulls":13},0]
[null,null,4,{"$nulls":13},0]
[null,null,5,{"$nulls":13},0]
[null,null,6,{"$nulls":13},0]
[null,null,7,{"$nulls":13},0]
[{"$nulls":9},"Total",{"$nulls":6},{"$f":"SUM(Q62:Q68)","v":0}]
[]
[null,null,"Final  Assessment",{"$nulls":6},"Percentage (%) ","F2F",null,null,"NF2F",null,null,"SLT"]
[]
[null,null,1,{"$nulls":13},{"$f":"SUM(K73:P73)","v":0}]
[null,null,2,{"$nulls":13},{"$f":"SUM(K74:P74)","v":0}]
[null,null,3,{"$nulls":13},0]
[null,null,4,{"$nulls":13},0]
[null,null,5,{"$nulls":13},0]
[{"$nulls":9},"Total",{"$nulls":6},{"$f":"SUM(Q73:Q77)","v":0}]
[null,null,"**Please tick (√) if this course is Latihan Industri/ Clinical Placement/ Practicum/ WBL using 2-weeks, 1 credit formula"]
[{"$nulls":14},"GRAND TOTAL SLT",null,{"$f":"SUM(Q58,Q69,Q78)","v":0}]
[null,null,"L = Lecture, T = Tutorial, P= Practical, O= Others, F2F=Face to Face, NF2F=Non Face to Face",{"$nulls":13},{"$f":"IF(N80=\"√\",(Q80/80),(Q80/40))","v":0}]
[null,null,"*Indicate the CLO based on the CLO’s numbering in Item 8."]
[null,11,"Identify special requirement to deliver the course (e.g: software, nursery, computer lab, simulation room, etc)"]
[null,12,"References (include required and further readings, and should be the most current)"]
[]
[]
[null,13,"Other additional information :"]

{"sheet":"Table5","index":26,"n_rows":13,"n_cols":13,"rows_kept":13,"merged":[[5,1,8,1],[5,2,8,2],[5,3,8,3],[5,4,8,4],[5,5,8,5],[5,6,8,6],[5,7,7,8],[5,9,8,9],[5,10,5,12],[6,10,6,12],[7,10,7,12]]}
[]
[]
[]
[null,null,"Table 5.  Summary information on academic staff  involved in the programme"]
[]
[null,null,"Name and designation of academic staff ","Appointment status (full-time, part-time, contract, etc.)","Nationality","Courses taught in this programme","Courses taught in other programmes","Academic qualifications",null,"Research focus areas  (Bachelor and above)"]
[{"$nulls":10},"Past work experience"]
[]
[{"$nulls":7},"Quallifications, Field of Specialisation, Year of Award","Name of Awarding Institution and country",null,"Positions held","Employer","Years of Service (Start and End)"]
[null,1]
[null,2]
[null,3]
[null,4]

{"sheet":"Table6","index":27,"n_rows":26,"n_cols":9,"rows_kept":26,"merged":[[4,1,6,1],[4,2,6,2],[4,3,5,4],[4,5,4,8],[5,5,5,6],[5,7,5,8],[10,1,20,1],[21,1,22,1]]}
[]
[]
[null,null,"Table 6. List of physical facilities required for the programme"]
[]
[null,null,"Facilities required","Available for Year 1",null,"To be provided "]
[{"$nulls":5},"In Year 2",null,"In Year 3"]
[{"$nulls":3},"No","Capacity","No","Capacity","No","Capacity"]
[null,1,"Lecture Halls ",{"$nulls":3}," "]
[null,2,"Tutorial Rooms"]
[null,3,"Discussion Rooms"]
[null,4,"Laboratories and Workshops"]
[null,null,"- IT Lab"]
[null,null,"- Science Lab"]
[null,null,"-Engineering workshop"]
[null,null,"-Processing workshop"]
[null,null,"-Manufacturing workshop"]
[null,null,"-Studio "]
[null,null,"-Mock Kitchen"]
[null,null,"-Moot court"]
[null,null,"-Clinical Lab"]
[null,null,"-Others"]
[null,5,"Library and Information Centres"]
[null,null,"Learning Support Centres"]
[null,6,"Learning Resources Support"]
[null,7,"Student Social Spaces"]
[null,8,"Other Facilities including ICT related facilities"]

{"sheet":"Table7","index":28,"n_rows":7,"n_cols":6,"rows_kept":7,"merged":[[5,1,5,2],[5,3,5,4],[5,5,6,5]]}
[]
[]
[]
[null,null,"Table 7. Reference materials supporting the programme"]
[]
[null,"Resources supporting the programme (e.g., books, online resources, etc)",null,"Number of Journals",null,"State other facilities such as CD ROM, Video and electronic reference material"]
[null,"Number of Title","Number of Collection","Number of Title","Number of Collection"]

{"sheet":"Table8","index":29,"n_rows":10,"n_cols":6,"rows_kept":10}
[]
[]
[]
[]
[null,null,"Table 8. Administrative staff for the programme"]
[]
[null,null,"Job Category ","Minimum qualification ","Numbers of staff required ","Current numbers "]
[null,1]
[null,2]
[null,3]

{"sheet":"Sheet2 (2)","index":30,"n_rows":90,"n_cols":32,"rows_kept":90,"hidden":true}
[]
[]
[{"$nulls":14},"Weightage","Weightage"]
[{"$nulls":3},"STD","AL5","AL4","AL3","AL2","AL1",null,"AL1/2","AL4/5","AL3-5",null,"PA","FA","PA","FA",null,"AL5","AL4","AL3","AL2","AL1","MAXScr","Scr",null,"PA","FA"]
[null,null,"AREA1",{"$f":"SUM(E5:I5)","v":0},{"$f":"Sheet1!AT65","v":0},{"$f":"Sheet1!AU65","v":0},{"$f":"Sheet1!AV65","v":0},{"$f":"Sheet1!AW65","v":0},{"$f":"Sheet1!AX65","v":0},{"$f":"Sheet1!AK63","v":true},{"$f":"H5+I5","v":0},{"$f":"E5+F5","v":0},{"$f":"SUM(E5:G5)","v":0},null,40,25,{"$f":"(M5/D5)*O5","v":{"$error":"#DIV/0!"}},{"$f":"(M5/D5)*P5","v":{"$error":"#DIV/0!"}},null,{"$f":"E5*5","v":0},{"$f":"F5*4","v":0},{"$f":"G5*3","v":0},{"$f":"H5*2","v":0},{"$f":"I5*1","v":0},{"$f":"D5*5","v":0},{"$f":"SUM(T5:X5)","v":0},null,{"$f":"(Z5/Y5)*Q5","v":{"$error":"#DIV/0!"}},{"$f":"(Z5/Y5)*R5","v":{"$error":"#DIV/0!"}}]
[null,null,"AREA2",{"$f":"SUM(E6:I6)","v":0},{"$f":"'Sheet1 (2)'!AT59","v":0},{"$f":"'Sheet1 (2)'!AU59","v":0},{"$f":"'Sheet1 (2)'!AV59","v":0},{"$f":"'Sheet1 (2)'!AW59","v":0},{"$f":"'Sheet1 (2)'!AX59","v":0},{"$f":"'Sheet1 (2)'!AK57","v":true},{"$f":"H6+I6","v":0},{"$f":"E6+F6","v":0},{"$f":"SUM(E6:G6)","v":0},null,10,15,{"$f":"(M6/D6)*O6","v":{"$error":"#DIV/0!"}},{"$f":"(M6/D6)*P6","v":{"$error":"#DIV/0!"}},null,{"$f":"E6*5","v":0},{"$f":"F6*4","v":0},{"$f":"G6*3","v":0},{"$f":"H6*2","v":0},{"$f":"I6*1","v":0},{"$f":"D6*5","v":0},{"$f":"SUM(T6:X6)","v":0},null,{"$f":"(Z6/Y6)*Q6","v":{"$error":"#DIV/0!"}},{"$f":"(Z6/Y6)*R6","v":{"$error":"#DIV/0!"}}]
[null,null,"AREA3",0,{"$f":"'Sheet1 (3)'!AT79","v":0},{"$f":"'Sheet1 (3)'!AU79","v":0},{"$f":"'Sheet1 (3)'!AV79","v":0},{"$f":"'Sheet1 (3)'!AW79","v":0},{"$f":"'Sheet1 (3)'!AX79","v":0},{"$f":"'Sheet1 (3)'!AK77","v":true},0,0,0,null,5,10,{"$error":"#DIV/0!"},{"$error":"#DIV/0!"},null,0,0,0,0,0,0,0,null,{"$error":"#DIV/0!"},{"$error":"#DIV/0!"}]
[null,null,"AREA4",0,{"$f":"'Sheet1 (4)'!AT63","v":0},{"$f":"'Sheet1 (4)'!AU63","v":0},{"$f":"'Sheet1 (4)'!AV63","v":0},{"$f":"'Sheet1 (4)'!AW63","v":0},{"$f":"'Sheet1 (4)'!AX63","v":0},{"$f":"'Sheet1 (4)'!AK61","v":true},0,0,0,null,15,15,{"$error":"#DIV/0!"},{"$error":"#DIV/0!"},null,0,0,0,0,0,0,0,null,{"$error":"#DIV/0!"},{"$error":"#DIV/0!"}]
[null,null,"AREA5",0,{"$f":"'Sheet1 (5)'!AT58","v":0},{"$f":"'Sheet1 (5)'!AU58","v":0},{"$f":"'Sheet1 (5)'!AV58","v":0},{"$f":"'Sheet1 (5)'!AW58","v":0},{"$f":"'Sheet1 (5)'!AX58","v":0},{"$f":"'Sheet1 (5)'!AK56","v":true},0,0,0,null,15,15,{"$error":"#DIV/0!"},{"$error":"#DIV/0!"},null,0,0,0,0,0,0,0,null,{"$error":"#DIV/0!"},{"$error":"#DIV/0!"}]
[null,null,"AREA6",0,{"$f":"'Sheet1 (6)'!AT64","v":0},{"$f":"'Sheet1 (6)'!AU64","v":0},{"$f":"'Sheet1 (6)'!AV64","v":0},{"$f":"'Sheet1 (6)'!AW64","v":0},{"$f":"'Sheet1 (6)'!AX64","v":0},{"$f":"'Sheet1 (6)'!AK62","v":true},0,0,0,null,10,10,{"$error":"#DIV/0!"},{"$error":"#DIV/0!"},null,0,0,0,0,0,0,0,null,{"$error":"#DIV/0!"},{"$error":"#DIV/0!"}]
[null,null,"AREA7",0,{"$f":"'Sheet1 (7)'!AT57","v":0},{"$f":"'Sheet1 (7)'!AU57","v":0},{"$f":"'Sheet1 (7)'!AV57","v":0},{"$f":"'Sheet1 (7)'!AW57","v":0},{"$f":"'Sheet1 (7)'!AX57","v":0},{"$f":"'Sheet1 (7)'!AK55","v":true},0,0,0,null,5,10,{"$error":"#DIV/0!"},{"$error":"#DIV/0!"},null,0,0,0,0,0,0,0,null,{"$error":"#DIV/0!"},{"$error":"#DIV/0!"}]
[]
[{"$nulls":3},{"$f":"IF(OR(Sheet1!AD63=FALSE,'Sheet1 (2)'!AD57=FALSE,'Sheet1 (3)'!AD77=FALSE,'Sheet1 (4)'!AD61=FALSE,'Sheet1 (5)'!AD56=FALSE,'Sheet1 (6)'!AD62=FALSE,'Sheet1 (7)'!AD55=FALSE),\"ERROR\",SUM(D5:D11))","v":"ERROR"},{"$f":"SUM(E5:E11)","v":0},0,0,0,0,null,{"$f":"SUM(K5:K11)","v":0},{"$f":"SUM(L5:L11)","v":0},{"$nulls":4},{"$f":"SUM(Q5:Q11)","v":{"$error":"#DIV/0!"}},{"$f":"SUM(R5:R11)","v":{"$error":"#DIV/0!"}},null,{"$f":"SUM(T5:T11)","v":{"v":0,"d":"0.00"}},{"v":0,"d":"0.00"},{"v":0,"d":"0.00"},{"v":0,"d":"0.00"},{"v":0,"d":"0.00"},{"v":0,"d":"0.00"},{"v":0,"d":"0.00"},null,{"$f":"SUM(AB5:AB11)","v":{"$error":"#DIV/0!"}},{"$f":"SUM(AC5:AC11)","v":{"$error":"#DIV/0!"}}]
[{"$nulls":6},{"$f":"ROUND(G13/D13*100,0)","v":{"$error":"#VALUE!"}},null,null,{"$f":"IF(AND(J5:J11),TRUE,FALSE)","v":true},{"$f":"ROUND(K13/D13*100,0)","v":{"$error":"#VALUE!"}},{"$f":"ROUND(L13/D13*100,0)","v":{"$error":"#VALUE!"}},null,null,{"$f":"IF(AND(L14=100,G14=0,K14=0),\"A\",IF(AND(AND(L14<100,L14>79),G14<21,K14=0),\"B\",IF(AND(AND(L14<80,L14>69),AND(G14<31,G14>20),K14=0),\"C\",IF(AND(L14+G14=100,K14=0),\"D\",IF(AND(G14>70,G14<81),\"E\",IF(G14<71,\"F\",\"F\"))))))","v":{"$error":"#VALUE!"}},{"$nulls":13},{"$f":"VLOOKUP(AC13,AC25:AD28,2)","v":{"$error":"#DIV/0!"}},{"$f":"IF(K13=0,AC14,\"F\")","v":{"$error":"#DIV/0!"}},{"$f":"IF(AND(AD14=\"A\",J14=FALSE),\"ERROR\",(IF(AND(AD14=\"B\",J14=TRUE),\"B+\",(IF(AND(AD14=\"C\",J14=TRUE),\"C+\",(IF(AND(AD14=\"B\",J14=FALSE),\"\",AD14)))))))","v":{"$error":"#DIV/0!"}}]
[{"$nulls":9},{"$f":"IF(AND(J5:J11),TRUE,FALSE)","v":true},{"$nulls":4},{"$f":"IF(I13>0,\"F\",IF(H13>0,\"P*\",\"P\"))","v":"P"},{"$nulls":12},{"$f":"IF(AND(Sheet4!S12=6,'Sheet2 (2)'!J14=TRUE),1,0)","v":{"$error":"#N/A"}},{"$f":"IF(AB15=0,VLOOKUP(AE14,C54:I60,2),VLOOKUP(AE14,C62:I68,2))","v":{"$error":"#N/A"}},{"$f":"IF(AB15=0,VLOOKUP(AE14,C54:I60,3),VLOOKUP(AE14,C62:I68,3))","v":{"$error":"#N/A"}},{"$f":"IF(AB15=0,VLOOKUP(AE14,C54:I60,4),VLOOKUP(AE14,C62:I68,4))","v":{"$error":"#N/A"}},{"$f":"IF(AB15=0,VLOOKUP(AE14,C54:I60,5),VLOOKUP(AE14,C62:I68,5))","v":{"$error":"#N/A"}}]
[]
[]
[]
[]
[]
[null,null,"GRED","PENCAPAIAN ","KEPUTUSAN","TEMPOH PEMANTAUAN / TEMPOH BERTENANG","DOKUMEN PENILAIAN","KEPERLUAN LAIN","IMPLIKASI"]
[null,null,"A","100% AL5/AL4 ","FA Granted","Accreditation is perpetual, monitoring in 5 years ( or more, depending on particular conditions)","1.      ","2.  ","-"]
[null,null,"B","80% AL4/AL5, the rest AL3   ","FA Granted","Accreditation is given within a given period : 7 years (based on cohort of students), monitoring within 5 years.","1.      ",null,"-"]
[null,null,"C","70% AL4/AL5, the rest AL3","FA Granted","Accreditation is given within a given period : 5 years (based on cohort of students), monitoring within 3 years.","1.      ",null,"-"]
[null,null,"D","100% AL3 ","FA Granted *after consideration (consideration time is dependent on conditions that must be fulfilled to the satisfaction of the MQA) \n","Accreditation granted after conditions have been fulfilled. Accreditation period is 2 years (based on cohort of students)",{"$nulls":22},0,"F"]
[null,null,"E","80% AL3","FA Denied","All PA applications from this field are barred within 6 months (from the date of the first impediment - date on the notification letter) Reapplication of FA can be submitted after one(1) year.",{"$nulls":22},60,"C"]
[null,null,"F","70% AL3","FA Denied","All PA applications from this field are barred within 1 year (from the date of the first impediment - date on the notification letter) Reapplication of FA can be submitted after one(1) year.",{"$nulls":22},70,"B"]
[{"$nulls":28},80,"A"]
[null,null,"F",null,"PA Denied","All PA applications from this field are barred within 1 year (from the date of the first impediment - date on the notification letter) Reapplication of PA can be submitted after one(1) year."]
[null,null,"P",null,"PA Granted"]
[null,null,"P*",null,"PA Granted *with condition","Accreditation granted after conditions have been fulfilled. "]
[]
[]
[]
[]
[]
[null,null,"GRED","PENCAPAIAN ","KEPUTUSAN","TEMPOH PEMANTAUAN / TEMPOH BERTENANG","DOKUMEN PENILAIAN","KEPERLUAN LAIN"]
[null,null,"A","100% AL5/AL4 ","Lulus FA","Akreditasi berterusan** (perpetual), pemantauan dalam tempoh 5 tahun (atau lebih tertakluk kepada syarat-syarat tertentu)","1.      ","2.  "]
[null,null,"B","80% AL4/AL5, the rest AL3   ","Lulus FA","Akreditasi bertempoh: 7 tahun (berdasarkan kohort pelajar), pemantauan dalam tempoh 5 tahun  ","1.      "]
[null,null,"C","70% AL4/AL5, the rest AL3","Lulus FA","Akreditasi bertempoh: 5 tahun (berdasarkan kohort pelajar), pemantauan dalam tempoh 3 tahun   ","1.      "]
[null,null,"D","100% AL3 ","Lulus FA *selepas pertimbangan (tempoh pertimbangan adalah berdasarkan syarat yang dikenakan)","Akreditasi diberikan selepas syarat petimbangan dipatuhi. Tempoh akreditasi adalah 2 tahun (berdasarkan kohort pelajar).  "]
[null,null,"E","80% AL3","Tolak FA","Sekat semua permohonan PA BIDANG tersebut dalam masa 6 bulan (daripada tarikh sekatan yang pertama- tarikh surat makluman) Permohonan semula FA boleh dikemukakan selepas 1 tahun"]
[null,null,"F","70% AL3","Tolak FA","Sekat semua permohonan PA BIDANG tersebut  dalam masa 1 tahun (daripada tarikh sekatan yang pertama – tarikh surat makluman) Permohonan semula FA boleh dikemukakan selepas 1 tahun "]
[]
[]
[null,null,"GRED","PENCAPAIAN "]
[null,null,50,"Grade C"]
[null,null,70,"Grade B"]
[null,null,80,"Grade A"]
[]
[]
[]
[null,null,"GRED",null,"PENUNJUK PENCAPAIAN ","KEPUTUSAN","TEMPOH PEMANTAUAN / TEMPOH BERTENANG","DOKUMEN PENILAIAN","KEPERLUAN LAIN","IMPLIKASI"]
[null,null,"A","A","80% \n(Achieve 100% AL3 and above)","Pass FA","Duration of Accreditation/Compliance Evaluation:\nDuration of accreditation is 8 years (based on student cohort).\nCompliance evaluation/monitoring will be conducted within the accreditation period (if necessary).\nProcess of FA Re-application:\nNormal FA procedure.\nProcess of Compliance Evaluation:\n1. SRR presentation by HEP to POA and MQA\n2. No site visit (Visit can be conducted if necessary)","Pemantauan:1.      SRR institusi 2.      SRR program","Melalui prosedur FA biasa. Pemantauan :1.    Pembentangan SRR oleh PPT kepada APP dan MQA 2.    Tiada lawatan premis (Lawatan boleh diadakan jika APP merasakan perlu)","-"]
[null,null,"B"," ","70%\n(AL3 with conditions)","FA is considered after all conditions are met.","Duration of Accreditation/Compliance Evaluation:\nAccreditation is granted after consideration conditions are met. Duration of accreditation is 5 years (based on student cohort).\nCompliance evaluation/monitoring will be conducted within the accreditation period (if necessary).\nProcess of FA Re-application & Compliance Evaluation:\nNormal FA and compliance evaluation procedures.\nNote:\nOnly programme with minor conditions (similar to aspects highlighted in recommendations - current  practice) will be considered. ","Maklum balas terhadap syarat pertimbangan. Pemantauan:1.      SRR institusi 2.      SRR program ","Melalui prosedur FA dan audit pematuhan biasa.","Hanya program dengan syarat minor (sama seperti aspek yang ditekankan dalam cadangan penambahbaikan - amalan[3] sekarang) yang akan diberikan status Timbang. "]
[null,null,"B+","B+","70%\n(Achieve 100% AL3 and above)","Pass FA","Duration of Accreditation/Compliance Evaluation:\nDuration of accreditation is 5 years (based on student cohort).\nCompliance evaluation/monitoring will be conducted within the accreditation period (if necessary).  \nProcess of FA Re-application & Compliance Evaluation:\nNormal FA and compliance evaluation procedures.","Maklum balas terhadap syarat pertimbangan. Pemantauan:1.      SRR institusi 2.      SRR program ","Melalui prosedur FA dan audit pematuhan biasa.","Hanya program dengan syarat minor (sama seperti aspek yang ditekankan dalam cadangan penambahbaikan - amalan[3] sekarang) yang akan diberikan status Timbang. "]
[null,null,"C"," ","60%\n(AL3 with conditions)","FA is considered after all conditions are met.","Duration of Accreditation:\nAccreditation is granted after consideration conditions are met. Duration of accreditation is 3 years (based on student cohort).\nProcess of FA Re-application & Compliance Evaluation:\nNormal FA and compliance evaluation procedures.\nNote: \nOnly programme with minor conditions (similar to aspects highlighted in recommendations - current  practice) will be considered. ","Maklum balas terhadap syarat pertimbangan ","Melalui prosedur FA dan audit pematuhan biasa.","Hanya program dengan syarat minor (sama seperti aspek yang ditekankan dalam cadangan penambahbaikan - amalan[2] sekarang) yang akan diberikan status Timbang. "]
[null,null,"C+","C+","60%\n(Achieve 100% AL3 and above) ","Pass FA ","Duration of Accreditation:\nDuration of accreditation is 3 years (based on student cohort).  \nProcess of FA Re-application & Compliance Evaluation:\nNormal FA and compliance evaluation procedures. ","Maklum balas terhadap syarat pertimbangan ","Melalui prosedur FA dan audit pematuhan biasa.","Hanya program dengan syarat minor (sama seperti aspek yang ditekankan dalam cadangan penambahbaikan - amalan[2] sekarang) yang akan diberikan status Timbang. "]
[null,null,"ERROR","ERROR","Not achieving 100% AL3 ","Refuse FA","A moratorium on the new PA application for related NEC  narrow field (2 digits NEC) for a duration of 1 year from the date of first restriction (date of surat makluman for the refused application). \nMQA will recommend KPT to restrict student intake once the FA refusal result is issued."]
[null,null,"F","F","Not achieving 100% AL3 ","Refuse FA","A moratorium on the new PA application for related NEC  narrow field (2 digits NEC) for a duration of 1 year from the date of first restriction (date of surat makluman for the refused application). \nMQA will recommend KPT to restrict student intake once the FA refusal result is issued.","-","-","MQA akan mengesyorkan KPT untuk menyekat pengambilan pelajar sejurus setelah keputusan tolak FA dikeluarkan."]
[]
[null,null,"A","A","80% \n(Achieve 100% AL3 and above)","Pass FA","Duration of Accreditation/Compliance Evaluation:\nDuration of accreditation is 8 years (based on student cohort).\nCompliance evaluation/monitoring will be conducted within the accreditation period (if necessary).\nProcess of FA Re-application:\nNormal FA procedure.\nProcess of Compliance Evaluation:\n1. SRR presentation by HEP to POA and MQA\n2. No site visit (Visit can be conducted if necessary)","Pemantauan:1.      SRR institusi 2.      SRR program","Melalui prosedur FA biasa. Pemantauan :1.    Pembentangan SRR oleh PPT kepada APP dan MQA 2.    Tiada lawatan premis (Lawatan boleh diadakan jika APP merasakan perlu)","-"]
[null,null,"B","B","70%\n(100% AL3 after consideration)","FA is considered after all conditions are met.","Duration of Accreditation/Compliance Evaluation:\nAccreditation is granted after consideration conditions are met. Duration of accreditation is 5 years (based on student cohort).\nCompliance evaluation/monitoring will be conducted within the accreditation period (if necessary).\nProcess of FA Re-application & Compliance Evaluation:\nNormal FA and compliance evaluation procedures.\nNote:\nOnly programme with minor conditions (similar to aspects highlighted in recommendations - current  practice) will be considered. ","Maklum balas terhadap syarat pertimbangan. Pemantauan:1.      SRR institusi 2.      SRR program ","Melalui prosedur FA dan audit pematuhan biasa.","Hanya program dengan syarat minor (sama seperti aspek yang ditekankan dalam cadangan penambahbaikan - amalan[3] sekarang) yang akan diberikan status Timbang. "]
[null,null,"B+","B","70%\n(100% AL3 after consideration)","Pass FA","Duration of Accreditation/Compliance Evaluation:\nDuration of accreditation is 5 years (based on student cohort).\nCompliance evaluation/monitoring will be conducted within the accreditation period (if necessary).  \nProcess of FA Re-application & Compliance Evaluation:\nNormal FA and compliance evaluation procedures.","Maklum balas terhadap syarat pertimbangan. Pemantauan:1.      SRR institusi 2.      SRR program ","Melalui prosedur FA dan audit pematuhan biasa.","Hanya program dengan syarat minor (sama seperti aspek yang ditekankan dalam cadangan penambahbaikan - amalan[3] sekarang) yang akan diberikan status Timbang. "]
[null,null,"C","C","60%\n(100% AL3 after consideration)","FA is considered after all conditions are met.","Duration of Accreditation:\nAccreditation is granted after consideration conditions are met. Duration of accreditation is 3 years (based on student cohort).\nProcess of FA Re-application & Compliance Evaluation:\nNormal FA and compliance evaluation procedures.\nNote: \nOnly programme with minor conditions (similar to aspects highlighted in recommendations - current  practice) will be considered. ","Maklum balas terhadap syarat pertimbangan ","Melalui prosedur FA dan audit pematuhan biasa.","Hanya program dengan syarat minor (sama seperti aspek yang ditekankan dalam cadangan penambahbaikan - amalan[2] sekarang) yang akan diberikan status Timbang. "]
[null,null,"C+","C","60%\n(100% AL3 after consideration)","Pass FA ","Duration of Accreditation:\nDuration of accreditation is 3 years (based on student cohort).  \nProcess of FA Re-application & Compliance Evaluation:\nNormal FA and compliance evaluation procedures. ","Maklum balas terhadap syarat pertimbangan ","Melalui prosedur FA dan audit pematuhan biasa.","Hanya program dengan syarat minor (sama seperti aspek yang ditekankan dalam cadangan penambahbaikan - amalan[2] sekarang) yang akan diberikan status Timbang. "]
[null,null,"ERROR","ERROR","Not achieving 100% AL3 ","Refuse FA","A moratorium on the new PA application for related NEC  narrow field (2 digits NEC) for a duration of 1 year from the date of first restriction (date of surat makluman for the refused application). \nMQA will recommend KPT to restrict student intake once the FA refusal result is issued."]
[null,null,"F","F","Not achieving 100% AL3 ","Refuse FA","A moratorium on the new PA application for related NEC  narrow field (2 digits NEC) for a duration of 1 year from the date of first restriction (date of surat makluman for the refused application). \nMQA will recommend KPT to restrict student intake once the FA refusal result is issued.","-","-","MQA akan mengesyorkan KPT untuk menyekat pengambilan pelajar sejurus setelah keputusan tolak FA dikeluarkan."]
[]
[]
[]
[]
[]
[]
[null,null,80,"A"]
[null,null,70,"B"]
[null,null,60,"C"]
[null,null,0,"F"]
[]
[]
[]
[]
[]
[]
[null,null,"Nota: Dasar/arahan berkaitan perlu dibangunkan bagi menguatkuasakan tindakan di bahagian Implikasi untuk Gred F."]
[]
[]
[null,null,"[1] Contoh narrow field NEC adalah Humanities, Journalism and Information, Mathematics and Statistics, Security Services dan lain-lain.   "]
[null,null,"[2] Program masih boleh mendapat Akreditasi walaupun terdapat syarat khusus (tidak memenuhi komponen penting) yang dikenakan selain cadangan penambahbaikan."]
[null,null,"[3] Program masih boleh mendapat Akreditasi walaupun terdapat syarat khusus (tidak memenuhi komponen penting) yang dikenakan selain cadangan penambahbaikan."]

{"sheet":"Sheet8","index":31,"n_rows":2,"n_cols":2,"rows_kept":2}
[]
[null,"PLEASE PROVIDE BODY OF KNOWLEDGE MATRIX FOR PROGRAMMES UNDER PROGRAMME STANDARDS:COMPUTING"]

{"sheet":"Sheet9","index":32,"n_rows":2,"n_cols":2,"rows_kept":2,"merged":[[3,1,59,10]]}
[]
[null,"PLEASE PROVIDE DETAILS OF ENTRY REQUIREMENTS"]